Workbook

Sheet How to Use
C3: पोषाहार से सम्बंधित तैयार किये जाने वाले सभी प्रकार के प्रपत्र के एक्सेल शीट के संबंध में जानकारी
C4: सर्व प्रथम आप मास्टर शीट पर जो सफ़ेद कलर की जो सेल है , उसमे आवश्यकतानुसार डाटा एंट्री फिल करे I सामान्य जानकारी के साथ नामांकन व अन्य भौतिक प्रगति रिपोर्ट और कुक कम हेल्पर की डिटेल फिल करे I कन्वर्जन राशि भी फिल करें I
C5: दूसरी नंबर पर जो शीट है प्रारंभिक शेष - इसमे आप पिछले माह का अंतिम शेष बचा हुआ है , वह चालू माह का प्रारंभिक शेष है , उसकी एंट्री अनलॉक सेल में करें I
C6: तीसरे नंबर पर शीट attendence Diary है , इसके अन्तरगत बाकि सब ऑटो जनरेट है केवल नामांकित व लाभान्वित विद्यार्थियों की सूचना भरनी है , दिनांक और वार सब स्वतः आ जायेंगे I
C7: बाद में प्राथमिक कक्षा और उच्च प्राथमिक कक्षा की अलग अलग बैलेंस शीट है I इस शीट में सभी एंट्रिया स्वतः आयेगी I केवल जी पोषाहार सप्लायर व अन्यत्र से प्राप्त खाद्यान्न की जानकारी जरुरत होने पर फिल करांनी है I
C8: बाकि शेष शीट्स केवल रिपोर्ट्स है , जो स्वतः तैयार होगी , उक्त डाक आगे ऑफिस में भेजने व कार्यालय में संधारण करने में काम आयेगी I
C9: अंत में स्टॉक रजिस्टर व बिल जनरेट शीट भी स्वतः जनरेट हो जायेगी I आप अपने स्टॉक और bill का मिलान करके कैशबुक की एंट्री आसानी से कर पाएंगे तथा अपना पोषाहार का रिकॉर्ड अच्छे से मेन्टेन कर सकते है I
C10: वैसे इस शीट को बड़ी सावधानी से बनाई गई हैI फिर भी त्रुटि के लिए निर्माणकर्ता ज़िमेदार नहीं होगा I अतः डाक के अंतिम रूप से तैयार होने पर अपने स्तर पर एक बार जरुर चेक कर लेवे I
C13: Password Of MDM Sheet :- MDM#2022
C15: प्रोग्राम निर्माणकर्ता
C16: हीरालाल जाट
C17: वरिष्ठ अध्यापक , महात्मा गाँधी राजकीय विद्यालय बर , पाली
C18: स्थाई पता :- चंडावल नगर , तह. - सोजत , जिला - पाली
C19: https://youtube.com/c/Heeralaljat
C22: सम्पूर्ण जानकारी के लिए विडियो लिंक
C24: https://youtu.be/Ep7yiDA2qr4

Sheet MASTER DATA
B3: fo|ky; dk uke | C3: egkRek xka/kh jktdh; fo|ky; ¼vaxzsth ek/;e½ cj ] ikyh
B4: School Name :- | C4: MGGS Bar | E4: l=~ %& | F4: 2022 | G4: & | H4: 2023 | I4: ekg %& | J4: =IFERROR(IF(AC5="","",AC5),"") -> tqykbZ&2022 | BC4: 1 | BD4: 2 | BE4: 3 | BF4: 4 | BG4: 5 | BH4: 6 | BI4: 7 | BJ4: 8 | BK4: 9 | BL4: 10 | BM4: 11 | BN4: 12 | BO4: 13 | BP4: 14 | BQ4: 15 | BR4: 16 | BS4: 17 | BT4: 18 | BU4: 19 | BV4: 20 | BW4: 21 | BX4: 22 | BY4: 23 | BZ4: 24 | CA4: 25 | CB4: 26 | CC4: 27 | CD4: 28 | CE4: 29 | CF4: 30 | CG4: 31 | CH4: 32 | CI4: 33
B5: ikbZbZvks@uksMy Ldwy dk uke %& | C5: jkmekfo cj | O5: ije~ iwT; xq:nso oklqnso th egkjkt dks ueu | AC5: =IF(AND(C20=""),"",IF(AND(C20=AE8),AF8,IF(AND(C20=AE9),AF9,IF(AND(C20=AE10),AF10,IF(AND(C20=AE11),AF11,IF(AND(C20=AE12),AF12,IF(AND(C20=AE13),AF13,IF(AND(C20=AE14),AF14,IF(AND(C20=AE15),AF15,IF(AND(C20=AE16),AF16,IF(AND(C20=AE17),AF17,IF(AND(C20=AE18),AF18,IF(AND(C20=AE19),AF19,""))))))))))))) -> tqykbZ&2022
B6: laLFkk iz/kku dk uke %& | C6: m"kk ify;k | S6: HEERALAL JAT | BA6: DIST. | BC6: AJMER | BD6: ALWAR | BE6: BANSWARA | BF6: BARAN | BG6: BARMER | BH6: BHARATPUR | BI6: BHILWARA | BJ6: BIKANER | BK6: BUNDI | BL6: CHITTORGARH | BM6: CHURU | BN6: DAUSA | BO6: DHOLPUR | BP6: DUNGARPUR | BQ6: HANUMANGARH | BR6: JAIPUR | BS6: JAISALMER | BT6: JALORE | BU6: JHALAWAR | BV6: JHUNJHUNU | BW6: JODHPUR | BX6: KARAULI | BY6: KOTA | BZ6: NAGOUR | CA6: PALI | CB6: PRATAPGARH | CC6: RAJSAMAND | CD6: SAWAI MADHOPUR | CE6: SIKAR | CF6: SIROHI | CG6: SRI GANGANAGAR | CH6: TONK | CI6: UDAIPUR
B7: iks"kkgkj izHkkjh %& | C7: vfHkeU;q flag | E7: d{kk | BA7: AJMER | BB7: 1 | BC7: AJMER GRAMEEN | BD7: BANSUR | BE7: ANANDPURI | BF7: ANTA | BG7: AADEL | BH7: BAYANA | BI7: ASIND | BJ7: BIKANER | BK7: BUNDI | BL7: BADI SADRI | BM7: BIDASAR | BN7: BANDIKUI | BO7: BARI | BP7: AASPUR | BQ7: BHADRA | BR7: AAMER | BS7: BHANIYANA | BT7: AAHORE | BU7: AKLERA | BV7: ALSISAR | BW7: BALESAR | BX7: HINDAUN | BY7: ITAWA | BZ7: DEEDWANA | CA7: BALI | CB7: ARNOD | CC7: AMET | CD7: BAMANWAS | CE7: DATARAMGARH | CF7: ABU ROAD | CG7: ANOOPGARH | CH7: DEOLI | CI7: BADGAON
B8: laLFkk iz/kku eks-u- %& | C8: 9929247227 | F8: SC | H8: ST | J8: OBC | L8: GEN | N8: TOTAL | AA8: April | AB8: vizsy | AC8: April | AD8: =F4 -> 2022 | AE8: =CONCATENATE(AC8,"-",AD8) -> April-2022 | AF8: =CONCATENATE(AB8,"&",AD8) -> vizsy&2022 | AI8: Government | AK8: Rural | BA8: ALWAR | BB8: 2 | BC8: ARAIN | BD8: BEHRORE | BE8: ARTHUNA | BF8: ATRU | BG8: BAITU | BH8: BHUSAWAR | BI8: BANERA | BJ8: BAJJU | BK8: HINDOLI | BL8: BHANDESAR | BM8: CHURU | BN8: BASWA | BO8: BASEDI | BP8: BICHHIWADA | BQ8: HANUMANGARH | BR8: AANDHI | BS8: FATEHGARH | BT8: BAGODA | BU8: BAKANI | BV8: BUHANA | BW8: AAU | BX8: KARAULI | BY8: KHAIRABAD | BZ8: BHAIRUNDA | CA8: DESURI | CB8: CHOTI SADARI | CC8: BHIM | CD8: BONLI | CE8: AJITGARH | CF8: PINDWARA | CG8: GHARSANA | CH8: MALPURA | CI8: BHINDAR
B9: iks"kkgkj izHkkjh eks-u- %& | C9: 9929247228 | F9: B | G9: G | H9: B | I9: G | J9: B | K9: G | L9: B | M9: G | N9: B | O9: G | P9: T | AA9: May | AB9: ebZ | AC9: May | AD9: =AD8 -> 2022 | AE9: =CONCATENATE(AC9,"-",AD9) -> May-2022 | AF9: =CONCATENATE(AB9,"&",AD9) -> ebZ&2022 | AI9: Local Body | AK9: Urban | BA9: BANSWARA | BB9: 3 | BC9: BHINAI | BD9: GOVINDGARH | BE9: BAGIDORA | BF9: BARAN | BG9: BALOTRA | BH9: DEEG | BI9: BADNOR | BJ9: KHAJUWALA | BK9: KESHORAIPATAN | BL9: BENGU | BM9: RAJGARH | BN9: BAIJUPADA | BO9: DHOLPUR | BP9: CHIKHALI | BQ9: NOHAR | BR9: BASSI | BS9: MOHANGARH | BT9: BHINMAL | BU9: BHAWANIMANDI | BV9: CHIRAWA | BW9: BAORI | BX9: MANDRAIL | BY9: LADPURA | BZ9: DEGANA | CA9: JAITARAN | CB9: DALOT | CC9: DEOGARH | CD9: CHOUTHAKA BARWARA | CE9: DHOND | CF9: REODAR | CG9: PADAMPUR | CH9: NIWAI | CI9: FALASIA
B10: DISE Code | C10: 8200303101 | E10: izFke | F10: 2 | G10: 5 | H10: 5 | I10: 4 | J10: 3 | K10: 6 | L10: 5 | M10: 6 | N10: =F10+H10+J10+L10 -> 15 | O10: =G10+I10+K10+M10 -> 21 | P10: =N10+O10 -> 36 | AA10: June | AB10: twu | AC10: June | AD10: =AD9 -> 2022 | AE10: June-2022 | AF10: twu&2022 | AI10: EGS/AIE Centers | AK10: Rural cum Urban | BA10: BARAN | BB10: 4 | BC10: JAWAJA | BD10: KATHUMAR | BE10: BANSWARA | BF10: CHHABRA | BG10: BARMER | BH10: KAMAN | BI10: BIJOLIYA | BJ10: KOLAYAT | BK10: NAINWA | BL10: BHAINSROADGARH | BM10: RATANGARH | BN10: DAUSA | BO10: RAJAKHERA | BP10: DOWRA | BQ10: PILIBANGA | BR10: CHAKSU | BS10: NACHNA | BT10: CHITALWANA | BU10: DAG | BV10: JHUNJHUNU | BW10: BAP | BX10: MASALPUR | BY10: SANGOD | BZ10: JAYAL | CA10: MARWAR JUNCTION | CB10: DHARIAWAD | CC10: DELWADA | CD10: GANGAPUR CITY | CE10: FATEHPUR | CF10: SHIVGANJ | CG10: RAISINGHNAGAR | CH10: PIPALU | CI10: GIRWA
B11: M.D.M. Code | C11: 1009 | E11: f}rh; | F11: 12 | G11: 11 | H11: 10 | I11: 9 | J11: 8 | K11: 10 | L11: 8 | M11: 7 | N11: =F11+H11+J11+L11 -> 38 | O11: =G11+I11+K11+M11 -> 37 | P11: =N11+O11 -> 75 | AA11: July | AB11: tqykbZ | AC11: July | AD11: 2022 | AE11: July-2022 | AF11: tqykbZ&2022 | AI11: NCLP | BA11: BARMER | BB11: 5 | BC11: KEKARI | BD11: KISHANGARH BAS | BE11: CHOTISARVAN | BF11: CHHIPABAROD | BG11: BARMER GRAMIN | BH11: KUMHER | BI11: HURDA | BJ11: LUNKARANSAR | BK11: TALERA | BL11: BHOPAL SAGAR | BM11: SARDARSHAHAR | BN11: LALSOT | BO11: SAIPAU | BP11: DUNGARPUR | BQ11: RAWATSAR | BR11: DUDU | BS11: JAISALMER | BT11: JALORE | BU11: JHALARAPATAN | BV11: KHETRI | BW11: BAPINI | BX11: NADOTI | BY11: SULTANPUR | BZ11: KHINVSAR | CA11: PALI | CB11: DHAMOTTAR | CC11: KHAMNOR | CD11: KHANDAR | CE11: KHANDELA | CF11: SIROHI | CG11: SARDULSHAHAR | CH11: TODARAISINGH | CI11: GOGUNDA
B12: Village/ward | C12: BAR | E12: r`rh; | F12: 8 | G12: 9 | H12: 2 | I12: 8 | J12: 23 | K12: 20 | L12: 11 | M12: 4 | N12: 44 | O12: 41 | P12: 85 | AA12: August | AB12: vxLr | AC12: August | AD12: 2022 | AE12: August-2022 | AF12: vxLr&2022 | AI12: Madarsa/ Maqtab | BA12: BHARATPUR | BB12: 6 | BC12: KISHANGARH | BD12: KOTKASIM | BE12: GANGARTALAI | BF12: KISHANGANJ | BG12: CHOHTAN | BH12: NADBAI | BI12: JAHAJPUR | BJ12: NOKHA | BL12: CHITTORGARH | BM12: SUJANGARH | BN12: LAWAN | BO12: SARAMATHURA | BP12: GALIAKOT | BQ12: SANGRIYA | BR12: GOVINDGARH | BS12: SAM | BT12: JASWANTPURA | BU12: KHANPUR | BV12: MANDAWA | BW12: BHOPALGARH | BX12: SAPOTRA | BZ12: KUCHAMAN CITY | CA12: RAIPUR | CB12: PIPALKHOONT | CC12: KUMBHALGARH | CD12: MALARNA DUNGAR | CE12: LAXMANGARH | CG12: SRI GANGANAGAR | CH12: TONK | CI12: JAISAMAND
B13: xzke iapk;r dk uke %& | C13: cj | E13: prqFkZ | F13: 8 | G13: 9 | H13: 7 | I13: 6 | J13: 7 | K13: 8 | L13: 9 | M13: 5 | N13: 31 | O13: 28 | P13: 59 | AA13: September | AB13: flrEcj | AC13: September | AD13: 2022 | AE13: September-2022 | AF13: flrEcj&2022 | BA13: BHILWARA | BB13: 7 | BC13: MASUDA | BD13: LAKSHMANGARH | BE13: GARHI | BF13: MANGROL | BG13: DHANAU | BH13: NAGAR | BI13: KOTRI | BJ13: PANCHOO | BL13: DUNGLA | BM13: TARANAGAR | BN13: MAHWA | BP13: JONTHARI | BQ13: TIBBI | BR13: JALSU | BS13: SANKARA | BT13: RANIWARA | BU13: MANOHARTHANA | BV13: NAWALGARH | BW13: BILARA | BX13: SHRIMAHAVEERJI | BZ13: LADNUN | CA13: RANI | CB13: PRATAPGARH | CC13: RAJSAMAND | CD13: SAWAI MADHOPUR | CE13: NEEM KA THANA | CG13: SHRIKARANPUR | CH13: UNIARA | CI13: JHADOL
B14: CykWd@lfefr %& | C14: jk;iqj | E14: iape~ | F14: 3 | G14: 6 | H14: 9 | I14: 4 | J14: 3 | K14: 2 | L14: 1 | M14: 6 | N14: 16 | O14: 18 | P14: 34 | AA14: October | AB14: vDVqcj | AC14: October | AD14: 2022 | AE14: October-2022 | AF14: vDVqcj&2022 | BA14: BIKANER | BB14: 8 | BC14: PISANGAN | BD14: MALAKHERA | BE14: GHATOLE | BF14: SHAHBAD | BG14: DHORIMANA | BH14: PAHADI | BI14: KAREDA | BJ14: PUNGAL | BL14: GANGRAR | BN14: NANGAL RAJAWATAN | BP14: SAABLA | BR14: JAMWARAMGARH | BT14: SANCHORE | BU14: PIDAWA | BV14: PILANI | BW14: CHAMU | BX14: TODABHIM | BZ14: MAKRANA | CA14: ROHAT | CB14: SUHAGPURA | CC14: RELMAGRA | CE14: NECHHWA | CG14: SURATGARH | CI14: JHALARA
B15: school Type :- | C15: Government | E15: ;ksx | F15: =SUM(F10:F14) -> 33 | G15: =SUM(G10:G14) -> 40 | H15: 33 | I15: 31 | J15: 44 | K15: 46 | L15: 34 | M15: 28 | N15: 144 | O15: 145 | P15: 289 | AA15: November | AB15: uoEcj | AC15: November | AD15: 2022 | AE15: November-2022 | AF15: uoEcj&2022 | BA15: BUNDI | BB15: 9 | BC15: SARWAD | BD15: MUNDAWAR | BE15: KUSHALGARH | BG15: GADRAROAD | BH15: ROOPWAS | BI15: MANDAL | BJ15: SHRI DUNGARGARH | BL15: KAPASAN | BN15: RAMGARH PACHWARA | BP15: SANGWARA | BR15: JHOTWARA | BT15: SHARNAU | BV15: SINGHANA | BW15: DECHU | BZ15: MERTA CITY | CA15: SOJAT | CE15: PALSANA | CG15: VIJAYNAGAR | CI15: KHAIRWARA
B16: {ks= %& | C16: Rural | E16: "k"Ve~ | F16: 4 | G16: 5 | H16: 6 | I16: 7 | J16: 8 | K16: 9 | L16: 8 | M16: 9 | N16: =F16+H16+J16+L16 -> 26 | O16: =G16+I16+K16+M16 -> 30 | P16: =N16+O16 -> 56 | AA16: December | AB16: fnlEcj | AC16: December | AD16: 2022 | AE16: December-2022 | AF16: fnlEcj&2022 | BA16: CHITTORGARH | BB16: 10 | BC16: SAWAR | BD16: NEEMRANA | BE16: SAJJANGARH | BG16: GIDA | BH16: SEWAR | BI16: MANDALGARH | BL16: NIMBAHERA | BN16: SIKRAI | BP16: SIMALWARA | BR16: JOBNER | BT16: SAYLA | BV16: SURAJGARH | BW16: DHAWA | BZ16: MOLASAR | CA16: SUMERPUR | CE16: PATAN | CI16: KOTRA
B17: State :- | C17: Rajasthan | E17: lIre~ | F17: 15 | G17: 14 | H17: 13 | I17: 12 | J17: 11 | K17: 10 | L17: 11 | M17: 10 | N17: 50 | O17: 46 | P17: 96 | AA17: January | AB17: tuojh | AC17: January | AD17: =H4 -> 2023 | AE17: January-2023 | AF17: tuojh &2023 | BA17: CHURU | BB17: 11 | BC17: SRINAGAR | BD17: RAINI | BE17: TALWARA | BG17: GUDHAMALANI | BH17: UCHCHAIN | BI17: RAIPUR | BL17: RASHMI | BN17: SIKANDARA | BR17: KOTPUTALI | BV17: UDAIPURWATI | BW17: GHANTIYALI | BZ17: MUNDWA | CE17: PIPARALI | CI17: KURABAD
B18: District :- | C18: PALI | E18: v"Ve~ | F18: 9 | G18: 8 | H18: 5 | I18: 14 | J18: 3 | K18: 3 | L18: 3 | M18: 10 | N18: 20 | O18: 35 | P18: 55 | AA18: Febuary | AB18: Qjojh | AC18: February | AD18: =AD17 -> 2023 | AE18: February-2023 | AF18: Qjojh&2023 | BA18: DAUSA | BB18: 12 | BD18: RAJGARH | BG18: KALYANPUR | BH18: WEIR | BI18: SAHADA | BR18: KOTKHAVDA | BW18: KERU | BZ18: NAGOUR | CE18: SHRIMADOPUR | CI18: LASADIA
B19: Block :- | C19: RAIPUR | E19: ;ksx | F19: =SUM(F16:F18) -> 28 | G19: =SUM(G16:G18) -> 27 | H19: 24 | I19: 33 | J19: 22 | K19: 22 | L19: 22 | M19: 29 | N19: 96 | O19: 111 | P19: 207 | AA19: March | AB19: ekpZ | AC19: March | AD19: 2023 | AE19: March-2023 | AF19: ekpZ&2023 | BA19: DHOLPUR | BB19: 13 | BD19: RAMGARH | BG19: PATODI | BI19: SHAHPURA | BR19: KISHANGARH RENWAL | BW19: LOHAWAT | BZ19: NAWAN | CI19: MAOLI
B20: Month :- | C20: July-2022 | E20: Ekgk;ksx | F20: =SUM(F15+F19) -> 61 | G20: =SUM(G15+G19) -> 67 | H20: 57 | I20: 64 | J20: 66 | K20: 68 | L20: 56 | M20: 57 | N20: 240 | O20: 256 | P20: 496 | BA20: DUNGARPUR | BB20: 14 | BD20: THANAGAZI | BG20: PAYALAKALAN | BI20: SUWANA | BR20: MOJMABAD | BW20: LUNI | BZ20: PARBATSAR | CI20: NAYAGAON
BA21: HANUMANGARH | BB21: 15 | BD21: TIZARA | BG21: PHAGLIYA | BR21: MADHORAJPURA | BW21: MANDORE | BZ21: RIYAN BADI | CI21: RISHABHDEV
BA22: JAIPUR | BB22: 16 | BD22: UMRAIN | BG22: RAMSAR | BR22: PAWTA | BW22: OSIAN | CI22: SALUMBAR
B23: fujh{k.k dk fooj.k la[;k | F23: fdpu 'ksM dh fLFkfr | N23: is;ty lqfo/kk ¼gs.MiEi½ | BA23: JAISALMER | BB23: 17 | BG23: SAMDARI | BR23: PHAGI | BW23: PHALODI | CI23: SARADA
B24: tuizfrfuf/k }kjk | D24: vf/kdkfj;ksa }kjk | F24: Mh-ih-bZ-ih- }kjk | H24: ,l-th-vkj-okbZ }kjk | J24: vkn'kZ jlksbZ?kj | L24: ,e-Mh-,e- ;kstuk }kjk | N24: pkyw | O24: [kjkc | P24: udkjk | BA24: JALORE | BB24: 18 | BG24: SEDHWA | BR24: SAMBHARLAKE | BW24: PIPADSHAHAR | CI24: SAYARA
B25: 'kkSpky; gS ;k ugh | F25: iw.kZ | G25: viw.kZ | H25: iw.kZ | I25: viw.kZ | J25: iw.kZ | K25: viw.kZ | L25: iw.kZ | M25: viw.kZ | BA25: JHALAWAR | BB25: 19 | BG25: SHIV | BR25: SANGANER | BW25: SHEKHALA | CI25: SEMARI
B26: Nk= | D26: Nk=k | BA26: JHUNJHUNU | BB26: 20 | BG26: SINDHARI | BR26: SHAHPURA | BW26: SHERGARH | CI26: VALLABHNAGAR
B27: vk;ksftr cSBd ,l-,elh- ¼fnuakd ½ | D27: 2022-03-08 | E27: [kk|kUu lqjf{kr j[kus ds crZu la[;k | I27: 5 | K27: ekg ds vUr rd dqy [kkyh cksfj;kW dh la[;k | P27: 2 | BA27: JODHPUR | BB27: 21 | BG27: SIWANA | BR27: TUNGA | BW27: TINWARI
B28: rjktq gS ;k ugh | E28: jsEi gS ugh | I28: pkj fnokjh gS ;k ugh | AF28: TRUE | AG28: TRUE | AH28: TRUE | AI28: TRUE | AJ28: TRUE | AK28: TRUE | AL28: TRUE | AM28: TRUE | AN28: TRUE | AO28: TRUE | AP28: TRUE | BA28: KARAULI | BB28: 22 | BR28: VIRATNAGAR
C29: dUotZu dh nj izfr Nk= | E29: Bank Name :- | G29: SBI BAR | BA29: KOTA
B30: çkFkfed d{kk,a ¼ 1 ls 5 ½ | C30: 4.97 | E30: IFSC Code :- | G30: SBIN0033382 | K30: You Tube Video Link :- | N30: https://youtu.be/Ep7yiDA2qr4 | Z30: 30 | AA30: 69.25 | AB30: =Z30*AA30 -> 2077.5 | AF30: FALSE | AG30: TRUE | AH30: FALSE | AI30: TRUE | AJ30: FALSE | AK30: FALSE | AL30: TRUE | AM30: FALSE | BA30: NAGOUR | BC30: =COUNTA(BC7:BC29) -> 11 | BD30: =COUNTA(BD7:BD29)+BC30 -> 27 | BE30: =COUNTA(BE7:BE29)+BD30 -> 38 | BF30: 46 | BG30: 67 | BH30: 79 | BI30: 93 | BJ30: 102 | BK30: 107 | BL30: 118 | BM30: 125 | BN30: 136 | BO30: 142 | BP30: 152 | BQ30: 159 | BR30: 181 | BS30: 188 | BT30: 198 | BU30: 206 | BV30: 217 | BW30: 238 | BX30: 246 | BY30: 251 | BZ30: 266 | CA30: 276 | CB30: 284 | CC30: 292 | CD30: 299 | CE30: 311 | CF30: 316 | CG30: 325 | CH30: 332 | CI30: 352
B31: mPp çkFkfed d{kk,a ¼ 6 ls 8 ½ | C31: 7.45 | E31: A/C. No. :- | G31: 51022334455 | Z31: 30 | AA31: 67.25 | AB31: =Z31*AA31 -> 2017.5 | AF31: FALSE | AG31: TRUE | AH31: TRUE | AI31: FALSE | AJ31: FALSE | AK31: TRUE | AL31: TRUE | AM31: FALSE | BA31: PALI
Z32: 10 | AA32: 118.25 | AB32: 1182.5 | AF32: FALSE | AG32: FALSE | AH32: FALSE | AI32: FALSE | AJ32: FALSE | AK32: FALSE | AL32: FALSE | AM32: FALSE | BA32: PRATAPGARH
Z33: 30 | AA33: 156.25 | AB33: 4687.5 | AF33: FALSE | AG33: FALSE | AH33: FALSE | AI33: FALSE | AJ33: FALSE | AK33: FALSE | AL33: TRUE | AM33: FALSE | BA33: RAJSAMAND
B34: S.No. | C34: Name | E34: Gender | H34: Category | M34: Mode of Payment | P34: Amount Received During the Month | Z34: 30 | AA34: 212.5 | AB34: 6375 | BA34: SAWAI_MADHOPUR
B35: 1 | C35: Dhagalai Devi | P35: 1320 | AB35: 0 | BA35: SIKAR
B36: 2 | C36: Geeta Devi | P36: 1320 | Z36: 30 | AA36: 113.5 | AB36: 3405 | AF36: FALSE | AG36: FALSE | AH36: FALSE | AI36: FALSE | AJ36: TRUE | AK36: FALSE | AL36: TRUE | AM36: FALSE | AN36: TRUE | AO36: FALSE | AP36: FALSE | BA36: SIROHI
B37: 3 | AB37: =SUM(AB30:AB34)-AB36 -> 12935 | AF37: TRUE | AG37: FALSE | AH37: TRUE | AI37: FALSE | AJ37: TRUE | AK37: FALSE | BA37: SRI_GANGANAGAR
B38: 4 | AH38: TRUE | AI38: TRUE | BA38: TONK
BA39: UDAIPUR
AF40: TRUE | AG40: FALSE
AF41: FALSE | AG41: FALSE
AF42: FALSE | AG42: TRUE

Sheet Prarmbhik Shesh
A4: Sr. No. | B4: Detail | D4: Class 1 to 5 | F4: Class 6 to 8
A7: 1 | B7: izkjfEHkd 'ks"k [kk|kUu ¼fdyksaxzke esa½ | C7: xsgqa | D7: 300.000 | F7: 250.000
C8: pkoy | D8: 200.000 | F8: 150.000
A9: 2 | B9: dqfdax dUotZu foÙrh; fLFkfr ¼:i;ksa esa½ | C9: izkjfEHkd 'ks"k | D9: 10000.00 | F9: 15000.00
C10: bl ekg esa izkIRk jkf'k | D10: 0.00 | F10: 0.00
C11: dqy jkf'k | D11: =D9+D10 -> 10000.00 | F11: =F9+F10 -> 15000.00
C12: O;; jkf'k | D12: ='PS Balance Sheet'!W37 -> 2445.24 | F12: ='UPS balance Sheet'!W37 -> 2898.05
C13: 'ks"k jkf'k | D13: =D11-D12 -> 7554.76 | F13: =F11-F12 -> 12101.95
A14: 3 | B14: dqd&de gsYij foÙrh; fLFkfr ¼:i;ksa esa½ | C14: izkjfEHkd 'ks"k | D14: 2000 | F14: 2000
C15: bl ekg esa izkIRk jkf'k | D15: 6000 | F15: 6000
C16: dqy jkf'k | D16: =D14+D15 -> 8000 | F16: =F14+F15 -> 8000
C17: O;; jkf'k
C18: 'ks"k jkf'k | D18: =D16-D17 -> 8000 | F18: =F16-F17 -> 8000

Sheet Att. Dairy
A1: fo|ky; ds ykHkkfUor fo|kfFkZ;ksa dh fnukadokj lwpuk jftLV~zj ¼mifLFkfr jftLVj½ | K1: ekg %& | M1: =IF('MASTER DATA'!C20="","",'MASTER DATA'!C20) -> July-2022
A2: Ø- l- | B2: frfFk | C2: ;fn ehuw ds vuqlkj [kk|kUu miyC/k u gks rks tks Hkh [kk|kUu miyC/k gks] mls Mkmu fyLV esa ls lysDV djsaA vU;Fkk dkWye [kkyh j[ksaA | D2: d{kk F | E2: fnukadokj dqy ukekadu | K2: iks"kkgkj ls ykHkkfUor | AB2: =IF('MASTER DATA'!C20="","",'MASTER DATA'!C20) -> July-2022 | AC2: =DATEVALUE("1"&AB2) -> 2022-07-01 | AE2: =EOMONTH(AC2,0) -> 2022-07-31
E3: Class 1 to 5 | H3: Class 6 to 8 | K3: 1 to 5 | N3: 6 to 8 | Q3: G. Total
B4: H | D4: ukekadu F | E4: B | F4: G | G4: T | H4: B | I4: G | J4: T | K4: B | L4: G | M4: T | N4: B | O4: G | P4: T
D5: okj H | E5: ='MASTER DATA'!N15 -> 144 | F5: ='MASTER DATA'!O15 -> 145 | G5: =E5+F5 -> 289 | H5: ='MASTER DATA'!N19 -> 96 | I5: ='MASTER DATA'!O19 -> 111 | J5: =H5+I5 -> 207 | K5: ='MASTER DATA'!N15 -> 144 | L5: ='MASTER DATA'!O15 -> 145 | M5: =SUM(K5+L5) -> 289 | N5: ='MASTER DATA'!N19 -> 96 | O5: ='MASTER DATA'!O19 -> 111 | P5: =SUM(N5+O5) -> 207 | Q5: =M5+P5 -> 496
A6: 1 | B6: =IFERROR(AC2,"") -> 2022-07-01 | D6: =IF(T6=1,"Sunday",IF(T6=2,"Monday",IF(T6=3,"Tuesday",IF(T6=4,"Wednesday",IF(T6=5,"Thursday",IF(T6=6,"Friday",IF(T6=7,"Saturday"," "))))))) -> Friday | E6: 123 | F6: 124 | G6: =IF(AND(E6="",F6=""),"",SUM(E6,F6)) -> 247 | H6: 90 | I6: 110 | J6: =IF(AND(H6="",I6=""),"",SUM(H6,I6)) -> 200 | K6: 123 | L6: 123 | M6: =IF(AND(K6="",L6=""),"",SUM(K6,L6)) -> 246 | N6: 90 | O6: 109 | P6: =IF(AND(N6="",O6=""),"",SUM(N6,O6)) -> 199 | Q6: =IF(AND(M6="",P6=""),"",SUM(M6,P6)) -> 445 | T6: =IF(AND(B6=""),"",SUM(U6)) -> 6 | U6: =IFERROR(WEEKDAY(B6),"") -> 6
A7: 2 | B7: =IF(B6="","",IF(B6<$AE$2,B6+1,"")) -> 2022-07-02 | D7: =IF(T7=1,"Sunday",IF(T7=2,"Monday",IF(T7=3,"Tuesday",IF(T7=4,"Wednesday",IF(T7=5,"Thursday",IF(T7=6,"Friday",IF(T7=7,"Saturday"," "))))))) -> Saturday | E7: 123 | F7: 123 | G7: =IF(AND(E7="",F7=""),"",SUM(E7,F7)) -> 246 | H7: 90 | I7: 100 | J7: =IF(AND(H7="",I7=""),"",SUM(H7,I7)) -> 190 | K7: 123 | L7: 123 | M7: =IF(AND(K7="",L7=""),"",SUM(K7,L7)) -> 246 | N7: 90 | O7: 100 | P7: =IF(AND(N7="",O7=""),"",SUM(N7,O7)) -> 190 | Q7: =IF(AND(M7="",P7=""),"",SUM(M7,P7)) -> 436 | T7: =IF(AND(B7=""),"",SUM(U7)) -> 7 | U7: =IFERROR(WEEKDAY(B7),"") -> 7 | V7: JAN | AB7: 2022-01-01
A8: 3 | B8: =IF(B7="","",IF(B7<$AE$2,B7+1,"")) -> 2022-07-03 | D8: =IF(T8=1,"Sunday",IF(T8=2,"Monday",IF(T8=3,"Tuesday",IF(T8=4,"Wednesday",IF(T8=5,"Thursday",IF(T8=6,"Friday",IF(T8=7,"Saturday"," "))))))) -> Sunday | T8: 1 | U8: 1 | V8: FEB | AB8: 2022-02-01
A9: 4 | B9: 2022-07-04 | D9: Monday | T9: 2 | U9: 2 | V9: MAR | X9: Sunday | AB9: 2022-03-01
A10: 5 | B10: 2022-07-05 | D10: Tuesday | M10: =IF(AND(K10="",L10=""),"",SUM(K10,L10)) ->  | T10: 3 | U10: 3 | V10: APR | X10: Monday | AB10: 2022-04-01
A11: 6 | B11: 2022-07-06 | D11: =IF(T11=1,"Sunday",IF(T11=2,"Monday",IF(T11=3,"Tuesday",IF(T11=4,"Wednesday",IF(T11=5,"Thursday",IF(T11=6,"Friday",IF(T11=7,"Saturday"," "))))))) -> Wednesday | T11: 4 | U11: 4 | V11: MAY | X11: Tuesday | AB11: 2022-05-01
A12: 7 | B12: 2022-07-07 | D12: =IF(T12=1,"Sunday",IF(T12=2,"Monday",IF(T12=3,"Tuesday",IF(T12=4,"Wednesday",IF(T12=5,"Thursday",IF(T12=6,"Friday",IF(T12=7,"Saturday"," "))))))) -> Thursday | T12: 5 | U12: 5 | V12: JUN | X12: Wednesday | AB12: 2022-06-01
A13: 8 | B13: 2022-07-08 | D13: Friday | T13: 6 | U13: 6 | V13: JUL | X13: Thursday | AB13: 2022-07-01
A14: 9 | B14: 2022-07-09 | D14: Saturday | Q14: =IF(AND(M14="",P14=""),"",SUM(M14,P14)) ->  | T14: 7 | U14: 7 | V14: AUG | X14: Friday | AB14: 2022-08-01
A15: 10 | B15: 2022-07-10 | D15: =IF(T15=1,"Sunday",IF(T15=2,"Monday",IF(T15=3,"Tuesday",IF(T15=4,"Wednesday",IF(T15=5,"Thursday",IF(T15=6,"Friday",IF(T15=7,"Saturday"," "))))))) -> Sunday | T15: 1 | U15: 1 | V15: SEP | X15: Saturday | AB15: 2022-09-01
A16: 11 | B16: 2022-07-11 | D16: Monday | T16: 2 | U16: 2 | V16: OCT | AB16: 2022-10-01
A17: 12 | B17: 2022-07-12 | D17: Tuesday | T17: 3 | U17: 3 | V17: NOV | AB17: 2022-11-01
A18: 13 | B18: 2022-07-13 | D18: Wednesday | T18: 4 | U18: 4 | V18: DEC | AB18: 2022-12-01
A19: 14 | B19: 2022-07-14 | D19: Thursday | T19: 5 | U19: 5 | AB19: 2023-01-01
A20: 15 | B20: 2022-07-15 | D20: Friday | T20: 6 | U20: 6 | X20: Wheat | AB20: 2023-02-01
A21: 16 | B21: 2022-07-16 | D21: Saturday | T21: 7 | U21: 7 | X21: Rice
A22: 17 | B22: 2022-07-17 | D22: Sunday | T22: 1 | U22: 1
A23: 18 | B23: 2022-07-18 | D23: Monday | T23: 2 | U23: 2
A24: 19 | B24: 2022-07-19 | D24: Tuesday | T24: 3 | U24: 3
A25: 20 | B25: 2022-07-20 | D25: Wednesday | T25: 4 | U25: 4
A26: 21 | B26: 2022-07-21 | D26: Thursday | T26: 5 | U26: 5
A27: 22 | B27: 2022-07-22 | D27: Friday | T27: 6 | U27: 6
A28: 23 | B28: 2022-07-23 | D28: Saturday | T28: 7 | U28: 7
A29: 24 | B29: 2022-07-24 | D29: Sunday | T29: 1 | U29: 1
A30: 25 | B30: 2022-07-25 | D30: Monday | T30: 2 | U30: 2
A31: 26 | B31: 2022-07-26 | D31: Tuesday | T31: 3 | U31: 3
A32: 27 | B32: 2022-07-27 | D32: Wednesday | T32: 4 | U32: 4
A33: 28 | B33: 2022-07-28 | D33: Thursday | T33: 5 | U33: 5
A34: 29 | B34: 2022-07-29 | D34: Friday | T34: 6 | U34: 6
A35: 30 | B35: 2022-07-30 | D35: Saturday | T35: 7 | U35: 7
A36: 31 | B36: 2022-07-31 | D36: =IF(T36=1,"Sunday",IF(T36=2,"Monday",IF(T36=3,"Tuesday",IF(T36=4,"Wednesday",IF(T36=5,"Thursday",IF(T36=6,"Friday",IF(T36=7,"Saturday"," "))))))) -> Sunday | T36: 1 | U36: 1
C37: Total | E37: =SUM(E6:E36) -> 246 | F37: =SUM(F6:F36) -> 247 | G37: 493 | H37: 180 | I37: 210 | J37: 390 | K37: 246 | L37: 246 | M37: 492 | N37: 180 | O37: 209 | P37: 389 | Q37: 881
K38: PS | N38: UPS
D39: iks"kkgkj ls ykHkkfUor fnuksa dh la[;k & | K39: =COUNTA(M6:M36)-COUNTIF(M6:M36,"0")-COUNTIF(M6:M36,"blank")-COUNTIF(M6:M36,"") -> 2 | N39: =COUNTA(P6:P36)-COUNTIF(P6:P36,"0")-COUNTIF(P6:P36,"blank")-COUNTIF(P6:P36,"") -> 2
Q40: =COUNTA(Q6:Q36)-COUNTIF(Q6:Q36,"0")-COUNTIF(Q6:Q36,"blank")-COUNTIF(Q6:Q36,"") -> 2
K42: =COUNTA(G6:G36)-COUNTIF(G6:G36,"0")-COUNTIF(G6:G36,"blank")-COUNTIF(G6:G36,"") -> 2 | N42: =COUNTA(J6:J36)-COUNTIF(J6:J36,"0")-COUNTIF(J6:J36,"blank")-COUNTIF(J6:J36,"") -> 2

Sheet PS Balance Sheet
B1: Presented By:- | E1: Mr. HeeraLaL Jat Sojat (PALI) | P1: =CONCATENATE('MASTER DATA'!I4, 'MASTER DATA'!J4) -> ekg %&tqykbZ&2022 | AA1: ='MASTER DATA'!C30 -> 4.97 | AC1: =AC7=IF(AND('MASTER DATA'!C18="Rural"),'MASTER DATA'!I31,'MASTER DATA'!I30) -> TRUE
B2: fnukad | C2: çkjfEHkd [kk|ku o nky dh ek=k fdyks xzke esa | E2: forj.k drkZ ls çkIr [kk|ku fdyks xzke esa | G2: vU;= lzksr ls m/kkj fy;k@fn;k¼fdxzk½ | I2: vU; fo|ky; ls m/kkj fy;k@fn;k¼fdxzk½ | K2: dqy [kk|ku | M2: dqy ukekadu d{kk 1 ls 5 | P2: dqy ykHkkfUor Nk=@Nk=k d{kk 1 ls 5 | S2: ekg esa mi;ksx fy;k x;k izfrfnu [kk|ku | U2: 'ks"k [kk|ku | W2: ekg esa izfrfnu dUotZu ij O;; jkf'k | X2: feuw ds vuqlkj Hkkstu | CS2: fnukad | CT2: çkjfEHkd [kk|ku dh ek=k fdyks xzke esa | CV2: forj.k drkZ ls çkIr [kk|ku fdyks xzke esa | CX2: vU;= lzksr ls m/kkj fy;k@fn;k¼fdxzk½ | CZ2: vU;= fo|ky; ls m/kkj fy;k@fn;k¼fdxzk½ | DB2: dqy [kk|ku | DD2: dqy ukekadu d{kk 1 ls 5 | DG2: dqy ykHkkfUor Nk=@Nk=k d{kk 1 ls 5 | DJ2: ekg esa mi;ksx fy;k x;k izfrfnu [kk|ku | DL2: 'ks"k [kk|ku | DN2: ekg esa izfrfnu dUotZu ij O;; jkf'k | DO2: feuw ds vuqlkj Hkkstu
G4: m/kkj nsus ij¼&½fpUg yxk, | I4: m/kkj nsus ij¼&½fpUg yxk,
A5: Sr. | C5: xsagw | D5: pkoy | E5: xsagw | F5: pkoy | G5: xsagw | H5: pkoy | I5: xsagw | J5: pkoy | K5: xsagw | L5: pkoy | M5: Nk= | N5: Nk=k | O5: dqy | P5: Nk= | Q5: Nk=k | R5: dqy | S5: xsagw | T5: pkoy | U5: xsagw | V5: pkoy | AF5: Wheat/Rice | AX5: Wheat/Rice | AY5: Wheat/Rice | CT5: xsagw | CU5: pkoy | CV5: xsagw | CW5: pkoy | CX5: xsagw | CY5: pkoy | CZ5: xsagw | DA5: pkoy | DB5: xsagw | DC5: pkoy | DD5: Nk= | DE5: Nk=k | DF5: ;ksx | DG5: Nk= | DH5: Nk=k | DI5: ;ksx | DJ5: xsagw | DK5: pkoy | DL5: xsagw | DM5: pkoy
A6: 1 | B6: =IF(AND('Att. Dairy'!B6=""),"",'Att. Dairy'!B6) -> 2022-07-01 | C6: ='Prarmbhik Shesh'!D7 -> 300.000 | D6: ='Prarmbhik Shesh'!D8 -> 200.000 | K6: =IFERROR(IF(AND(C6=""),"",SUM(C6,E6,G6,I6)),"") -> 300.000 | L6: =IFERROR(IF(AND(D6=""),"",SUM(D6,F6,H6,J6)),"") -> 200.000 | M6: =IF(OR('Att. Dairy'!E6="",R6=0,R6=""),"",'Att. Dairy'!E6) -> 123 | N6: =IF(OR('Att. Dairy'!F6="",R6=0,R6=""),"",'Att. Dairy'!F6) -> 124 | O6: =SUM(M6,N6) -> 247 | P6: =IF(AND('Att. Dairy'!K6=""),"",'Att. Dairy'!K6) -> 123 | Q6: =IF(AND('Att. Dairy'!L6=""),"",'Att. Dairy'!L6) -> 123 | R6: =SUM(P6,Q6) -> 246 | S6: =IF(AND(R6=""),0,IF(AND(AY6="w"),R6*100/1000,0)) -> 24.600 | T6: =IF(AND(R6=""),0,IF(AND(AY6="R"),R6*100/1000,0)) -> 0.000 | U6: =SUM(K6-S6) -> 275.400 | V6: =(L6-T6) -> 200.000 | W6: =IFERROR(IF(AND('Att. Dairy'!B6=""),"",IF(AND(X6="vodk'k"),"",IF(AND(R6=""),"",R6*$AA$1))),"") -> 1222.62 | X6: =IF(AND('Att. Dairy'!B6=""),"",IF(AND(P6=""),"",AH6)) -> nkyjksVh | AE6: =IF(AND('Att. Dairy'!C6=""),"",'Att. Dairy'!C6) ->  | AF6: =IF(AND(AE6=""),"",IF(AE6="Rice","R",IF(AE6="Wheat","W"))) ->  | AG6: =IF(AND('Att. Dairy'!D6=""),"",'Att. Dairy'!D6) -> Friday | AH6: =IF(OR(AG6=0,AG6=""),"",IF(AG6="tuesday","nkypkoy",IF(AG6="thursday","f[kpM+h",IF(OR(AG6="monday",AG6="saturday"),"lCthjksVh",IF(OR(AG6="wednesday",AG6="friday"),"nkyjksVh","vodk'k"))))) -> nkyjksVh | AX6: =IF(OR(AG6=0,AG6=""),"",IF(AG6="tuesday","R",IF(AG6="thursday","R",IF(OR(AG6="monday",AG6="saturday"),"W",IF(OR(AG6="wednesday",AG6="friday"),"W"))))) -> W | AY6: =IF(AND(AE6=""),AX6,AF6) -> W | CS6: =IF(AND(B6=""),"",B6) -> 2022-07-01 | CT6: =IF(OR(C6="",C6=0),"",C6) -> 300.00 | CU6: =IF(OR(D6="",D6=0),"",D6) -> 200.00 | CX6: =IF(OR(G6="",G6=0),"",G6) ->  | CY6: =IF(OR(H6="",H6=0),"",H6) ->  | CZ6: =IF(OR(I6="",I6=0),"",I6) ->  | DA6: =IF(OR(J6="",J6=0),"",J6) ->  | DB6: =IF(OR(K6="",K6=0,DI7=""),"",K6) -> 300.00 | DC6: =IF(OR(L6="",L6=0,DI7=""),"",L6) -> 200.00 | DD6: =IF(OR(M6="",M6=0),"",M6) -> 123 | DE6: =IF(OR(N6="",N6=0),"",N6) -> 124 | DF6: 247 | DG6: 123 | DH6: 123 | DI6: 246 | DJ6: =IF(OR(S6="",S6=0),"",S6) -> 25 | DK6: =IF(OR(T6="",T6=0),"",T6) ->  | DL6: =IF(OR(U6="",U6=0,DI7=""),"",U6) -> 275.400 | DM6: =IF(OR(V6="",V6=0,DI7=""),"",V6) -> 200.000 | DN6: =IF(OR(W6="",W6=0),"",W6) -> 1223 | DO6: =IF(OR(X6="",X6=0),"",X6) -> nkyjksVh
A7: 2 | B7: =IF(AND('Att. Dairy'!B7=""),"",'Att. Dairy'!B7) -> 2022-07-02 | C7: =IFERROR(IF(AND(U6=""),"",U6),"") -> 275.400 | D7: =IFERROR(IF(AND(V6=""),"",V6),"") -> 200.000 | K7: =IFERROR(IF(AND(C7=""),"",SUM(C7,E7,G7,I7)),"") -> 275.400 | L7: =IFERROR(IF(AND(D7=""),"",SUM(D7,F7,H7,J7)),"") -> 200.000 | M7: =IF(OR('Att. Dairy'!E7="",R7=0,R7=""),"",'Att. Dairy'!E7) -> 123 | N7: =IF(OR('Att. Dairy'!F7="",R7=0,R7=""),"",'Att. Dairy'!F7) -> 123 | O7: =SUM(M7,N7) -> 246 | P7: =IF(AND('Att. Dairy'!K7=""),"",'Att. Dairy'!K7) -> 123 | Q7: =IF(AND('Att. Dairy'!L7=""),"",'Att. Dairy'!L7) -> 123 | R7: =SUM(P7,Q7) -> 246 | S7: =IF(AND(R7=""),0,IF(AND(AY7="w"),R7*100/1000,0)) -> 24.600 | T7: =IF(AND(R7=""),0,IF(AND(AY7="R"),R7*100/1000,0)) -> 0.000 | U7: =SUM(K7-S7) -> 250.800 | V7: =(L7-T7) -> 200.000 | W7: =IFERROR(IF(AND('Att. Dairy'!B7=""),"",IF(AND(X7="vodk'k"),"",IF(AND(R7=""),"",R7*$AA$1))),"") -> 1222.62 | X7: =IF(AND('Att. Dairy'!B7=""),"",IF(AND(P7=""),"",AH7)) -> lCthjksVh | AE7: =IF(AND('Att. Dairy'!C7=""),"",'Att. Dairy'!C7) ->  | AF7: =IF(AND(AE7=""),"",IF(AE7="Rice","R",IF(AE7="Wheat","W"))) ->  | AG7: =IF(AND('Att. Dairy'!D7=""),"",'Att. Dairy'!D7) -> Saturday | AH7: =IF(OR(AG7=0,AG7=""),"",IF(AG7="tuesday","nkypkoy",IF(AG7="thursday","f[kpM+h",IF(OR(AG7="monday",AG7="saturday"),"lCthjksVh",IF(OR(AG7="wednesday",AG7="friday"),"nkyjksVh","vodk'k"))))) -> lCthjksVh | AX7: =IF(OR(AG7=0,AG7=""),"",IF(AG7="tuesday","R",IF(AG7="thursday","R",IF(OR(AG7="monday",AG7="saturday"),"W",IF(OR(AG7="wednesday",AG7="friday"),"W"))))) -> W | AY7: W | CS7: =IF(AND(B7=""),"",B7) -> 2022-07-02 | CT7: =IF(OR(C7="",C7=0,DI7=""),"",C7) -> 275.40 | CU7: =IF(OR(D7="",D7=0,DI7=""),"",D7) -> 200.00 | CV7: =IF(OR(E7="",E7=0),"",E7) ->  | CW7: =IF(OR(F7="",F7=0),"",F7) ->  | CX7: =IF(OR(G7="",G7=0),"",G7) ->  | CY7: =IF(OR(H7="",H7=0),"",H7) ->  | CZ7: =IF(OR(I7="",I7=0),"",I7) ->  | DA7: =IF(OR(J7="",J7=0),"",J7) ->  | DB7: =IF(OR(K7="",K7=0,DI7=""),"",K7) -> 275.40 | DC7: =IF(OR(L7="",L7=0,DI7=""),"",L7) -> 200.00 | DD7: =IF(OR(M7="",M7=0),"",M7) -> 123 | DE7: =IF(OR(N7="",N7=0),"",N7) -> 123 | DF7: =IF(OR(O7="",O7=0),"",O7) -> 246 | DG7: =IF(OR(P7="",P7=0),"",P7) -> 123 | DH7: =IF(OR(Q7="",Q7=0),"",Q7) -> 123 | DI7: =IF(OR(R7="",R7=0),"",R7) -> 246 | DJ7: =IF(OR(S7="",S7=0),"",S7) -> 25 | DK7: =IF(OR(T7="",T7=0),"",T7) ->  | DL7: =IF(OR(U7="",U7=0,DI7=""),"",U7) -> 250.800 | DM7: =IF(OR(V7="",V7=0,DI7=""),"",V7) -> 200.000 | DN7: =IF(OR(W7="",W7=0),"",W7) -> 1223 | DO7: =IF(OR(X7="",X7=0),"",X7) -> lCthjksVh
A8: 3 | B8: =IF(AND('Att. Dairy'!B8=""),"",'Att. Dairy'!B8) -> 2022-07-03 | C8: =IFERROR(IF(AND(U7=""),"",U7),"") -> 250.800 | D8: =IFERROR(IF(AND(V7=""),"",V7),"") -> 200.000 | K8: 250.800 | L8: 200.000 | M8: =IF(OR('Att. Dairy'!E8="",R8=0,R8=""),"",'Att. Dairy'!E8) ->  | N8: =IF(OR('Att. Dairy'!F8="",R8=0,R8=""),"",'Att. Dairy'!F8) ->  | O8: 0 | P8: =IF(AND('Att. Dairy'!K8=""),"",'Att. Dairy'!K8) ->  | Q8: =IF(AND('Att. Dairy'!L8=""),"",'Att. Dairy'!L8) ->  | R8: 0 | S8: 0.000 | T8: 0.000 | U8: 250.800 | V8: 200.000 | W8: =IFERROR(IF(AND('Att. Dairy'!B8=""),"",IF(AND(X8="vodk'k"),"",IF(AND(R8=""),"",R8*$AA$1))),"") -> 0.00 | X8: =IF(AND('Att. Dairy'!B8=""),"",IF(AND(P8=""),"",AH8)) ->  | AE8: =IF(AND('Att. Dairy'!C8=""),"",'Att. Dairy'!C8) ->  | AG8: =IF(AND('Att. Dairy'!D8=""),"",'Att. Dairy'!D8) -> Sunday | AH8: vodk'k | AX8: FALSE | AY8: FALSE | CS8: 2022-07-03 | CT8: =IF(OR(C8="",C8=0,DI8=""),"",C8) ->  | CU8: =IF(OR(D8="",D8=0,DI8=""),"",D8) ->  | DB8: =IF(OR(K8="",K8=0,DI8=""),"",K8) ->  | DC8: =IF(OR(L8="",L8=0,DI8=""),"",L8) ->  | DL8: =IF(OR(U8="",U8=0,DI8=""),"",U8) ->  | DM8: =IF(OR(V8="",V8=0,DI8=""),"",V8) -> 
A9: 4 | B9: =IF(AND('Att. Dairy'!B9=""),"",'Att. Dairy'!B9) -> 2022-07-04 | C9: 250.800 | D9: 200.000 | K9: 250.800 | L9: 200.000 | M9: =IF(OR('Att. Dairy'!E9="",R9=0,R9=""),"",'Att. Dairy'!E9) ->  | N9: =IF(OR('Att. Dairy'!F9="",R9=0,R9=""),"",'Att. Dairy'!F9) ->  | O9: 0 | P9: =IF(AND('Att. Dairy'!K9=""),"",'Att. Dairy'!K9) ->  | Q9: =IF(AND('Att. Dairy'!L9=""),"",'Att. Dairy'!L9) ->  | R9: 0 | S9: 0.000 | T9: 0.000 | U9: 250.800 | V9: 200.000 | W9: =IFERROR(IF(AND('Att. Dairy'!B9=""),"",IF(AND(X9="vodk'k"),"",IF(AND(R9=""),"",R9*$AA$1))),"") -> 0.00 | X9: =IF(AND('Att. Dairy'!B9=""),"",IF(AND(P9=""),"",AH9)) ->  | AE9: =IF(AND('Att. Dairy'!C9=""),"",'Att. Dairy'!C9) ->  | AG9: =IF(AND('Att. Dairy'!D9=""),"",'Att. Dairy'!D9) -> Monday | AH9: lCthjksVh | AX9: W | AY9: W | CS9: 2022-07-04
A10: 5 | B10: =IF(AND('Att. Dairy'!B10=""),"",'Att. Dairy'!B10) -> 2022-07-05 | C10: 250.800 | D10: 200.000 | K10: 250.800 | L10: 200.000 | M10: =IF(OR('Att. Dairy'!E10="",R10=0,R10=""),"",'Att. Dairy'!E10) ->  | N10: =IF(OR('Att. Dairy'!F10="",R10=0,R10=""),"",'Att. Dairy'!F10) ->  | O10: 0 | P10: =IF(AND('Att. Dairy'!K10=""),"",'Att. Dairy'!K10) ->  | Q10: =IF(AND('Att. Dairy'!L10=""),"",'Att. Dairy'!L10) ->  | R10: 0 | S10: 0.000 | T10: 0.000 | U10: 250.800 | V10: 200.000 | W10: =IFERROR(IF(AND('Att. Dairy'!B10=""),"",IF(AND(X10="vodk'k"),"",IF(AND(R10=""),"",R10*$AA$1))),"") -> 0.00 | X10: =IF(AND('Att. Dairy'!B10=""),"",IF(AND(P10=""),"",AH10)) ->  | AE10: =IF(AND('Att. Dairy'!C10=""),"",'Att. Dairy'!C10) ->  | AG10: =IF(AND('Att. Dairy'!D10=""),"",'Att. Dairy'!D10) -> Tuesday | AH10: nkypkoy | AK10: YES | AX10: R | AY10: R | CS10: 2022-07-05
A11: 6 | B11: =IF(AND('Att. Dairy'!B11=""),"",'Att. Dairy'!B11) -> 2022-07-06 | C11: 250.800 | D11: 200.000 | K11: 250.800 | L11: 200.000 | M11: =IF(OR('Att. Dairy'!E11="",R11=0,R11=""),"",'Att. Dairy'!E11) ->  | N11: =IF(OR('Att. Dairy'!F11="",R11=0,R11=""),"",'Att. Dairy'!F11) ->  | O11: 0 | P11: =IF(AND('Att. Dairy'!K11=""),"",'Att. Dairy'!K11) ->  | Q11: =IF(AND('Att. Dairy'!L11=""),"",'Att. Dairy'!L11) ->  | R11: 0 | S11: 0.000 | T11: 0.000 | U11: 250.800 | V11: 200.000 | W11: =IFERROR(IF(AND('Att. Dairy'!B11=""),"",IF(AND(X11="vodk'k"),"",IF(AND(R11=""),"",R11*$AA$1))),"") -> 0.00 | X11: =IF(AND('Att. Dairy'!B11=""),"",IF(AND(P11=""),"",AH11)) ->  | AE11: =IF(AND('Att. Dairy'!C11=""),"",'Att. Dairy'!C11) ->  | AG11: =IF(AND('Att. Dairy'!D11=""),"",'Att. Dairy'!D11) -> Wednesday | AH11: =IF(OR(AG11=0,AG11=""),"",IF(AG11="tuesday","nkypkoy",IF(AG11="thursday","f[kpM+h",IF(OR(AG11="monday",AG11="saturday"),"lCthjksVh",IF(OR(AG11="wednesday",AG11="friday"),"nkyjksVh","vodk'k"))))) -> nkyjksVh | AK11: NO | AX11: W | AY11: W | CS11: 2022-07-06
A12: 7 | B12: =IF(AND('Att. Dairy'!B12=""),"",'Att. Dairy'!B12) -> 2022-07-07 | C12: 250.800 | D12: 200.000 | K12: 250.800 | L12: 200.000 | M12: =IF(OR('Att. Dairy'!E12="",R12=0,R12=""),"",'Att. Dairy'!E12) ->  | N12: =IF(OR('Att. Dairy'!F12="",R12=0,R12=""),"",'Att. Dairy'!F12) ->  | O12: 0 | P12: =IF(AND('Att. Dairy'!K12=""),"",'Att. Dairy'!K12) ->  | Q12: =IF(AND('Att. Dairy'!L12=""),"",'Att. Dairy'!L12) ->  | R12: 0 | S12: 0.000 | T12: 0.000 | U12: 250.800 | V12: 200.000 | W12: =IFERROR(IF(AND('Att. Dairy'!B12=""),"",IF(AND(X12="vodk'k"),"",IF(AND(R12=""),"",R12*$AA$1))),"") -> 0.00 | X12: =IF(AND('Att. Dairy'!B12=""),"",IF(AND(P12=""),"",AH12)) ->  | AE12: =IF(AND('Att. Dairy'!C12=""),"",'Att. Dairy'!C12) ->  | AG12: =IF(AND('Att. Dairy'!D12=""),"",'Att. Dairy'!D12) -> Thursday | AH12: f[kpM+h | AX12: R | AY12: R | CS12: 2022-07-07
A13: 8 | B13: =IF(AND('Att. Dairy'!B13=""),"",'Att. Dairy'!B13) -> 2022-07-08 | C13: 250.800 | D13: 200.000 | K13: 250.800 | L13: 200.000 | M13: =IF(OR('Att. Dairy'!E13="",R13=0,R13=""),"",'Att. Dairy'!E13) ->  | N13: =IF(OR('Att. Dairy'!F13="",R13=0,R13=""),"",'Att. Dairy'!F13) ->  | O13: 0 | P13: =IF(AND('Att. Dairy'!K13=""),"",'Att. Dairy'!K13) ->  | Q13: =IF(AND('Att. Dairy'!L13=""),"",'Att. Dairy'!L13) ->  | R13: 0 | S13: 0.000 | T13: 0.000 | U13: 250.800 | V13: 200.000 | W13: =IFERROR(IF(AND('Att. Dairy'!B13=""),"",IF(AND(X13="vodk'k"),"",IF(AND(R13=""),"",R13*$AA$1))),"") -> 0.00 | X13: =IF(AND('Att. Dairy'!B13=""),"",IF(AND(P13=""),"",AH13)) ->  | AE13: =IF(AND('Att. Dairy'!C13=""),"",'Att. Dairy'!C13) ->  | AG13: =IF(AND('Att. Dairy'!D13=""),"",'Att. Dairy'!D13) -> Friday | AH13: nkyjksVh | AX13: W | AY13: W | CS13: 2022-07-08 | CX13: =IF(OR(G13="",G13=0),"",G13) -> 
A14: 9 | B14: =IF(AND('Att. Dairy'!B14=""),"",'Att. Dairy'!B14) -> 2022-07-09 | C14: 250.800 | D14: 200.000 | K14: 250.800 | L14: 200.000 | M14: =IF(OR('Att. Dairy'!E14="",R14=0,R14=""),"",'Att. Dairy'!E14) ->  | N14: =IF(OR('Att. Dairy'!F14="",R14=0,R14=""),"",'Att. Dairy'!F14) ->  | O14: 0 | P14: =IF(AND('Att. Dairy'!K14=""),"",'Att. Dairy'!K14) ->  | Q14: =IF(AND('Att. Dairy'!L14=""),"",'Att. Dairy'!L14) ->  | R14: 0 | S14: 0.000 | T14: 0.000 | U14: 250.800 | V14: 200.000 | W14: =IFERROR(IF(AND('Att. Dairy'!B14=""),"",IF(AND(X14="vodk'k"),"",IF(AND(R14=""),"",R14*$AA$1))),"") -> 0.00 | X14: =IF(AND('Att. Dairy'!B14=""),"",IF(AND(P14=""),"",AH14)) ->  | AE14: =IF(AND('Att. Dairy'!C14=""),"",'Att. Dairy'!C14) ->  | AG14: =IF(AND('Att. Dairy'!D14=""),"",'Att. Dairy'!D14) -> Saturday | AH14: lCthjksVh | AX14: W | AY14: W | CS14: 2022-07-09
A15: 10 | B15: =IF(AND('Att. Dairy'!B15=""),"",'Att. Dairy'!B15) -> 2022-07-10 | C15: 250.800 | D15: 200.000 | K15: 250.800 | L15: 200.000 | M15: =IF(OR('Att. Dairy'!E15="",R15=0,R15=""),"",'Att. Dairy'!E15) ->  | N15: =IF(OR('Att. Dairy'!F15="",R15=0,R15=""),"",'Att. Dairy'!F15) ->  | O15: 0 | P15: =IF(AND('Att. Dairy'!K15=""),"",'Att. Dairy'!K15) ->  | Q15: =IF(AND('Att. Dairy'!L15=""),"",'Att. Dairy'!L15) ->  | R15: 0 | S15: 0.000 | T15: 0.000 | U15: 250.800 | V15: 200.000 | W15: =IFERROR(IF(AND('Att. Dairy'!B15=""),"",IF(AND(X15="vodk'k"),"",IF(AND(R15=""),"",R15*$AA$1))),"") -> 0.00 | X15: =IF(AND('Att. Dairy'!B15=""),"",IF(AND(P15=""),"",AH15)) ->  | AE15: =IF(AND('Att. Dairy'!C15=""),"",'Att. Dairy'!C15) ->  | AG15: =IF(AND('Att. Dairy'!D15=""),"",'Att. Dairy'!D15) -> Sunday | AH15: vodk'k | AX15: FALSE | AY15: FALSE | CS15: 2022-07-10
A16: 11 | B16: =IF(AND('Att. Dairy'!B16=""),"",'Att. Dairy'!B16) -> 2022-07-11 | C16: 250.800 | D16: 200.000 | K16: 250.800 | L16: 200.000 | M16: =IF(OR('Att. Dairy'!E16="",R16=0,R16=""),"",'Att. Dairy'!E16) ->  | N16: =IF(OR('Att. Dairy'!F16="",R16=0,R16=""),"",'Att. Dairy'!F16) ->  | O16: 0 | P16: =IF(AND('Att. Dairy'!K16=""),"",'Att. Dairy'!K16) ->  | Q16: =IF(AND('Att. Dairy'!L16=""),"",'Att. Dairy'!L16) ->  | R16: 0 | S16: 0.000 | T16: 0.000 | U16: 250.800 | V16: 200.000 | W16: =IFERROR(IF(AND('Att. Dairy'!B16=""),"",IF(AND(X16="vodk'k"),"",IF(AND(R16=""),"",R16*$AA$1))),"") -> 0.00 | X16: =IF(AND('Att. Dairy'!B16=""),"",IF(AND(P16=""),"",AH16)) ->  | AE16: =IF(AND('Att. Dairy'!C16=""),"",'Att. Dairy'!C16) ->  | AG16: =IF(AND('Att. Dairy'!D16=""),"",'Att. Dairy'!D16) -> Monday | AH16: lCthjksVh | AX16: W | AY16: W | CS16: 2022-07-11
A17: 12 | B17: =IF(AND('Att. Dairy'!B17=""),"",'Att. Dairy'!B17) -> 2022-07-12 | C17: 250.800 | D17: 200.000 | K17: 250.800 | L17: 200.000 | M17: =IF(OR('Att. Dairy'!E17="",R17=0,R17=""),"",'Att. Dairy'!E17) ->  | N17: =IF(OR('Att. Dairy'!F17="",R17=0,R17=""),"",'Att. Dairy'!F17) ->  | O17: 0 | P17: =IF(AND('Att. Dairy'!K17=""),"",'Att. Dairy'!K17) ->  | Q17: =IF(AND('Att. Dairy'!L17=""),"",'Att. Dairy'!L17) ->  | R17: 0 | S17: 0.000 | T17: 0.000 | U17: 250.800 | V17: 200.000 | W17: =IFERROR(IF(AND('Att. Dairy'!B17=""),"",IF(AND(X17="vodk'k"),"",IF(AND(R17=""),"",R17*$AA$1))),"") -> 0.00 | X17: =IF(AND('Att. Dairy'!B17=""),"",IF(AND(P17=""),"",AH17)) ->  | AE17: =IF(AND('Att. Dairy'!C17=""),"",'Att. Dairy'!C17) ->  | AG17: =IF(AND('Att. Dairy'!D17=""),"",'Att. Dairy'!D17) -> Tuesday | AH17: nkypkoy | AX17: R | AY17: R | CS17: 2022-07-12
A18: 13 | B18: =IF(AND('Att. Dairy'!B18=""),"",'Att. Dairy'!B18) -> 2022-07-13 | C18: 250.800 | D18: 200.000 | K18: 250.800 | L18: 200.000 | M18: =IF(OR('Att. Dairy'!E18="",R18=0,R18=""),"",'Att. Dairy'!E18) ->  | N18: =IF(OR('Att. Dairy'!F18="",R18=0,R18=""),"",'Att. Dairy'!F18) ->  | O18: 0 | P18: =IF(AND('Att. Dairy'!K18=""),"",'Att. Dairy'!K18) ->  | Q18: =IF(AND('Att. Dairy'!L18=""),"",'Att. Dairy'!L18) ->  | R18: 0 | S18: 0.000 | T18: 0.000 | U18: 250.800 | V18: 200.000 | W18: =IFERROR(IF(AND('Att. Dairy'!B18=""),"",IF(AND(X18="vodk'k"),"",IF(AND(R18=""),"",R18*$AA$1))),"") -> 0.00 | X18: =IF(AND('Att. Dairy'!B18=""),"",IF(AND(P18=""),"",AH18)) ->  | AE18: =IF(AND('Att. Dairy'!C18=""),"",'Att. Dairy'!C18) ->  | AG18: =IF(AND('Att. Dairy'!D18=""),"",'Att. Dairy'!D18) -> Wednesday | AH18: nkyjksVh | AX18: W | AY18: W | CS18: 2022-07-13
A19: 14 | B19: =IF(AND('Att. Dairy'!B19=""),"",'Att. Dairy'!B19) -> 2022-07-14 | C19: 250.800 | D19: 200.000 | K19: 250.800 | L19: 200.000 | M19: =IF(OR('Att. Dairy'!E19="",R19=0,R19=""),"",'Att. Dairy'!E19) ->  | N19: =IF(OR('Att. Dairy'!F19="",R19=0,R19=""),"",'Att. Dairy'!F19) ->  | O19: 0 | P19: =IF(AND('Att. Dairy'!K19=""),"",'Att. Dairy'!K19) ->  | Q19: =IF(AND('Att. Dairy'!L19=""),"",'Att. Dairy'!L19) ->  | R19: 0 | S19: 0.000 | T19: 0.000 | U19: 250.800 | V19: 200.000 | W19: =IFERROR(IF(AND('Att. Dairy'!B19=""),"",IF(AND(X19="vodk'k"),"",IF(AND(R19=""),"",R19*$AA$1))),"") -> 0.00 | X19: =IF(AND('Att. Dairy'!B19=""),"",IF(AND(P19=""),"",AH19)) ->  | AE19: =IF(AND('Att. Dairy'!C19=""),"",'Att. Dairy'!C19) ->  | AG19: =IF(AND('Att. Dairy'!D19=""),"",'Att. Dairy'!D19) -> Thursday | AH19: f[kpM+h | AX19: R | AY19: R | CS19: 2022-07-14
A20: 15 | B20: =IF(AND('Att. Dairy'!B20=""),"",'Att. Dairy'!B20) -> 2022-07-15 | C20: 250.800 | D20: 200.000 | K20: 250.800 | L20: 200.000 | M20: =IF(OR('Att. Dairy'!E20="",R20=0,R20=""),"",'Att. Dairy'!E20) ->  | N20: =IF(OR('Att. Dairy'!F20="",R20=0,R20=""),"",'Att. Dairy'!F20) ->  | O20: 0 | P20: =IF(AND('Att. Dairy'!K20=""),"",'Att. Dairy'!K20) ->  | Q20: =IF(AND('Att. Dairy'!L20=""),"",'Att. Dairy'!L20) ->  | R20: 0 | S20: 0.000 | T20: 0.000 | U20: 250.800 | V20: 200.000 | W20: =IFERROR(IF(AND('Att. Dairy'!B20=""),"",IF(AND(X20="vodk'k"),"",IF(AND(R20=""),"",R20*$AA$1))),"") -> 0.00 | X20: =IF(AND('Att. Dairy'!B20=""),"",IF(AND(P20=""),"",AH20)) ->  | AE20: =IF(AND('Att. Dairy'!C20=""),"",'Att. Dairy'!C20) ->  | AG20: =IF(AND('Att. Dairy'!D20=""),"",'Att. Dairy'!D20) -> Friday | AH20: nkyjksVh | AX20: W | AY20: W | CS20: 2022-07-15
A21: 16 | B21: =IF(AND('Att. Dairy'!B21=""),"",'Att. Dairy'!B21) -> 2022-07-16 | C21: 250.800 | D21: 200.000 | K21: 250.800 | L21: 200.000 | M21: =IF(OR('Att. Dairy'!E21="",R21=0,R21=""),"",'Att. Dairy'!E21) ->  | N21: =IF(OR('Att. Dairy'!F21="",R21=0,R21=""),"",'Att. Dairy'!F21) ->  | O21: 0 | P21: =IF(AND('Att. Dairy'!K21=""),"",'Att. Dairy'!K21) ->  | Q21: =IF(AND('Att. Dairy'!L21=""),"",'Att. Dairy'!L21) ->  | R21: 0 | S21: 0.000 | T21: 0.000 | U21: 250.800 | V21: 200.000 | W21: =IFERROR(IF(AND('Att. Dairy'!B21=""),"",IF(AND(X21="vodk'k"),"",IF(AND(R21=""),"",R21*$AA$1))),"") -> 0.00 | X21: =IF(AND('Att. Dairy'!B21=""),"",IF(AND(P21=""),"",AH21)) ->  | AE21: =IF(AND('Att. Dairy'!C21=""),"",'Att. Dairy'!C21) ->  | AG21: =IF(AND('Att. Dairy'!D21=""),"",'Att. Dairy'!D21) -> Saturday | AH21: lCthjksVh | AX21: W | AY21: W | CS21: 2022-07-16
A22: 17 | B22: =IF(AND('Att. Dairy'!B22=""),"",'Att. Dairy'!B22) -> 2022-07-17 | C22: 250.800 | D22: 200.000 | K22: 250.800 | L22: 200.000 | M22: =IF(OR('Att. Dairy'!E22="",R22=0,R22=""),"",'Att. Dairy'!E22) ->  | N22: =IF(OR('Att. Dairy'!F22="",R22=0,R22=""),"",'Att. Dairy'!F22) ->  | O22: 0 | P22: =IF(AND('Att. Dairy'!K22=""),"",'Att. Dairy'!K22) ->  | Q22: =IF(AND('Att. Dairy'!L22=""),"",'Att. Dairy'!L22) ->  | R22: 0 | S22: 0.000 | T22: 0.000 | U22: 250.800 | V22: 200.000 | W22: =IFERROR(IF(AND('Att. Dairy'!B22=""),"",IF(AND(X22="vodk'k"),"",IF(AND(R22=""),"",R22*$AA$1))),"") -> 0.00 | X22: =IF(AND('Att. Dairy'!B22=""),"",IF(AND(P22=""),"",AH22)) ->  | AE22: =IF(AND('Att. Dairy'!C22=""),"",'Att. Dairy'!C22) ->  | AG22: =IF(AND('Att. Dairy'!D22=""),"",'Att. Dairy'!D22) -> Sunday | AH22: vodk'k | AX22: FALSE | AY22: FALSE | CS22: 2022-07-17
A23: 18 | B23: =IF(AND('Att. Dairy'!B23=""),"",'Att. Dairy'!B23) -> 2022-07-18 | C23: 250.800 | D23: 200.000 | K23: 250.800 | L23: 200.000 | M23: =IF(OR('Att. Dairy'!E23="",R23=0,R23=""),"",'Att. Dairy'!E23) ->  | N23: =IF(OR('Att. Dairy'!F23="",R23=0,R23=""),"",'Att. Dairy'!F23) ->  | O23: 0 | P23: =IF(AND('Att. Dairy'!K23=""),"",'Att. Dairy'!K23) ->  | Q23: =IF(AND('Att. Dairy'!L23=""),"",'Att. Dairy'!L23) ->  | R23: 0 | S23: 0.000 | T23: 0.000 | U23: 250.800 | V23: 200.000 | W23: =IFERROR(IF(AND('Att. Dairy'!B23=""),"",IF(AND(X23="vodk'k"),"",IF(AND(R23=""),"",R23*$AA$1))),"") -> 0.00 | X23: =IF(AND('Att. Dairy'!B23=""),"",IF(AND(P23=""),"",AH23)) ->  | AE23: =IF(AND('Att. Dairy'!C23=""),"",'Att. Dairy'!C23) ->  | AG23: =IF(AND('Att. Dairy'!D23=""),"",'Att. Dairy'!D23) -> Monday | AH23: lCthjksVh | AX23: W | AY23: W | CS23: 2022-07-18
A24: 19 | B24: =IF(AND('Att. Dairy'!B24=""),"",'Att. Dairy'!B24) -> 2022-07-19 | C24: 250.800 | D24: 200.000 | K24: 250.800 | L24: 200.000 | M24: =IF(OR('Att. Dairy'!E24="",R24=0,R24=""),"",'Att. Dairy'!E24) ->  | N24: =IF(OR('Att. Dairy'!F24="",R24=0,R24=""),"",'Att. Dairy'!F24) ->  | O24: 0 | P24: =IF(AND('Att. Dairy'!K24=""),"",'Att. Dairy'!K24) ->  | Q24: =IF(AND('Att. Dairy'!L24=""),"",'Att. Dairy'!L24) ->  | R24: 0 | S24: 0.000 | T24: 0.000 | U24: 250.800 | V24: 200.000 | W24: =IFERROR(IF(AND('Att. Dairy'!B24=""),"",IF(AND(X24="vodk'k"),"",IF(AND(R24=""),"",R24*$AA$1))),"") -> 0.00 | X24: =IF(AND('Att. Dairy'!B24=""),"",IF(AND(P24=""),"",AH24)) ->  | AE24: =IF(AND('Att. Dairy'!C24=""),"",'Att. Dairy'!C24) ->  | AG24: =IF(AND('Att. Dairy'!D24=""),"",'Att. Dairy'!D24) -> Tuesday | AH24: nkypkoy | AX24: R | AY24: R | CS24: 2022-07-19
A25: 20 | B25: =IF(AND('Att. Dairy'!B25=""),"",'Att. Dairy'!B25) -> 2022-07-20 | C25: 250.800 | D25: 200.000 | K25: 250.800 | L25: 200.000 | M25: =IF(OR('Att. Dairy'!E25="",R25=0,R25=""),"",'Att. Dairy'!E25) ->  | N25: =IF(OR('Att. Dairy'!F25="",R25=0,R25=""),"",'Att. Dairy'!F25) ->  | O25: 0 | P25: =IF(AND('Att. Dairy'!K25=""),"",'Att. Dairy'!K25) ->  | Q25: =IF(AND('Att. Dairy'!L25=""),"",'Att. Dairy'!L25) ->  | R25: 0 | S25: 0.000 | T25: 0.000 | U25: 250.800 | V25: 200.000 | W25: =IFERROR(IF(AND('Att. Dairy'!B25=""),"",IF(AND(X25="vodk'k"),"",IF(AND(R25=""),"",R25*$AA$1))),"") -> 0.00 | X25: =IF(AND('Att. Dairy'!B25=""),"",IF(AND(P25=""),"",AH25)) ->  | AE25: =IF(AND('Att. Dairy'!C25=""),"",'Att. Dairy'!C25) ->  | AG25: =IF(AND('Att. Dairy'!D25=""),"",'Att. Dairy'!D25) -> Wednesday | AH25: nkyjksVh | AX25: W | AY25: W | CS25: 2022-07-20
A26: 21 | B26: =IF(AND('Att. Dairy'!B26=""),"",'Att. Dairy'!B26) -> 2022-07-21 | C26: 250.800 | D26: 200.000 | K26: 250.800 | L26: 200.000 | M26: =IF(OR('Att. Dairy'!E26="",R26=0,R26=""),"",'Att. Dairy'!E26) ->  | N26: =IF(OR('Att. Dairy'!F26="",R26=0,R26=""),"",'Att. Dairy'!F26) ->  | O26: 0 | P26: =IF(AND('Att. Dairy'!K26=""),"",'Att. Dairy'!K26) ->  | Q26: =IF(AND('Att. Dairy'!L26=""),"",'Att. Dairy'!L26) ->  | R26: 0 | S26: 0.000 | T26: 0.000 | U26: 250.800 | V26: 200.000 | W26: =IFERROR(IF(AND('Att. Dairy'!B26=""),"",IF(AND(X26="vodk'k"),"",IF(AND(R26=""),"",R26*$AA$1))),"") -> 0.00 | X26: =IF(AND('Att. Dairy'!B26=""),"",IF(AND(P26=""),"",AH26)) ->  | AE26: =IF(AND('Att. Dairy'!C26=""),"",'Att. Dairy'!C26) ->  | AG26: =IF(AND('Att. Dairy'!D26=""),"",'Att. Dairy'!D26) -> Thursday | AH26: f[kpM+h | AX26: R | AY26: R | CS26: 2022-07-21
A27: 22 | B27: =IF(AND('Att. Dairy'!B27=""),"",'Att. Dairy'!B27) -> 2022-07-22 | C27: 250.800 | D27: 200.000 | K27: 250.800 | L27: 200.000 | M27: =IF(OR('Att. Dairy'!E27="",R27=0,R27=""),"",'Att. Dairy'!E27) ->  | N27: =IF(OR('Att. Dairy'!F27="",R27=0,R27=""),"",'Att. Dairy'!F27) ->  | O27: 0 | P27: =IF(AND('Att. Dairy'!K27=""),"",'Att. Dairy'!K27) ->  | Q27: =IF(AND('Att. Dairy'!L27=""),"",'Att. Dairy'!L27) ->  | R27: 0 | S27: 0.000 | T27: 0.000 | U27: 250.800 | V27: 200.000 | W27: =IFERROR(IF(AND('Att. Dairy'!B27=""),"",IF(AND(X27="vodk'k"),"",IF(AND(R27=""),"",R27*$AA$1))),"") -> 0.00 | X27: =IF(AND('Att. Dairy'!B27=""),"",IF(AND(P27=""),"",AH27)) ->  | AE27: =IF(AND('Att. Dairy'!C27=""),"",'Att. Dairy'!C27) ->  | AG27: =IF(AND('Att. Dairy'!D27=""),"",'Att. Dairy'!D27) -> Friday | AH27: nkyjksVh | AX27: W | AY27: W | CS27: 2022-07-22
A28: 23 | B28: =IF(AND('Att. Dairy'!B28=""),"",'Att. Dairy'!B28) -> 2022-07-23 | C28: 250.800 | D28: 200.000 | K28: 250.800 | L28: 200.000 | M28: =IF(OR('Att. Dairy'!E28="",R28=0,R28=""),"",'Att. Dairy'!E28) ->  | N28: =IF(OR('Att. Dairy'!F28="",R28=0,R28=""),"",'Att. Dairy'!F28) ->  | O28: 0 | P28: =IF(AND('Att. Dairy'!K28=""),"",'Att. Dairy'!K28) ->  | Q28: =IF(AND('Att. Dairy'!L28=""),"",'Att. Dairy'!L28) ->  | R28: 0 | S28: 0.000 | T28: 0.000 | U28: 250.800 | V28: 200.000 | W28: =IFERROR(IF(AND('Att. Dairy'!B28=""),"",IF(AND(X28="vodk'k"),"",IF(AND(R28=""),"",R28*$AA$1))),"") -> 0.00 | X28: =IF(AND('Att. Dairy'!B28=""),"",IF(AND(P28=""),"",AH28)) ->  | AE28: =IF(AND('Att. Dairy'!C28=""),"",'Att. Dairy'!C28) ->  | AG28: =IF(AND('Att. Dairy'!D28=""),"",'Att. Dairy'!D28) -> Saturday | AH28: lCthjksVh | AX28: W | AY28: W | CS28: 2022-07-23
A29: 24 | B29: =IF(AND('Att. Dairy'!B29=""),"",'Att. Dairy'!B29) -> 2022-07-24 | C29: 250.800 | D29: 200.000 | K29: 250.800 | L29: 200.000 | M29: =IF(OR('Att. Dairy'!E29="",R29=0,R29=""),"",'Att. Dairy'!E29) ->  | N29: =IF(OR('Att. Dairy'!F29="",R29=0,R29=""),"",'Att. Dairy'!F29) ->  | O29: 0 | P29: =IF(AND('Att. Dairy'!K29=""),"",'Att. Dairy'!K29) ->  | Q29: =IF(AND('Att. Dairy'!L29=""),"",'Att. Dairy'!L29) ->  | R29: 0 | S29: 0.000 | T29: 0.000 | U29: 250.800 | V29: 200.000 | W29: =IFERROR(IF(AND('Att. Dairy'!B29=""),"",IF(AND(X29="vodk'k"),"",IF(AND(R29=""),"",R29*$AA$1))),"") -> 0.00 | X29: =IF(AND('Att. Dairy'!B29=""),"",IF(AND(P29=""),"",AH29)) ->  | AE29: =IF(AND('Att. Dairy'!C29=""),"",'Att. Dairy'!C29) ->  | AG29: =IF(AND('Att. Dairy'!D29=""),"",'Att. Dairy'!D29) -> Sunday | AH29: vodk'k | AX29: FALSE | AY29: FALSE | CS29: 2022-07-24
A30: 25 | B30: =IF(AND('Att. Dairy'!B30=""),"",'Att. Dairy'!B30) -> 2022-07-25 | C30: 250.800 | D30: 200.000 | K30: 250.800 | L30: 200.000 | M30: =IF(OR('Att. Dairy'!E30="",R30=0,R30=""),"",'Att. Dairy'!E30) ->  | N30: =IF(OR('Att. Dairy'!F30="",R30=0,R30=""),"",'Att. Dairy'!F30) ->  | O30: 0 | P30: =IF(AND('Att. Dairy'!K30=""),"",'Att. Dairy'!K30) ->  | Q30: =IF(AND('Att. Dairy'!L30=""),"",'Att. Dairy'!L30) ->  | R30: 0 | S30: 0.000 | T30: 0.000 | U30: 250.800 | V30: 200.000 | W30: =IFERROR(IF(AND('Att. Dairy'!B30=""),"",IF(AND(X30="vodk'k"),"",IF(AND(R30=""),"",R30*$AA$1))),"") -> 0.00 | X30: =IF(AND('Att. Dairy'!B30=""),"",IF(AND(P30=""),"",AH30)) ->  | AE30: =IF(AND('Att. Dairy'!C30=""),"",'Att. Dairy'!C30) ->  | AG30: =IF(AND('Att. Dairy'!D30=""),"",'Att. Dairy'!D30) -> Monday | AH30: lCthjksVh | AX30: W | AY30: W | CS30: 2022-07-25
A31: 26 | B31: =IF(AND('Att. Dairy'!B31=""),"",'Att. Dairy'!B31) -> 2022-07-26 | C31: 250.800 | D31: 200.000 | K31: 250.800 | L31: 200.000 | M31: =IF(OR('Att. Dairy'!E31="",R31=0,R31=""),"",'Att. Dairy'!E31) ->  | N31: =IF(OR('Att. Dairy'!F31="",R31=0,R31=""),"",'Att. Dairy'!F31) ->  | O31: 0 | P31: =IF(AND('Att. Dairy'!K31=""),"",'Att. Dairy'!K31) ->  | Q31: =IF(AND('Att. Dairy'!L31=""),"",'Att. Dairy'!L31) ->  | R31: 0 | S31: 0.000 | T31: 0.000 | U31: 250.800 | V31: 200.000 | W31: =IFERROR(IF(AND('Att. Dairy'!B31=""),"",IF(AND(X31="vodk'k"),"",IF(AND(R31=""),"",R31*$AA$1))),"") -> 0.00 | X31: =IF(AND('Att. Dairy'!B31=""),"",IF(AND(P31=""),"",AH31)) ->  | AE31: =IF(AND('Att. Dairy'!C31=""),"",'Att. Dairy'!C31) ->  | AG31: =IF(AND('Att. Dairy'!D31=""),"",'Att. Dairy'!D31) -> Tuesday | AH31: nkypkoy | AX31: R | AY31: R | CS31: 2022-07-26
A32: 27 | B32: =IF(AND('Att. Dairy'!B32=""),"",'Att. Dairy'!B32) -> 2022-07-27 | C32: 250.800 | D32: 200.000 | K32: 250.800 | L32: 200.000 | M32: =IF(OR('Att. Dairy'!E32="",R32=0,R32=""),"",'Att. Dairy'!E32) ->  | N32: =IF(OR('Att. Dairy'!F32="",R32=0,R32=""),"",'Att. Dairy'!F32) ->  | O32: 0 | P32: =IF(AND('Att. Dairy'!K32=""),"",'Att. Dairy'!K32) ->  | Q32: =IF(AND('Att. Dairy'!L32=""),"",'Att. Dairy'!L32) ->  | R32: 0 | S32: 0.000 | T32: 0.000 | U32: 250.800 | V32: 200.000 | W32: =IFERROR(IF(AND('Att. Dairy'!B32=""),"",IF(AND(X32="vodk'k"),"",IF(AND(R32=""),"",R32*$AA$1))),"") -> 0.00 | X32: =IF(AND('Att. Dairy'!B32=""),"",IF(AND(P32=""),"",AH32)) ->  | AE32: =IF(AND('Att. Dairy'!C32=""),"",'Att. Dairy'!C32) ->  | AG32: =IF(AND('Att. Dairy'!D32=""),"",'Att. Dairy'!D32) -> Wednesday | AH32: nkyjksVh | AX32: W | AY32: W | CS32: 2022-07-27
A33: 28 | B33: =IF(AND('Att. Dairy'!B33=""),"",'Att. Dairy'!B33) -> 2022-07-28 | C33: 250.800 | D33: 200.000 | K33: 250.800 | L33: 200.000 | M33: =IF(OR('Att. Dairy'!E33="",R33=0,R33=""),"",'Att. Dairy'!E33) ->  | N33: =IF(OR('Att. Dairy'!F33="",R33=0,R33=""),"",'Att. Dairy'!F33) ->  | O33: 0 | P33: =IF(AND('Att. Dairy'!K33=""),"",'Att. Dairy'!K33) ->  | Q33: =IF(AND('Att. Dairy'!L33=""),"",'Att. Dairy'!L33) ->  | R33: 0 | S33: 0.000 | T33: 0.000 | U33: 250.800 | V33: 200.000 | W33: =IFERROR(IF(AND('Att. Dairy'!B33=""),"",IF(AND(X33="vodk'k"),"",IF(AND(R33=""),"",R33*$AA$1))),"") -> 0.00 | X33: =IF(AND('Att. Dairy'!B33=""),"",IF(AND(P33=""),"",AH33)) ->  | AE33: =IF(AND('Att. Dairy'!C33=""),"",'Att. Dairy'!C33) ->  | AG33: =IF(AND('Att. Dairy'!D33=""),"",'Att. Dairy'!D33) -> Thursday | AH33: f[kpM+h | AX33: R | AY33: R | CS33: 2022-07-28
A34: 29 | B34: =IF(AND('Att. Dairy'!B34=""),"",'Att. Dairy'!B34) -> 2022-07-29 | C34: 250.800 | D34: 200.000 | K34: 250.800 | L34: 200.000 | M34: =IF(OR('Att. Dairy'!E34="",R34=0,R34=""),"",'Att. Dairy'!E34) ->  | N34: =IF(OR('Att. Dairy'!F34="",R34=0,R34=""),"",'Att. Dairy'!F34) ->  | O34: 0 | P34: =IF(AND('Att. Dairy'!K34=""),"",'Att. Dairy'!K34) ->  | Q34: =IF(AND('Att. Dairy'!L34=""),"",'Att. Dairy'!L34) ->  | R34: 0 | S34: 0.000 | T34: 0.000 | U34: 250.800 | V34: 200.000 | W34: =IFERROR(IF(AND('Att. Dairy'!B34=""),"",IF(AND(X34="vodk'k"),"",IF(AND(R34=""),"",R34*$AA$1))),"") -> 0.00 | X34: =IF(AND('Att. Dairy'!B34=""),"",IF(AND(P34=""),"",AH34)) ->  | AE34: =IF(AND('Att. Dairy'!C34=""),"",'Att. Dairy'!C34) ->  | AG34: =IF(AND('Att. Dairy'!D34=""),"",'Att. Dairy'!D34) -> Friday | AH34: nkyjksVh | AX34: W | AY34: W | CS34: 2022-07-29
A35: 30 | B35: =IF(AND('Att. Dairy'!B35=""),"",'Att. Dairy'!B35) -> 2022-07-30 | C35: 250.800 | D35: 200.000 | K35: 250.800 | L35: 200.000 | M35: =IF(OR('Att. Dairy'!E35="",R35=0,R35=""),"",'Att. Dairy'!E35) ->  | N35: =IF(OR('Att. Dairy'!F35="",R35=0,R35=""),"",'Att. Dairy'!F35) ->  | O35: 0 | P35: =IF(AND('Att. Dairy'!K35=""),"",'Att. Dairy'!K35) ->  | Q35: =IF(AND('Att. Dairy'!L35=""),"",'Att. Dairy'!L35) ->  | R35: 0 | S35: 0.000 | T35: 0.000 | U35: 250.800 | V35: 200.000 | W35: =IFERROR(IF(AND('Att. Dairy'!B35=""),"",IF(AND(X35="vodk'k"),"",IF(AND(R35=""),"",R35*$AA$1))),"") -> 0.00 | X35: =IF(AND('Att. Dairy'!B35=""),"",IF(AND(P35=""),"",AH35)) ->  | AE35: =IF(AND('Att. Dairy'!C35=""),"",'Att. Dairy'!C35) ->  | AG35: =IF(AND('Att. Dairy'!D35=""),"",'Att. Dairy'!D35) -> Saturday | AH35: lCthjksVh | AX35: W | AY35: W | CS35: 2022-07-30
A36: 31 | B36: =IF(AND('Att. Dairy'!B36=""),"",'Att. Dairy'!B36) -> 2022-07-31 | C36: 250.800 | D36: 200.000 | K36: 250.800 | L36: 200.000 | M36: =IF(OR('Att. Dairy'!E36="",R36=0,R36=""),"",'Att. Dairy'!E36) ->  | N36: =IF(OR('Att. Dairy'!F36="",R36=0,R36=""),"",'Att. Dairy'!F36) ->  | O36: 0 | P36: =IF(AND('Att. Dairy'!K36=""),"",'Att. Dairy'!K36) ->  | Q36: =IF(AND('Att. Dairy'!L36=""),"",'Att. Dairy'!L36) ->  | R36: 0 | S36: 0.000 | T36: 0.000 | U36: 250.800 | V36: 200.000 | W36: =IFERROR(IF(AND('Att. Dairy'!B36=""),"",IF(AND(X36="vodk'k"),"",IF(AND(R36=""),"",R36*$AA$1))),"") -> 0.00 | X36: =IF(AND('Att. Dairy'!B36=""),"",IF(AND(P36=""),"",AH36)) ->  | AE36: =IF(AND('Att. Dairy'!C36=""),"",'Att. Dairy'!C36) ->  | AG36: =IF(AND('Att. Dairy'!D36=""),"",'Att. Dairy'!D36) -> Sunday | AH36: vodk'k | AX36: FALSE | AY36: FALSE | CS36: 2022-07-31
C37: dqy | E37: =SUM(E6:E36) -> 0.000 | F37: =SUM(F6:F36) -> 0.000 | G37: =SUM(G6:G36) -> 0.000 | H37: =SUM(H6:H36) -> 0.000 | I37: 0.000 | J37: 0.000 | M37: =SUM(M6:M36) -> 246 | N37: =SUM(N6:N36) -> 247 | O37: 493 | P37: 246 | Q37: 246 | R37: 492 | S37: =SUM(S6:S36) -> 49.200 | T37: =SUM(T6:T36) -> 0.000 | W37: =SUM(W6:W36) -> 2445.24 | AE37: =IF(AND('Att. Dairy'!C37=""),"",'Att. Dairy'!C37) -> Total | AF37: FALSE | AG37: =IF(AND('Att. Dairy'!D37=""),"",'Att. Dairy'!D37) ->  | AY37: FALSE | CV37: =SUM(CV6:CV36) -> 0.00 | CW37: =SUM(CW6:CW36) -> 0.00 | CX37: 0.00 | CY37: 0.00 | CZ37: =SUM(CZ6:CZ36) -> 0.00 | DA37: =SUM(DA6:DA36) -> 0.00 | DD37: =SUM(DD6:DD36) -> 246 | DE37: =SUM(DE6:DE36) -> 247 | DG37: 246 | DH37: 246 | DJ37: =SUM(DJ6:DJ36) -> 49.200 | DK37: =SUM(DK6:DK36) -> 0.000 | DN37: =SUM(DN6:DN36) -> 2445.24
T38: =S37+T37 -> 49.200 | W38: =SUM(#REF!) ->  | AE38: =IF(AND('Att. Dairy'!C38=""),"",'Att. Dairy'!C38) ->  | AW38: 0.000
I39: =G37+I37 -> 0.000 | J39: =H37+J37 -> 0.000 | W39: =#REF! ->  | AE39: =IF(AND('Att. Dairy'!C39=""),"",'Att. Dairy'!C39) ->  | AW39: 0
I40: 0.000 | J40: 0.000 | W40: =SUM(W39-W37+W38) ->  | AE40: =IF(AND('Att. Dairy'!C40=""),"",'Att. Dairy'!C40) ->  | AW40: 0.00
AE41: =IF(AND('Att. Dairy'!#REF!=""),"",'Att. Dairy'!#REF!) -> 
AE42: =IF(AND('Att. Dairy'!#REF!=""),"",'Att. Dairy'!#REF!) -> 
S43: ekg esa çkIr dqy jkf'k | AE43: =IF(AND('Att. Dairy'!#REF!=""),"",'Att. Dairy'!#REF!) -> 
S44: ekg esa O;; dqy jkf'k | AE44: =IF(AND('Att. Dairy'!#REF!=""),"",'Att. Dairy'!#REF!) ->  | AY44: =IF(AND(AU44=""),AX44,AV44) -> 
S45: ekg esa 'ks"k jkf'k | AE45: =IF(AND('Att. Dairy'!C41=""),"",'Att. Dairy'!C41) -> 
S46: ekg esa ykHkfUor fo|kFkhZ | AE46: =IF(AND('Att. Dairy'!C42=""),"",'Att. Dairy'!C42) -> 
AE47: =IF(AND('Att. Dairy'!C43=""),"",'Att. Dairy'!C43) -> 
AE48: =IF(AND('Att. Dairy'!C44=""),"",'Att. Dairy'!C44) -> 

Sheet UPS balance Sheet
B1: Presented By:- | E1: Mr. HeeraLaL Jat Sojat (PALI) | P1: =CONCATENATE('MASTER DATA'!I4, 'MASTER DATA'!J4) -> ekg %&tqykbZ&2022 | AA1: ='MASTER DATA'!C31 -> 7.45 | AC1: =AC7=IF(AND('MASTER DATA'!C18="Rural"),'MASTER DATA'!I31,'MASTER DATA'!I30) -> TRUE
B2: fnukad | C2: çkjfEHkd [kk|ku o nky dh ek=k fdyks xzke esa | E2: forj.k drkZ ls çkIr [kk|ku fdyks xzke esa | G2: vU;= lzksr ls m/kkj fy;k@fn;k¼fdxzk½ | I2: vU; fo|ky; ls m/kkj fy;k@fn;k¼fdxzk½ | K2: dqy [kk|ku | M2: dqy ukekadu d{kk 6 ls 8 | P2: dqy ykHkkfUor Nk=@Nk=k d{kk 6 ls 8 | S2: ekg esa mi;ksx fy;k x;k izfrfnu [kk|ku | U2: 'ks"k [kk|ku | W2: ekg esa izfrfnu dUotZu ij O;; jkf'k | X2: feuw ds vuqlkj Hkkstu | CS2: fnukad | CT2: çkjfEHkd [kk|ku dh ek=k fdyks xzke esa | CV2: forj.k drkZ ls çkIr [kk|ku fdyks xzke esa | CX2: vU;= lzksr ls m/kkj fy;k@fn;k¼fdxzk½ | CZ2: vU;= fo|ky; ls m/kkj fy;k@fn;k¼fdxzk½ | DB2: dqy [kk|ku | DD2: dqy ukekadu d{kk 1 ls 5 | DG2: dqy ykHkkfUor Nk=@Nk=k d{kk 1 ls 5 | DJ2: ekg esa mi;ksx fy;k x;k izfrfnu [kk|ku | DL2: 'ks"k [kk|ku | DN2: ekg esa izfrfnu dUotZu ij O;; jkf'k | DO2: feuw ds vuqlkj Hkkstu
G4: m/kkj nsus ij¼&½fpUg yxk, | I4: m/kkj nsus ij¼&½fpUg yxk,
A5: Sr. | C5: xsagw | D5: pkoy | E5: xsagw | F5: pkoy | G5: xsagw | H5: pkoy | I5: xsagw | J5: pkoy | K5: xsagw | L5: pkoy | M5: Nk= | N5: Nk=k | O5: dqy | P5: Nk= | Q5: Nk=k | R5: dqy | S5: xsagw | T5: pkoy | U5: xsagw | V5: pkoy | AF5: Wheat/Rice | AX5: Wheat/Rice | AY5: Wheat/Rice | CT5: xsagw | CU5: pkoy | CV5: xsagw | CW5: pkoy | CX5: xsagw | CY5: pkoy | CZ5: xsagw | DA5: pkoy | DB5: xsagw | DC5: pkoy | DD5: Nk= | DE5: Nk=k | DF5: ;ksx | DG5: Nk= | DH5: Nk=k | DI5: ;ksx | DJ5: xsagw | DK5: pkoy | DL5: xsagw | DM5: pkoy
A6: 1 | B6: =IF(AND('Att. Dairy'!B6=""),"",'Att. Dairy'!B6) -> 2022-07-01 | C6: ='Prarmbhik Shesh'!F7 -> 250.000 | D6: ='Prarmbhik Shesh'!F8 -> 150.000 | K6: =IFERROR(IF(AND(C6=""),"",SUM(C6,E6,G6,I6)),"") -> 250.000 | L6: =IFERROR(IF(AND(D6=""),"",SUM(D6,F6,H6,J6)),"") -> 150.000 | M6: =IF(OR('Att. Dairy'!H6="",R6=0,R6=""),"",'Att. Dairy'!H6) -> 90 | N6: =IF(OR('Att. Dairy'!I6="",R6=0,R6=""),"",'Att. Dairy'!I6) -> 110 | O6: =SUM(M6,N6) -> 200 | P6: =IF(AND('Att. Dairy'!N6=""),"",'Att. Dairy'!N6) -> 90 | Q6: =IF(AND('Att. Dairy'!O6=""),"",'Att. Dairy'!O6) -> 109 | R6: =SUM(P6,Q6) -> 199 | S6: =IF(AND(R6=""),0,IF(AND(AY6="w"),R6*150/1000,0)) -> 29.850 | T6: =IF(AND(R6=""),0,IF(AND(AY6="R"),R6*150/1000,0)) -> 0.000 | U6: =SUM(K6-S6) -> 220.150 | V6: =(L6-T6) -> 150.000 | W6: =IFERROR(IF(AND('Att. Dairy'!B6=""),"",IF(AND(X6="vodk'k"),"",IF(AND(R6=""),"",R6*$AA$1))),"") -> 1482.55 | X6: =IF(AND('Att. Dairy'!B6=""),"",IF(AND(P6=""),"",AH6)) -> nkyjksVh | AE6: =IF(AND('Att. Dairy'!C6=""),"",'Att. Dairy'!C6) ->  | AF6: =IF(AND(AE6=""),"",IF(AE6="Rice","R",IF(AE6="Wheat","W"))) ->  | AG6: =IF(AND('Att. Dairy'!D6=""),"",'Att. Dairy'!D6) -> Friday | AH6: =IF(OR(AG6=0,AG6=""),"",IF(AG6="tuesday","nkypkoy",IF(AG6="thursday","f[kpM+h",IF(OR(AG6="monday",AG6="saturday"),"lCthjksVh",IF(OR(AG6="wednesday",AG6="friday"),"nkyjksVh","vodk'k"))))) -> nkyjksVh | AX6: =IF(OR(AG6=0,AG6=""),"",IF(AG6="tuesday","R",IF(AG6="thursday","R",IF(OR(AG6="monday",AG6="saturday"),"W",IF(OR(AG6="wednesday",AG6="friday"),"W"))))) -> W | AY6: =IF(AND(AE6=""),AX6,AF6) -> W | CS6: =IF(AND(B6=""),"",B6) -> 2022-07-01 | CT6: =IF(OR(C6="",C6=0),"",C6) -> 250.00 | CU6: =IF(OR(D6="",D6=0),"",D6) -> 150.00 | DB6: =IF(OR(K6="",K6=0,DI7=""),"",K6) -> 250.00 | DC6: =IF(OR(L6="",L6=0,DI7=""),"",L6) -> 150.00 | DD6: =IF(OR(M6="",M6=0),"",M6) -> 90 | DE6: =IF(OR(N6="",N6=0),"",N6) -> 110 | DF6: 200 | DG6: 90 | DH6: 109 | DI6: 199 | DJ6: 30 | DL6: =IF(OR(U6="",U6=0,DI7=""),"",U6) -> 220.150 | DM6: =IF(OR(V6="",V6=0,DI7=""),"",V6) -> 150.000 | DN6: =IF(OR(W6="",W6=0),"",W6) -> 1483 | DO6: nkyjksVh
A7: 2 | B7: =IF(AND('Att. Dairy'!B7=""),"",'Att. Dairy'!B7) -> 2022-07-02 | C7: =IFERROR(IF(AND(U6=""),"",U6),"") -> 220.150 | D7: =IFERROR(IF(AND(V6=""),"",V6),"") -> 150.000 | K7: =IFERROR(IF(AND(C7=""),"",SUM(C7,E7,G7,I7)),"") -> 220.150 | L7: =IFERROR(IF(AND(D7=""),"",SUM(D7,F7,H7,J7)),"") -> 150.000 | M7: =IF(OR('Att. Dairy'!H7="",R7=0,R7=""),"",'Att. Dairy'!H7) -> 90 | N7: =IF(OR('Att. Dairy'!I7="",R7=0,R7=""),"",'Att. Dairy'!I7) -> 100 | O7: =SUM(M7,N7) -> 190 | P7: =IF(AND('Att. Dairy'!N7=""),"",'Att. Dairy'!N7) -> 90 | Q7: =IF(AND('Att. Dairy'!O7=""),"",'Att. Dairy'!O7) -> 100 | R7: =SUM(P7,Q7) -> 190 | S7: =IF(AND(R7=""),0,IF(AND(AY7="w"),R7*150/1000,0)) -> 28.500 | T7: =IF(AND(R7=""),0,IF(AND(AY7="R"),R7*150/1000,0)) -> 0.000 | U7: =SUM(K7-S7) -> 191.650 | V7: =(L7-T7) -> 150.000 | W7: =IFERROR(IF(AND('Att. Dairy'!B7=""),"",IF(AND(X7="vodk'k"),"",IF(AND(R7=""),"",R7*$AA$1))),"") -> 1415.50 | X7: =IF(AND('Att. Dairy'!B7=""),"",IF(AND(P7=""),"",AH7)) -> lCthjksVh | AE7: =IF(AND('Att. Dairy'!C7=""),"",'Att. Dairy'!C7) ->  | AF7: =IF(AND(AE7=""),"",IF(AE7="Rice","R",IF(AE7="Wheat","W"))) ->  | AG7: =IF(AND('Att. Dairy'!D7=""),"",'Att. Dairy'!D7) -> Saturday | AH7: =IF(OR(AG7=0,AG7=""),"",IF(AG7="tuesday","nkypkoy",IF(AG7="thursday","f[kpM+h",IF(OR(AG7="monday",AG7="saturday"),"lCthjksVh",IF(OR(AG7="wednesday",AG7="friday"),"nkyjksVh","vodk'k"))))) -> lCthjksVh | AX7: =IF(OR(AG7=0,AG7=""),"",IF(AG7="tuesday","R",IF(AG7="thursday","R",IF(OR(AG7="monday",AG7="saturday"),"W",IF(OR(AG7="wednesday",AG7="friday"),"W"))))) -> W | AY7: W | CS7: =IF(AND(B7=""),"",B7) -> 2022-07-02 | CT7: =IF(OR(C7="",C7=0,DI7=""),"",C7) -> 220.15 | CU7: =IF(OR(D7="",D7=0,DI7=""),"",D7) -> 150.00 | DB7: =IF(OR(K7="",K7=0,DI7=""),"",K7) -> 220.15 | DC7: =IF(OR(L7="",L7=0,DI7=""),"",L7) -> 150.00 | DD7: =IF(OR(M7="",M7=0),"",M7) -> 90 | DE7: 100 | DF7: =IF(OR(O7="",O7=0),"",O7) -> 190 | DG7: 90 | DH7: 100 | DI7: 190 | DJ7: 29 | DL7: =IF(OR(U7="",U7=0,DI7=""),"",U7) -> 191.650 | DM7: =IF(OR(V7="",V7=0,DI7=""),"",V7) -> 150.000 | DN7: 1416 | DO7: lCthjksVh
A8: 3 | B8: =IF(AND('Att. Dairy'!B8=""),"",'Att. Dairy'!B8) -> 2022-07-03 | C8: =IFERROR(IF(AND(U7=""),"",U7),"") -> 191.650 | D8: =IFERROR(IF(AND(V7=""),"",V7),"") -> 150.000 | K8: 191.650 | L8: 150.000 | M8: =IF(OR('Att. Dairy'!H8="",R8=0,R8=""),"",'Att. Dairy'!H8) ->  | N8: =IF(OR('Att. Dairy'!I8="",R8=0,R8=""),"",'Att. Dairy'!I8) ->  | O8: 0 | P8: =IF(AND('Att. Dairy'!N8=""),"",'Att. Dairy'!N8) ->  | Q8: =IF(AND('Att. Dairy'!O8=""),"",'Att. Dairy'!O8) ->  | R8: 0 | S8: 0.000 | T8: 0.000 | U8: 191.650 | V8: 150.000 | W8: =IFERROR(IF(AND('Att. Dairy'!B8=""),"",IF(AND(X8="vodk'k"),"",IF(AND(R8=""),"",R8*$AA$1))),"") -> 0.00 | X8: =IF(AND('Att. Dairy'!B8=""),"",IF(AND(P8=""),"",AH8)) ->  | AE8: =IF(AND('Att. Dairy'!C8=""),"",'Att. Dairy'!C8) ->  | AG8: =IF(AND('Att. Dairy'!D8=""),"",'Att. Dairy'!D8) -> Sunday | AH8: vodk'k | AX8: FALSE | AY8: FALSE | CS8: 2022-07-03 | CT8: =IF(OR(C8="",C8=0,DI8=""),"",C8) ->  | CU8: =IF(OR(D8="",D8=0,DI8=""),"",D8) ->  | DB8: =IF(OR(K8="",K8=0,DI8=""),"",K8) ->  | DC8: =IF(OR(L8="",L8=0,DI8=""),"",L8) ->  | DL8: =IF(OR(U8="",U8=0,DI8=""),"",U8) ->  | DM8: =IF(OR(V8="",V8=0,DI8=""),"",V8) -> 
A9: 4 | B9: =IF(AND('Att. Dairy'!B9=""),"",'Att. Dairy'!B9) -> 2022-07-04 | C9: 191.650 | D9: 150.000 | K9: =IFERROR(IF(AND(C9=""),"",SUM(C9,E9,G9,I9)),"") -> 191.650 | L9: 150.000 | M9: =IF(OR('Att. Dairy'!H9="",R9=0,R9=""),"",'Att. Dairy'!H9) ->  | N9: =IF(OR('Att. Dairy'!I9="",R9=0,R9=""),"",'Att. Dairy'!I9) ->  | O9: 0 | P9: =IF(AND('Att. Dairy'!N9=""),"",'Att. Dairy'!N9) ->  | Q9: =IF(AND('Att. Dairy'!O9=""),"",'Att. Dairy'!O9) ->  | R9: 0 | S9: 0.000 | T9: 0.000 | U9: 191.650 | V9: 150.000 | W9: =IFERROR(IF(AND('Att. Dairy'!B9=""),"",IF(AND(X9="vodk'k"),"",IF(AND(R9=""),"",R9*$AA$1))),"") -> 0.00 | X9: =IF(AND('Att. Dairy'!B9=""),"",IF(AND(P9=""),"",AH9)) ->  | AE9: =IF(AND('Att. Dairy'!C9=""),"",'Att. Dairy'!C9) ->  | AG9: =IF(AND('Att. Dairy'!D9=""),"",'Att. Dairy'!D9) -> Monday | AH9: lCthjksVh | AX9: W | AY9: W | CS9: 2022-07-04
A10: 5 | B10: =IF(AND('Att. Dairy'!B10=""),"",'Att. Dairy'!B10) -> 2022-07-05 | C10: 191.650 | D10: 150.000 | K10: 191.650 | L10: 150.000 | M10: =IF(OR('Att. Dairy'!H10="",R10=0,R10=""),"",'Att. Dairy'!H10) ->  | N10: =IF(OR('Att. Dairy'!I10="",R10=0,R10=""),"",'Att. Dairy'!I10) ->  | O10: 0 | P10: =IF(AND('Att. Dairy'!N10=""),"",'Att. Dairy'!N10) ->  | Q10: =IF(AND('Att. Dairy'!O10=""),"",'Att. Dairy'!O10) ->  | R10: 0 | S10: 0.000 | T10: 0.000 | U10: 191.650 | V10: 150.000 | W10: =IFERROR(IF(AND('Att. Dairy'!B10=""),"",IF(AND(X10="vodk'k"),"",IF(AND(R10=""),"",R10*$AA$1))),"") -> 0.00 | X10: =IF(AND('Att. Dairy'!B10=""),"",IF(AND(P10=""),"",AH10)) ->  | AE10: =IF(AND('Att. Dairy'!C10=""),"",'Att. Dairy'!C10) ->  | AG10: =IF(AND('Att. Dairy'!D10=""),"",'Att. Dairy'!D10) -> Tuesday | AH10: nkypkoy | AK10: YES | AX10: R | AY10: R | CS10: 2022-07-05
A11: 6 | B11: =IF(AND('Att. Dairy'!B11=""),"",'Att. Dairy'!B11) -> 2022-07-06 | C11: 191.650 | D11: 150.000 | K11: 191.650 | L11: 150.000 | M11: =IF(OR('Att. Dairy'!H11="",R11=0,R11=""),"",'Att. Dairy'!H11) ->  | N11: =IF(OR('Att. Dairy'!I11="",R11=0,R11=""),"",'Att. Dairy'!I11) ->  | O11: 0 | P11: =IF(AND('Att. Dairy'!N11=""),"",'Att. Dairy'!N11) ->  | Q11: =IF(AND('Att. Dairy'!O11=""),"",'Att. Dairy'!O11) ->  | R11: 0 | S11: 0.000 | T11: 0.000 | U11: 191.650 | V11: 150.000 | W11: =IFERROR(IF(AND('Att. Dairy'!B11=""),"",IF(AND(X11="vodk'k"),"",IF(AND(R11=""),"",R11*$AA$1))),"") -> 0.00 | X11: =IF(AND('Att. Dairy'!B11=""),"",IF(AND(P11=""),"",AH11)) ->  | AE11: =IF(AND('Att. Dairy'!C11=""),"",'Att. Dairy'!C11) ->  | AG11: =IF(AND('Att. Dairy'!D11=""),"",'Att. Dairy'!D11) -> Wednesday | AH11: =IF(OR(AG11=0,AG11=""),"",IF(AG11="tuesday","nkypkoy",IF(AG11="thursday","f[kpM+h",IF(OR(AG11="monday",AG11="saturday"),"lCthjksVh",IF(OR(AG11="wednesday",AG11="friday"),"nkyjksVh","vodk'k"))))) -> nkyjksVh | AK11: NO | AX11: W | AY11: W | CS11: 2022-07-06
A12: 7 | B12: =IF(AND('Att. Dairy'!B12=""),"",'Att. Dairy'!B12) -> 2022-07-07 | C12: 191.650 | D12: 150.000 | K12: 191.650 | L12: 150.000 | M12: =IF(OR('Att. Dairy'!H12="",R12=0,R12=""),"",'Att. Dairy'!H12) ->  | N12: =IF(OR('Att. Dairy'!I12="",R12=0,R12=""),"",'Att. Dairy'!I12) ->  | O12: 0 | P12: =IF(AND('Att. Dairy'!N12=""),"",'Att. Dairy'!N12) ->  | Q12: =IF(AND('Att. Dairy'!O12=""),"",'Att. Dairy'!O12) ->  | R12: 0 | S12: 0.000 | T12: 0.000 | U12: 191.650 | V12: 150.000 | W12: =IFERROR(IF(AND('Att. Dairy'!B12=""),"",IF(AND(X12="vodk'k"),"",IF(AND(R12=""),"",R12*$AA$1))),"") -> 0.00 | X12: =IF(AND('Att. Dairy'!B12=""),"",IF(AND(P12=""),"",AH12)) ->  | AE12: =IF(AND('Att. Dairy'!C12=""),"",'Att. Dairy'!C12) ->  | AG12: =IF(AND('Att. Dairy'!D12=""),"",'Att. Dairy'!D12) -> Thursday | AH12: f[kpM+h | AX12: R | AY12: R | CS12: 2022-07-07
A13: 8 | B13: =IF(AND('Att. Dairy'!B13=""),"",'Att. Dairy'!B13) -> 2022-07-08 | C13: 191.650 | D13: 150.000 | K13: 191.650 | L13: 150.000 | M13: =IF(OR('Att. Dairy'!H13="",R13=0,R13=""),"",'Att. Dairy'!H13) ->  | N13: =IF(OR('Att. Dairy'!I13="",R13=0,R13=""),"",'Att. Dairy'!I13) ->  | O13: 0 | P13: =IF(AND('Att. Dairy'!N13=""),"",'Att. Dairy'!N13) ->  | Q13: =IF(AND('Att. Dairy'!O13=""),"",'Att. Dairy'!O13) ->  | R13: 0 | S13: 0.000 | T13: 0.000 | U13: 191.650 | V13: 150.000 | W13: =IFERROR(IF(AND('Att. Dairy'!B13=""),"",IF(AND(X13="vodk'k"),"",IF(AND(R13=""),"",R13*$AA$1))),"") -> 0.00 | X13: =IF(AND('Att. Dairy'!B13=""),"",IF(AND(P13=""),"",AH13)) ->  | AE13: =IF(AND('Att. Dairy'!C13=""),"",'Att. Dairy'!C13) ->  | AG13: =IF(AND('Att. Dairy'!D13=""),"",'Att. Dairy'!D13) -> Friday | AH13: nkyjksVh | AX13: W | AY13: W | CS13: 2022-07-08 | CX13: =IF(OR(G13="",G13=0),"",G13) -> 
A14: 9 | B14: =IF(AND('Att. Dairy'!B14=""),"",'Att. Dairy'!B14) -> 2022-07-09 | C14: 191.650 | D14: 150.000 | K14: 191.650 | L14: 150.000 | M14: =IF(OR('Att. Dairy'!H14="",R14=0,R14=""),"",'Att. Dairy'!H14) ->  | N14: =IF(OR('Att. Dairy'!I14="",R14=0,R14=""),"",'Att. Dairy'!I14) ->  | O14: 0 | P14: =IF(AND('Att. Dairy'!N14=""),"",'Att. Dairy'!N14) ->  | Q14: =IF(AND('Att. Dairy'!O14=""),"",'Att. Dairy'!O14) ->  | R14: 0 | S14: 0.000 | T14: 0.000 | U14: 191.650 | V14: 150.000 | W14: =IFERROR(IF(AND('Att. Dairy'!B14=""),"",IF(AND(X14="vodk'k"),"",IF(AND(R14=""),"",R14*$AA$1))),"") -> 0.00 | X14: =IF(AND('Att. Dairy'!B14=""),"",IF(AND(P14=""),"",AH14)) ->  | AE14: =IF(AND('Att. Dairy'!C14=""),"",'Att. Dairy'!C14) ->  | AG14: =IF(AND('Att. Dairy'!D14=""),"",'Att. Dairy'!D14) -> Saturday | AH14: lCthjksVh | AX14: W | AY14: W | CS14: 2022-07-09
A15: 10 | B15: =IF(AND('Att. Dairy'!B15=""),"",'Att. Dairy'!B15) -> 2022-07-10 | C15: 191.650 | D15: 150.000 | K15: 191.650 | L15: 150.000 | M15: =IF(OR('Att. Dairy'!H15="",R15=0,R15=""),"",'Att. Dairy'!H15) ->  | N15: =IF(OR('Att. Dairy'!I15="",R15=0,R15=""),"",'Att. Dairy'!I15) ->  | O15: 0 | P15: =IF(AND('Att. Dairy'!N15=""),"",'Att. Dairy'!N15) ->  | Q15: =IF(AND('Att. Dairy'!O15=""),"",'Att. Dairy'!O15) ->  | R15: 0 | S15: 0.000 | T15: 0.000 | U15: 191.650 | V15: 150.000 | W15: =IFERROR(IF(AND('Att. Dairy'!B15=""),"",IF(AND(X15="vodk'k"),"",IF(AND(R15=""),"",R15*$AA$1))),"") -> 0.00 | X15: =IF(AND('Att. Dairy'!B15=""),"",IF(AND(P15=""),"",AH15)) ->  | AE15: =IF(AND('Att. Dairy'!C15=""),"",'Att. Dairy'!C15) ->  | AG15: =IF(AND('Att. Dairy'!D15=""),"",'Att. Dairy'!D15) -> Sunday | AH15: vodk'k | AX15: FALSE | AY15: FALSE | CS15: 2022-07-10
A16: 11 | B16: =IF(AND('Att. Dairy'!B16=""),"",'Att. Dairy'!B16) -> 2022-07-11 | C16: 191.650 | D16: 150.000 | K16: 191.650 | L16: 150.000 | M16: =IF(OR('Att. Dairy'!H16="",R16=0,R16=""),"",'Att. Dairy'!H16) ->  | N16: =IF(OR('Att. Dairy'!I16="",R16=0,R16=""),"",'Att. Dairy'!I16) ->  | O16: 0 | P16: =IF(AND('Att. Dairy'!N16=""),"",'Att. Dairy'!N16) ->  | Q16: =IF(AND('Att. Dairy'!O16=""),"",'Att. Dairy'!O16) ->  | R16: 0 | S16: 0.000 | T16: 0.000 | U16: 191.650 | V16: 150.000 | W16: =IFERROR(IF(AND('Att. Dairy'!B16=""),"",IF(AND(X16="vodk'k"),"",IF(AND(R16=""),"",R16*$AA$1))),"") -> 0.00 | X16: =IF(AND('Att. Dairy'!B16=""),"",IF(AND(P16=""),"",AH16)) ->  | AE16: =IF(AND('Att. Dairy'!C16=""),"",'Att. Dairy'!C16) ->  | AG16: =IF(AND('Att. Dairy'!D16=""),"",'Att. Dairy'!D16) -> Monday | AH16: lCthjksVh | AX16: W | AY16: W | CS16: 2022-07-11
A17: 12 | B17: =IF(AND('Att. Dairy'!B17=""),"",'Att. Dairy'!B17) -> 2022-07-12 | C17: 191.650 | D17: 150.000 | K17: 191.650 | L17: 150.000 | M17: =IF(OR('Att. Dairy'!H17="",R17=0,R17=""),"",'Att. Dairy'!H17) ->  | N17: =IF(OR('Att. Dairy'!I17="",R17=0,R17=""),"",'Att. Dairy'!I17) ->  | O17: 0 | P17: =IF(AND('Att. Dairy'!N17=""),"",'Att. Dairy'!N17) ->  | Q17: =IF(AND('Att. Dairy'!O17=""),"",'Att. Dairy'!O17) ->  | R17: 0 | S17: 0.000 | T17: 0.000 | U17: 191.650 | V17: 150.000 | W17: =IFERROR(IF(AND('Att. Dairy'!B17=""),"",IF(AND(X17="vodk'k"),"",IF(AND(R17=""),"",R17*$AA$1))),"") -> 0.00 | X17: =IF(AND('Att. Dairy'!B17=""),"",IF(AND(P17=""),"",AH17)) ->  | AE17: =IF(AND('Att. Dairy'!C17=""),"",'Att. Dairy'!C17) ->  | AG17: =IF(AND('Att. Dairy'!D17=""),"",'Att. Dairy'!D17) -> Tuesday | AH17: nkypkoy | AX17: R | AY17: R | CS17: 2022-07-12
A18: 13 | B18: =IF(AND('Att. Dairy'!B18=""),"",'Att. Dairy'!B18) -> 2022-07-13 | C18: 191.650 | D18: 150.000 | K18: 191.650 | L18: 150.000 | M18: =IF(OR('Att. Dairy'!H18="",R18=0,R18=""),"",'Att. Dairy'!H18) ->  | N18: =IF(OR('Att. Dairy'!I18="",R18=0,R18=""),"",'Att. Dairy'!I18) ->  | O18: 0 | P18: =IF(AND('Att. Dairy'!N18=""),"",'Att. Dairy'!N18) ->  | Q18: =IF(AND('Att. Dairy'!O18=""),"",'Att. Dairy'!O18) ->  | R18: 0 | S18: 0.000 | T18: 0.000 | U18: 191.650 | V18: 150.000 | W18: =IFERROR(IF(AND('Att. Dairy'!B18=""),"",IF(AND(X18="vodk'k"),"",IF(AND(R18=""),"",R18*$AA$1))),"") -> 0.00 | X18: =IF(AND('Att. Dairy'!B18=""),"",IF(AND(P18=""),"",AH18)) ->  | AE18: =IF(AND('Att. Dairy'!C18=""),"",'Att. Dairy'!C18) ->  | AG18: =IF(AND('Att. Dairy'!D18=""),"",'Att. Dairy'!D18) -> Wednesday | AH18: nkyjksVh | AX18: W | AY18: W | CS18: 2022-07-13
A19: 14 | B19: =IF(AND('Att. Dairy'!B19=""),"",'Att. Dairy'!B19) -> 2022-07-14 | C19: 191.650 | D19: 150.000 | K19: 191.650 | L19: 150.000 | M19: =IF(OR('Att. Dairy'!H19="",R19=0,R19=""),"",'Att. Dairy'!H19) ->  | N19: =IF(OR('Att. Dairy'!I19="",R19=0,R19=""),"",'Att. Dairy'!I19) ->  | O19: 0 | P19: =IF(AND('Att. Dairy'!N19=""),"",'Att. Dairy'!N19) ->  | Q19: =IF(AND('Att. Dairy'!O19=""),"",'Att. Dairy'!O19) ->  | R19: 0 | S19: 0.000 | T19: 0.000 | U19: 191.650 | V19: 150.000 | W19: =IFERROR(IF(AND('Att. Dairy'!B19=""),"",IF(AND(X19="vodk'k"),"",IF(AND(R19=""),"",R19*$AA$1))),"") -> 0.00 | X19: =IF(AND('Att. Dairy'!B19=""),"",IF(AND(P19=""),"",AH19)) ->  | AE19: =IF(AND('Att. Dairy'!C19=""),"",'Att. Dairy'!C19) ->  | AG19: =IF(AND('Att. Dairy'!D19=""),"",'Att. Dairy'!D19) -> Thursday | AH19: f[kpM+h | AX19: R | AY19: R | CS19: 2022-07-14
A20: 15 | B20: =IF(AND('Att. Dairy'!B20=""),"",'Att. Dairy'!B20) -> 2022-07-15 | C20: 191.650 | D20: 150.000 | K20: 191.650 | L20: 150.000 | M20: =IF(OR('Att. Dairy'!H20="",R20=0,R20=""),"",'Att. Dairy'!H20) ->  | N20: =IF(OR('Att. Dairy'!I20="",R20=0,R20=""),"",'Att. Dairy'!I20) ->  | O20: 0 | P20: =IF(AND('Att. Dairy'!N20=""),"",'Att. Dairy'!N20) ->  | Q20: =IF(AND('Att. Dairy'!O20=""),"",'Att. Dairy'!O20) ->  | R20: 0 | S20: 0.000 | T20: 0.000 | U20: 191.650 | V20: 150.000 | W20: =IFERROR(IF(AND('Att. Dairy'!B20=""),"",IF(AND(X20="vodk'k"),"",IF(AND(R20=""),"",R20*$AA$1))),"") -> 0.00 | X20: =IF(AND('Att. Dairy'!B20=""),"",IF(AND(P20=""),"",AH20)) ->  | AE20: =IF(AND('Att. Dairy'!C20=""),"",'Att. Dairy'!C20) ->  | AG20: =IF(AND('Att. Dairy'!D20=""),"",'Att. Dairy'!D20) -> Friday | AH20: nkyjksVh | AX20: W | AY20: W | CS20: 2022-07-15
A21: 16 | B21: =IF(AND('Att. Dairy'!B21=""),"",'Att. Dairy'!B21) -> 2022-07-16 | C21: 191.650 | D21: 150.000 | K21: 191.650 | L21: 150.000 | M21: =IF(OR('Att. Dairy'!H21="",R21=0,R21=""),"",'Att. Dairy'!H21) ->  | N21: =IF(OR('Att. Dairy'!I21="",R21=0,R21=""),"",'Att. Dairy'!I21) ->  | O21: 0 | P21: =IF(AND('Att. Dairy'!N21=""),"",'Att. Dairy'!N21) ->  | Q21: =IF(AND('Att. Dairy'!O21=""),"",'Att. Dairy'!O21) ->  | R21: 0 | S21: 0.000 | T21: 0.000 | U21: 191.650 | V21: 150.000 | W21: =IFERROR(IF(AND('Att. Dairy'!B21=""),"",IF(AND(X21="vodk'k"),"",IF(AND(R21=""),"",R21*$AA$1))),"") -> 0.00 | X21: =IF(AND('Att. Dairy'!B21=""),"",IF(AND(P21=""),"",AH21)) ->  | AE21: =IF(AND('Att. Dairy'!C21=""),"",'Att. Dairy'!C21) ->  | AG21: =IF(AND('Att. Dairy'!D21=""),"",'Att. Dairy'!D21) -> Saturday | AH21: lCthjksVh | AX21: W | AY21: W | CS21: 2022-07-16
A22: 17 | B22: =IF(AND('Att. Dairy'!B22=""),"",'Att. Dairy'!B22) -> 2022-07-17 | C22: 191.650 | D22: 150.000 | K22: 191.650 | L22: 150.000 | M22: =IF(OR('Att. Dairy'!H22="",R22=0,R22=""),"",'Att. Dairy'!H22) ->  | N22: =IF(OR('Att. Dairy'!I22="",R22=0,R22=""),"",'Att. Dairy'!I22) ->  | O22: 0 | P22: =IF(AND('Att. Dairy'!N22=""),"",'Att. Dairy'!N22) ->  | Q22: =IF(AND('Att. Dairy'!O22=""),"",'Att. Dairy'!O22) ->  | R22: 0 | S22: 0.000 | T22: 0.000 | U22: 191.650 | V22: 150.000 | W22: =IFERROR(IF(AND('Att. Dairy'!B22=""),"",IF(AND(X22="vodk'k"),"",IF(AND(R22=""),"",R22*$AA$1))),"") -> 0.00 | X22: =IF(AND('Att. Dairy'!B22=""),"",IF(AND(P22=""),"",AH22)) ->  | AE22: =IF(AND('Att. Dairy'!C22=""),"",'Att. Dairy'!C22) ->  | AG22: =IF(AND('Att. Dairy'!D22=""),"",'Att. Dairy'!D22) -> Sunday | AH22: vodk'k | AX22: FALSE | AY22: FALSE | CS22: 2022-07-17 | CV22: =IF(OR(E22="",E22=0),"",E22) ->  | DG22: =IF(OR(P22="",P22=0),"",P22) ->  | DN22: =IF(OR(W22="",W22=0),"",W22) -> 
A23: 18 | B23: =IF(AND('Att. Dairy'!B23=""),"",'Att. Dairy'!B23) -> 2022-07-18 | C23: 191.650 | D23: 150.000 | K23: 191.650 | L23: 150.000 | M23: =IF(OR('Att. Dairy'!H23="",R23=0,R23=""),"",'Att. Dairy'!H23) ->  | N23: =IF(OR('Att. Dairy'!I23="",R23=0,R23=""),"",'Att. Dairy'!I23) ->  | O23: 0 | P23: =IF(AND('Att. Dairy'!N23=""),"",'Att. Dairy'!N23) ->  | Q23: =IF(AND('Att. Dairy'!O23=""),"",'Att. Dairy'!O23) ->  | R23: 0 | S23: 0.000 | T23: 0.000 | U23: 191.650 | V23: 150.000 | W23: =IFERROR(IF(AND('Att. Dairy'!B23=""),"",IF(AND(X23="vodk'k"),"",IF(AND(R23=""),"",R23*$AA$1))),"") -> 0.00 | X23: =IF(AND('Att. Dairy'!B23=""),"",IF(AND(P23=""),"",AH23)) ->  | AE23: =IF(AND('Att. Dairy'!C23=""),"",'Att. Dairy'!C23) ->  | AG23: =IF(AND('Att. Dairy'!D23=""),"",'Att. Dairy'!D23) -> Monday | AH23: lCthjksVh | AX23: W | AY23: W | CS23: 2022-07-18
A24: 19 | B24: =IF(AND('Att. Dairy'!B24=""),"",'Att. Dairy'!B24) -> 2022-07-19 | C24: 191.650 | D24: 150.000 | K24: 191.650 | L24: 150.000 | M24: =IF(OR('Att. Dairy'!H24="",R24=0,R24=""),"",'Att. Dairy'!H24) ->  | N24: =IF(OR('Att. Dairy'!I24="",R24=0,R24=""),"",'Att. Dairy'!I24) ->  | O24: 0 | P24: =IF(AND('Att. Dairy'!N24=""),"",'Att. Dairy'!N24) ->  | Q24: =IF(AND('Att. Dairy'!O24=""),"",'Att. Dairy'!O24) ->  | R24: 0 | S24: 0.000 | T24: 0.000 | U24: 191.650 | V24: 150.000 | W24: =IFERROR(IF(AND('Att. Dairy'!B24=""),"",IF(AND(X24="vodk'k"),"",IF(AND(R24=""),"",R24*$AA$1))),"") -> 0.00 | X24: =IF(AND('Att. Dairy'!B24=""),"",IF(AND(P24=""),"",AH24)) ->  | AE24: =IF(AND('Att. Dairy'!C24=""),"",'Att. Dairy'!C24) ->  | AG24: =IF(AND('Att. Dairy'!D24=""),"",'Att. Dairy'!D24) -> Tuesday | AH24: nkypkoy | AX24: R | AY24: R | CS24: 2022-07-19
A25: 20 | B25: =IF(AND('Att. Dairy'!B25=""),"",'Att. Dairy'!B25) -> 2022-07-20 | C25: 191.650 | D25: 150.000 | K25: 191.650 | L25: 150.000 | M25: =IF(OR('Att. Dairy'!H25="",R25=0,R25=""),"",'Att. Dairy'!H25) ->  | N25: =IF(OR('Att. Dairy'!I25="",R25=0,R25=""),"",'Att. Dairy'!I25) ->  | O25: 0 | P25: =IF(AND('Att. Dairy'!N25=""),"",'Att. Dairy'!N25) ->  | Q25: =IF(AND('Att. Dairy'!O25=""),"",'Att. Dairy'!O25) ->  | R25: 0 | S25: 0.000 | T25: 0.000 | U25: 191.650 | V25: 150.000 | W25: =IFERROR(IF(AND('Att. Dairy'!B25=""),"",IF(AND(X25="vodk'k"),"",IF(AND(R25=""),"",R25*$AA$1))),"") -> 0.00 | X25: =IF(AND('Att. Dairy'!B25=""),"",IF(AND(P25=""),"",AH25)) ->  | AE25: =IF(AND('Att. Dairy'!C25=""),"",'Att. Dairy'!C25) ->  | AG25: =IF(AND('Att. Dairy'!D25=""),"",'Att. Dairy'!D25) -> Wednesday | AH25: nkyjksVh | AX25: W | AY25: W | CS25: 2022-07-20
A26: 21 | B26: =IF(AND('Att. Dairy'!B26=""),"",'Att. Dairy'!B26) -> 2022-07-21 | C26: 191.650 | D26: 150.000 | K26: 191.650 | L26: 150.000 | M26: =IF(OR('Att. Dairy'!H26="",R26=0,R26=""),"",'Att. Dairy'!H26) ->  | N26: =IF(OR('Att. Dairy'!I26="",R26=0,R26=""),"",'Att. Dairy'!I26) ->  | O26: 0 | P26: =IF(AND('Att. Dairy'!N26=""),"",'Att. Dairy'!N26) ->  | Q26: =IF(AND('Att. Dairy'!O26=""),"",'Att. Dairy'!O26) ->  | R26: 0 | S26: 0.000 | T26: 0.000 | U26: 191.650 | V26: 150.000 | W26: =IFERROR(IF(AND('Att. Dairy'!B26=""),"",IF(AND(X26="vodk'k"),"",IF(AND(R26=""),"",R26*$AA$1))),"") -> 0.00 | X26: =IF(AND('Att. Dairy'!B26=""),"",IF(AND(P26=""),"",AH26)) ->  | AE26: =IF(AND('Att. Dairy'!C26=""),"",'Att. Dairy'!C26) ->  | AG26: =IF(AND('Att. Dairy'!D26=""),"",'Att. Dairy'!D26) -> Thursday | AH26: f[kpM+h | AX26: R | AY26: R | CS26: 2022-07-21
A27: 22 | B27: =IF(AND('Att. Dairy'!B27=""),"",'Att. Dairy'!B27) -> 2022-07-22 | C27: 191.650 | D27: 150.000 | K27: 191.650 | L27: 150.000 | M27: =IF(OR('Att. Dairy'!H27="",R27=0,R27=""),"",'Att. Dairy'!H27) ->  | N27: =IF(OR('Att. Dairy'!I27="",R27=0,R27=""),"",'Att. Dairy'!I27) ->  | O27: 0 | P27: =IF(AND('Att. Dairy'!N27=""),"",'Att. Dairy'!N27) ->  | Q27: =IF(AND('Att. Dairy'!O27=""),"",'Att. Dairy'!O27) ->  | R27: 0 | S27: 0.000 | T27: 0.000 | U27: 191.650 | V27: 150.000 | W27: =IFERROR(IF(AND('Att. Dairy'!B27=""),"",IF(AND(X27="vodk'k"),"",IF(AND(R27=""),"",R27*$AA$1))),"") -> 0.00 | X27: =IF(AND('Att. Dairy'!B27=""),"",IF(AND(P27=""),"",AH27)) ->  | AE27: =IF(AND('Att. Dairy'!C27=""),"",'Att. Dairy'!C27) ->  | AG27: =IF(AND('Att. Dairy'!D27=""),"",'Att. Dairy'!D27) -> Friday | AH27: nkyjksVh | AX27: W | AY27: W | CS27: 2022-07-22
A28: 23 | B28: =IF(AND('Att. Dairy'!B28=""),"",'Att. Dairy'!B28) -> 2022-07-23 | C28: 191.650 | D28: 150.000 | K28: 191.650 | L28: 150.000 | M28: =IF(OR('Att. Dairy'!H28="",R28=0,R28=""),"",'Att. Dairy'!H28) ->  | N28: =IF(OR('Att. Dairy'!I28="",R28=0,R28=""),"",'Att. Dairy'!I28) ->  | O28: 0 | P28: =IF(AND('Att. Dairy'!N28=""),"",'Att. Dairy'!N28) ->  | Q28: =IF(AND('Att. Dairy'!O28=""),"",'Att. Dairy'!O28) ->  | R28: 0 | S28: 0.000 | T28: 0.000 | U28: 191.650 | V28: 150.000 | W28: =IFERROR(IF(AND('Att. Dairy'!B28=""),"",IF(AND(X28="vodk'k"),"",IF(AND(R28=""),"",R28*$AA$1))),"") -> 0.00 | X28: =IF(AND('Att. Dairy'!B28=""),"",IF(AND(P28=""),"",AH28)) ->  | AE28: =IF(AND('Att. Dairy'!C28=""),"",'Att. Dairy'!C28) ->  | AG28: =IF(AND('Att. Dairy'!D28=""),"",'Att. Dairy'!D28) -> Saturday | AH28: lCthjksVh | AX28: W | AY28: W | CS28: 2022-07-23
A29: 24 | B29: =IF(AND('Att. Dairy'!B29=""),"",'Att. Dairy'!B29) -> 2022-07-24 | C29: 191.650 | D29: 150.000 | K29: 191.650 | L29: 150.000 | M29: =IF(OR('Att. Dairy'!H29="",R29=0,R29=""),"",'Att. Dairy'!H29) ->  | N29: =IF(OR('Att. Dairy'!I29="",R29=0,R29=""),"",'Att. Dairy'!I29) ->  | O29: 0 | P29: =IF(AND('Att. Dairy'!N29=""),"",'Att. Dairy'!N29) ->  | Q29: =IF(AND('Att. Dairy'!O29=""),"",'Att. Dairy'!O29) ->  | R29: 0 | S29: 0.000 | T29: 0.000 | U29: 191.650 | V29: 150.000 | W29: =IFERROR(IF(AND('Att. Dairy'!B29=""),"",IF(AND(X29="vodk'k"),"",IF(AND(R29=""),"",R29*$AA$1))),"") -> 0.00 | X29: =IF(AND('Att. Dairy'!B29=""),"",IF(AND(P29=""),"",AH29)) ->  | AE29: =IF(AND('Att. Dairy'!C29=""),"",'Att. Dairy'!C29) ->  | AG29: =IF(AND('Att. Dairy'!D29=""),"",'Att. Dairy'!D29) -> Sunday | AH29: vodk'k | AX29: FALSE | AY29: FALSE | CS29: 2022-07-24
A30: 25 | B30: =IF(AND('Att. Dairy'!B30=""),"",'Att. Dairy'!B30) -> 2022-07-25 | C30: 191.650 | D30: 150.000 | K30: 191.650 | L30: 150.000 | M30: =IF(OR('Att. Dairy'!H30="",R30=0,R30=""),"",'Att. Dairy'!H30) ->  | N30: =IF(OR('Att. Dairy'!I30="",R30=0,R30=""),"",'Att. Dairy'!I30) ->  | O30: 0 | P30: =IF(AND('Att. Dairy'!N30=""),"",'Att. Dairy'!N30) ->  | Q30: =IF(AND('Att. Dairy'!O30=""),"",'Att. Dairy'!O30) ->  | R30: 0 | S30: 0.000 | T30: 0.000 | U30: 191.650 | V30: 150.000 | W30: =IFERROR(IF(AND('Att. Dairy'!B30=""),"",IF(AND(X30="vodk'k"),"",IF(AND(R30=""),"",R30*$AA$1))),"") -> 0.00 | X30: =IF(AND('Att. Dairy'!B30=""),"",IF(AND(P30=""),"",AH30)) ->  | AE30: =IF(AND('Att. Dairy'!C30=""),"",'Att. Dairy'!C30) ->  | AG30: =IF(AND('Att. Dairy'!D30=""),"",'Att. Dairy'!D30) -> Monday | AH30: lCthjksVh | AX30: W | AY30: W | CS30: 2022-07-25
A31: 26 | B31: =IF(AND('Att. Dairy'!B31=""),"",'Att. Dairy'!B31) -> 2022-07-26 | C31: 191.650 | D31: 150.000 | K31: 191.650 | L31: 150.000 | M31: =IF(OR('Att. Dairy'!H31="",R31=0,R31=""),"",'Att. Dairy'!H31) ->  | N31: =IF(OR('Att. Dairy'!I31="",R31=0,R31=""),"",'Att. Dairy'!I31) ->  | O31: 0 | P31: =IF(AND('Att. Dairy'!N31=""),"",'Att. Dairy'!N31) ->  | Q31: =IF(AND('Att. Dairy'!O31=""),"",'Att. Dairy'!O31) ->  | R31: 0 | S31: 0.000 | T31: 0.000 | U31: 191.650 | V31: 150.000 | W31: =IFERROR(IF(AND('Att. Dairy'!B31=""),"",IF(AND(X31="vodk'k"),"",IF(AND(R31=""),"",R31*$AA$1))),"") -> 0.00 | X31: =IF(AND('Att. Dairy'!B31=""),"",IF(AND(P31=""),"",AH31)) ->  | AE31: =IF(AND('Att. Dairy'!C31=""),"",'Att. Dairy'!C31) ->  | AG31: =IF(AND('Att. Dairy'!D31=""),"",'Att. Dairy'!D31) -> Tuesday | AH31: nkypkoy | AX31: R | AY31: R | CS31: 2022-07-26
A32: 27 | B32: =IF(AND('Att. Dairy'!B32=""),"",'Att. Dairy'!B32) -> 2022-07-27 | C32: 191.650 | D32: 150.000 | K32: 191.650 | L32: 150.000 | M32: =IF(OR('Att. Dairy'!H32="",R32=0,R32=""),"",'Att. Dairy'!H32) ->  | N32: =IF(OR('Att. Dairy'!I32="",R32=0,R32=""),"",'Att. Dairy'!I32) ->  | O32: 0 | P32: =IF(AND('Att. Dairy'!N32=""),"",'Att. Dairy'!N32) ->  | Q32: =IF(AND('Att. Dairy'!O32=""),"",'Att. Dairy'!O32) ->  | R32: 0 | S32: 0.000 | T32: 0.000 | U32: 191.650 | V32: 150.000 | W32: =IFERROR(IF(AND('Att. Dairy'!B32=""),"",IF(AND(X32="vodk'k"),"",IF(AND(R32=""),"",R32*$AA$1))),"") -> 0.00 | X32: =IF(AND('Att. Dairy'!B32=""),"",IF(AND(P32=""),"",AH32)) ->  | AE32: =IF(AND('Att. Dairy'!C32=""),"",'Att. Dairy'!C32) ->  | AG32: =IF(AND('Att. Dairy'!D32=""),"",'Att. Dairy'!D32) -> Wednesday | AH32: nkyjksVh | AX32: W | AY32: W | CS32: 2022-07-27
A33: 28 | B33: =IF(AND('Att. Dairy'!B33=""),"",'Att. Dairy'!B33) -> 2022-07-28 | C33: 191.650 | D33: 150.000 | K33: 191.650 | L33: 150.000 | M33: =IF(OR('Att. Dairy'!H33="",R33=0,R33=""),"",'Att. Dairy'!H33) ->  | N33: =IF(OR('Att. Dairy'!I33="",R33=0,R33=""),"",'Att. Dairy'!I33) ->  | O33: 0 | P33: =IF(AND('Att. Dairy'!N33=""),"",'Att. Dairy'!N33) ->  | Q33: =IF(AND('Att. Dairy'!O33=""),"",'Att. Dairy'!O33) ->  | R33: 0 | S33: 0.000 | T33: 0.000 | U33: 191.650 | V33: 150.000 | W33: =IFERROR(IF(AND('Att. Dairy'!B33=""),"",IF(AND(X33="vodk'k"),"",IF(AND(R33=""),"",R33*$AA$1))),"") -> 0.00 | X33: =IF(AND('Att. Dairy'!B33=""),"",IF(AND(P33=""),"",AH33)) ->  | AE33: =IF(AND('Att. Dairy'!C33=""),"",'Att. Dairy'!C33) ->  | AG33: =IF(AND('Att. Dairy'!D33=""),"",'Att. Dairy'!D33) -> Thursday | AH33: f[kpM+h | AX33: R | AY33: R | CS33: 2022-07-28
A34: 29 | B34: =IF(AND('Att. Dairy'!B34=""),"",'Att. Dairy'!B34) -> 2022-07-29 | C34: 191.650 | D34: 150.000 | K34: 191.650 | L34: 150.000 | M34: =IF(OR('Att. Dairy'!H34="",R34=0,R34=""),"",'Att. Dairy'!H34) ->  | N34: =IF(OR('Att. Dairy'!I34="",R34=0,R34=""),"",'Att. Dairy'!I34) ->  | O34: 0 | P34: =IF(AND('Att. Dairy'!N34=""),"",'Att. Dairy'!N34) ->  | Q34: =IF(AND('Att. Dairy'!O34=""),"",'Att. Dairy'!O34) ->  | R34: 0 | S34: 0.000 | T34: 0.000 | U34: 191.650 | V34: 150.000 | W34: =IFERROR(IF(AND('Att. Dairy'!B34=""),"",IF(AND(X34="vodk'k"),"",IF(AND(R34=""),"",R34*$AA$1))),"") -> 0.00 | X34: =IF(AND('Att. Dairy'!B34=""),"",IF(AND(P34=""),"",AH34)) ->  | AE34: =IF(AND('Att. Dairy'!C34=""),"",'Att. Dairy'!C34) ->  | AG34: =IF(AND('Att. Dairy'!D34=""),"",'Att. Dairy'!D34) -> Friday | AH34: nkyjksVh | AX34: W | AY34: W | CS34: 2022-07-29
A35: 30 | B35: =IF(AND('Att. Dairy'!B35=""),"",'Att. Dairy'!B35) -> 2022-07-30 | C35: 191.650 | D35: 150.000 | K35: 191.650 | L35: 150.000 | M35: =IF(OR('Att. Dairy'!H35="",R35=0,R35=""),"",'Att. Dairy'!H35) ->  | N35: =IF(OR('Att. Dairy'!I35="",R35=0,R35=""),"",'Att. Dairy'!I35) ->  | O35: 0 | P35: =IF(AND('Att. Dairy'!N35=""),"",'Att. Dairy'!N35) ->  | Q35: =IF(AND('Att. Dairy'!O35=""),"",'Att. Dairy'!O35) ->  | R35: 0 | S35: 0.000 | T35: 0.000 | U35: 191.650 | V35: 150.000 | W35: =IFERROR(IF(AND('Att. Dairy'!B35=""),"",IF(AND(X35="vodk'k"),"",IF(AND(R35=""),"",R35*$AA$1))),"") -> 0.00 | X35: =IF(AND('Att. Dairy'!B35=""),"",IF(AND(P35=""),"",AH35)) ->  | AE35: =IF(AND('Att. Dairy'!C35=""),"",'Att. Dairy'!C35) ->  | AG35: =IF(AND('Att. Dairy'!D35=""),"",'Att. Dairy'!D35) -> Saturday | AH35: lCthjksVh | AX35: W | AY35: W | CS35: 2022-07-30
A36: 31 | B36: =IF(AND('Att. Dairy'!B36=""),"",'Att. Dairy'!B36) -> 2022-07-31 | C36: 191.650 | D36: 150.000 | K36: 191.650 | L36: 150.000 | M36: =IF(OR('Att. Dairy'!H36="",R36=0,R36=""),"",'Att. Dairy'!H36) ->  | N36: =IF(OR('Att. Dairy'!I36="",R36=0,R36=""),"",'Att. Dairy'!I36) ->  | O36: 0 | P36: =IF(AND('Att. Dairy'!N36=""),"",'Att. Dairy'!N36) ->  | Q36: =IF(AND('Att. Dairy'!O36=""),"",'Att. Dairy'!O36) ->  | R36: 0 | S36: 0.000 | T36: 0.000 | U36: 191.650 | V36: 150.000 | W36: =IFERROR(IF(AND('Att. Dairy'!B36=""),"",IF(AND(X36="vodk'k"),"",IF(AND(R36=""),"",R36*$AA$1))),"") -> 0.00 | X36: =IF(AND('Att. Dairy'!B36=""),"",IF(AND(P36=""),"",AH36)) ->  | AE36: =IF(AND('Att. Dairy'!C36=""),"",'Att. Dairy'!C36) ->  | AG36: =IF(AND('Att. Dairy'!D36=""),"",'Att. Dairy'!D36) -> Sunday | AH36: vodk'k | AX36: FALSE | AY36: FALSE | CS36: 2022-07-31
C37: dqy | E37: =SUM(E6:E36) -> 0.000 | F37: =SUM(F6:F36) -> 0.000 | G37: =SUM(G6:G36) -> 0.000 | H37: =SUM(H6:H36) -> 0.000 | I37: 0.000 | J37: 0.000 | M37: =SUM(M6:M36) -> 180 | N37: =SUM(N6:N36) -> 210 | O37: 390 | P37: 180 | Q37: 209 | R37: 389 | S37: =SUM(S6:S36) -> 58.350 | T37: =SUM(T6:T36) -> 0.000 | W37: =SUM(W6:W36) -> 2898.05 | AE37: =IF(AND('Att. Dairy'!C37=""),"",'Att. Dairy'!C37) -> Total | AF37: FALSE | AG37: =IF(AND('Att. Dairy'!D37=""),"",'Att. Dairy'!D37) ->  | AY37: FALSE | CV37: =SUM(CV6:CV36) -> 0.00 | CW37: =SUM(CW6:CW36) -> 0.00 | CX37: 0.00 | CY37: 0.00 | CZ37: 0.00 | DA37: 0.00 | DD37: =SUM(DD6:DD36) -> 180 | DE37: =SUM(DE6:DE36) -> 210 | DG37: 180 | DH37: 209 | DJ37: =SUM(DJ6:DJ36) -> 58.350 | DK37: =SUM(DK6:DK36) -> 0.000 | DN37: =SUM(DN6:DN36) -> 2898.05
T38: =S37+T37 -> 58.350 | W38: =SUM(#REF!) ->  | AE38: =IF(AND('Att. Dairy'!C38=""),"",'Att. Dairy'!C38) ->  | AW38: 0.000
I39: =G37+I37 -> 0.000 | J39: =H37+J37 -> 0.000 | W39: =#REF! ->  | AE39: =IF(AND('Att. Dairy'!C39=""),"",'Att. Dairy'!C39) ->  | AW39: 0
I40: 0.000 | J40: 0.000 | W40: =SUM(W39-W37+W38) ->  | AE40: =IF(AND('Att. Dairy'!C40=""),"",'Att. Dairy'!C40) ->  | AW40: 0.00
AE41: =IF(AND('Att. Dairy'!#REF!=""),"",'Att. Dairy'!#REF!) -> 
AE42: =IF(AND('Att. Dairy'!#REF!=""),"",'Att. Dairy'!#REF!) -> 
S43: ekg esa çkIr dqy jkf'k | AE43: =IF(AND('Att. Dairy'!#REF!=""),"",'Att. Dairy'!#REF!) -> 
S44: ekg esa O;; dqy jkf'k | AE44: =IF(AND('Att. Dairy'!#REF!=""),"",'Att. Dairy'!#REF!) ->  | AY44: =IF(AND(AU44=""),AX44,AV44) -> 
S45: ekg esa 'ks"k jkf'k | AE45: =IF(AND('Att. Dairy'!C41=""),"",'Att. Dairy'!C41) -> 
S46: ekg esa ykHkfUor fo|kFkhZ | AE46: =IF(AND('Att. Dairy'!C42=""),"",'Att. Dairy'!C42) -> 
AE47: =IF(AND('Att. Dairy'!C43=""),"",'Att. Dairy'!C43) -> 
AE48: =IF(AND('Att. Dairy'!C44=""),"",'Att. Dairy'!C44) -> 

Sheet Dak
E2: jktLFkku ljdkj
A4: Mid Day Meal Scheme
B5: School Monthaly Data capture Format (MDCF)
B7: Instructions : Keep Following Registers At The Time Filling The Form:-
B8: 1) Enrolment Register , 2) Account , 3) Bank Account Pass Book , 4) Cooking Coast Details etc.
B10: 1. School Details
B11: Month : | D11: ='MASTER DATA'!C20 -> July-2022 | G11: Year : | I11: =CONCATENATE('MASTER DATA'!F4,"-",'MASTER DATA'!H4) -> 2022-2023
B12: School Code | D12: ='MASTER DATA'!C11 -> 1009 | G12: School Name | I12: ='MASTER DATA'!C4 -> MGGS Bar
B13: school Type | D13: i) Government | F13: =IF(AND(Z20="Government"),"ü","") -> ü | G13: Category | I13: i) PS , UPS
D14: ii) Local Body | F14: =IF(AND(Z20="Local Body"),"ü","") ->  | I14: ii) Secondary
D15: iii) EGS/AIE Centers | F15: =IF(AND(Z20="EGS/AIE Centers"),"ü","") ->  | I15: iii) Sr. Secondary | K15: ü
D16: iv) NCLP | F16: =IF(AND(Z20="NCLP"),"ü","") ->  | G16: Village / Ward | I16: ='MASTER DATA'!C12 -> BAR
D17: v) Madarsa/ Maqtab | F17: =IF(AND(Z20="Madarsa/ Maqtab"),"ü","") ->  | G17: Block | I17: ='MASTER DATA'!C19 -> RAIPUR
B18: Area | D18: i) Rural | F18: =IF(AND(Z18="Rural"),"ü","") -> ü | G18: District | I18: ='MASTER DATA'!C18 -> PALI | Z18: ='MASTER DATA'!C16 -> Rural
D19: ii) Urban | F19: =IF(AND(Z18="Urban"),"ü","") ->  | G19: Type of Kitchen | I19: School Kitchen
D20: iii) Rural cum Urban | F20: =IF(AND(Z18="Rural cum Urban"),"ü","") ->  | G20: Total Enrolment | I20: ='MASTER DATA'!P20 -> 496 | Z20: ='MASTER DATA'!C15 -> Government
B21: State | D21: ='MASTER DATA'!C17 -> Rajasthan | G21: NGO / SHG
B23: 2. Meals Availed Status
H24: Primary | J24: upper Primary | Z24: =IF(AND(B34=""),"",IF(AND('MASTER DATA'!AF30=TRUE),"MALE",IF(AND('MASTER DATA'!AF30=FALSE),"FEMALE"))) -> FEMALE | AB24: =IF(AND(B34=""),"",IF(AND('MASTER DATA'!AH30=TRUE),"GEN",IF(AND('MASTER DATA'!AI30=TRUE),"OBC",IF(AND('MASTER DATA'!AJ30=TRUE),"SC",IF(AND('MASTER DATA'!AK30=TRUE),"ST"))))) -> OBC | AC24: =IF(AND(B34=""),"",IF(AND('MASTER DATA'!AL30=TRUE),"By Cheqe",IF(AND('MASTER DATA'!AM30=FALSE),"By Cash"))) -> By Cheqe
B25: i) Number of School days during month. | H25: ='Att. Dairy'!K42 -> 2 | J25: ='Att. Dairy'!N42 -> 2 | Z25: =IF(AND(B35=""),"",IF(AND('MASTER DATA'!AF31=TRUE),"MALE",IF(AND('MASTER DATA'!AF31=FALSE),"FEMALE"))) -> FEMALE | AB25: =IF(AND(B35=""),"",IF(AND('MASTER DATA'!AH31=TRUE),"GEN",IF(AND('MASTER DATA'!AI31=TRUE),"OBC",IF(AND('MASTER DATA'!AJ31=TRUE),"SC",IF(AND('MASTER DATA'!AK31=TRUE),"ST"))))) -> GEN | AC25: =IF(AND(B35=""),"",IF(AND('MASTER DATA'!AL31=TRUE),"By Cheqe",IF(AND('MASTER DATA'!AM31=FALSE),"By Cash"))) -> By Cheqe
B26: ii) Actual number of days Mid day Meal served | H26: ='Att. Dairy'!K39 -> 2 | J26: ='Att. Dairy'!N39 -> 2 | Z26: =IF(AND(B36=""),"",IF(AND('MASTER DATA'!AF32=TRUE),"MALE",IF(AND('MASTER DATA'!AF32=FALSE),"FEMALE"))) ->  | AB26: =IF(AND(B36=""),"",IF(AND('MASTER DATA'!AH32=TRUE),"GEN",IF(AND('MASTER DATA'!AI32=TRUE),"OBC",IF(AND('MASTER DATA'!AJ32=TRUE),"SC",IF(AND('MASTER DATA'!AK32=TRUE),"ST"))))) ->  | AC26: =IF(AND(B36=""),"",IF(AND('MASTER DATA'!AL32=TRUE),"By Cheqe",IF(AND('MASTER DATA'!AM32=FALSE),"By Cash"))) -> 
B27: iii) Total Meals served during the month* | H27: ='PS Balance Sheet'!R37 -> 492 | J27: ='UPS balance Sheet'!R37 -> 389 | Z27: =IF(AND(B37=""),"",IF(AND('MASTER DATA'!AF33=TRUE),"MALE",IF(AND('MASTER DATA'!AF33=FALSE),"FEMALE"))) ->  | AB27: =IF(AND(B37=""),"",IF(AND('MASTER DATA'!AH33=TRUE),"GEN",IF(AND('MASTER DATA'!AI33=TRUE),"OBC",IF(AND('MASTER DATA'!AJ33=TRUE),"SC",IF(AND('MASTER DATA'!AK33=TRUE),"ST"))))) ->  | AC27: =IF(AND(B37=""),"",IF(AND('MASTER DATA'!AL33=TRUE),"By Cheqe",IF(AND('MASTER DATA'!AM33=FALSE),"By Cash"))) -> 
B28: *total Meals served during the Month : Total attendance (-Minus) total children not availed Mid Day Meals during the Month.
B29: 3. Cook Cum Helper Amount Detail (In Rs.)
B30: Opening Balance | D30: Received during the Month | G30: Total Expenditure during the Month | J30: closing Balance
B31: ='Prarmbhik Shesh'!D14+'Prarmbhik Shesh'!F14 -> 4000 | D31: ='Prarmbhik Shesh'!D15+'Prarmbhik Shesh'!F15 -> 12000 | G31: ='Prarmbhik Shesh'!D17+'Prarmbhik Shesh'!F17 -> 0 | J31: =B31+D31-G31 -> 16000
B32: Cook-cum-helper Name | E32: Gender | G32: Category | H32: Mode of Payment ( Cash/Bank) | J32: Amount Received during the month (Rs.)
E33: Male | F33: Female
B34: =IF(AND('MASTER DATA'!C35=""),"",'MASTER DATA'!C35) -> Dhagalai Devi | E34: =IF(AND(Z24="Male"),"ü","") ->  | F34: =IF(AND(Z24="Female"),"ü","") -> ü | G34: =AB24 -> OBC | H34: =AC24 -> By Cheqe | J34: =IF(AND('MASTER DATA'!P35=""),"",'MASTER DATA'!P35) -> 1320.00 | P34: YES
B35: =IF(AND('MASTER DATA'!C36=""),"",'MASTER DATA'!C36) -> Geeta Devi | E35: =IF(AND(Z25="Male"),"ü","") ->  | F35: =IF(AND(Z25="Female"),"ü","") -> ü | G35: =AB25 -> GEN | H35: =AC25 -> By Cheqe | J35: =IF(AND('MASTER DATA'!P36=""),"",'MASTER DATA'!P36) -> 1320.00 | P35: NO
B36: =IF(AND('MASTER DATA'!C37=""),"",'MASTER DATA'!C37) ->  | E36: =IF(AND(Z26="Male"),"ü","") ->  | F36: =IF(AND(Z26="Female"),"ü","") ->  | J36: =IF(AND('MASTER DATA'!P37=""),"",'MASTER DATA'!P37) -> 
B37: =IF(AND('MASTER DATA'!C38=""),"",'MASTER DATA'!C38) ->  | F37: =IF(AND(Z27="Female"),"ü","") ->  | H37: =AC27 ->  | J37: =IF(AND('MASTER DATA'!P38=""),"",'MASTER DATA'!P38) -> 
B38: =IF(AND('MASTER DATA'!C39=""),"",'MASTER DATA'!C39) -> 
B42: monthly data capture formet | G42: Mid Day Meals scheme, MHRD, Govt. Of India
B44: 4. Cooking cost Details (In Rs.)
B45: Primary | G45: Upper Primary
B46: Opening Balance | C46: Amount Received during Month | D46: Expenditure during the month | E46: closing Balance | G46: Opening Balance | H46: Amount Received during Month | I46: Expenditure during the month | J46: closing Balance
B47: ='Prarmbhik Shesh'!D9 -> 10000 | C47: ='Prarmbhik Shesh'!D10 -> 0 | D47: ='PS Balance Sheet'!W37 -> 2445.24 | E47: =B47+C47-D47 -> 7554.76 | G47: ='Prarmbhik Shesh'!F9 -> 15000 | H47: ='Prarmbhik Shesh'!F10 -> 0 | I47: ='UPS balance Sheet'!W37 -> 2898.05 | J47: =G47+H47-I47 -> 12101.95
B49: 5. School Expenses : Management , Monitoring and Evaluation Expenses
B50: Opening Balance | D50: Received during the Month | G50: Total Expenditure during the month | J50: closing Balance
B51: 0 | G51: 0 | J51: =B51+D51-G51 -> 0
B53: 6. Details of food grain (In kilograme)
B54: Primary | G54: Upper Primary
B55: Food Grain | C55: Opening Balance | D55: Food grain Received during Month | E55: Consumption during the month | F55: Closing Balance | G55: Opening Balance | H55: Food grain Received during Month | I55: Consumption during the month | J55: closing Balance
B56: Wheat | C56: ='Prarmbhik Shesh'!D7 -> 300.00 | D56: ='PS Balance Sheet'!E37+'PS Balance Sheet'!G37+'PS Balance Sheet'!I37 -> 0 | E56: ='PS Balance Sheet'!S37 -> 49.200 | F56: =C56+D56-E56 -> 250.800 | G56: ='Prarmbhik Shesh'!F7 -> 250.00 | H56: ='UPS balance Sheet'!E37+'UPS balance Sheet'!G37+'UPS balance Sheet'!I37 -> 0 | I56: ='UPS balance Sheet'!S37 -> 58.350 | J56: =G56+H56-I56 -> 191.650
B57: Rice | C57: ='Prarmbhik Shesh'!D8 -> 200.00 | D57: ='PS Balance Sheet'!F37+'PS Balance Sheet'!H37+'PS Balance Sheet'!J37 -> 0 | E57: ='PS Balance Sheet'!T37 -> 0.000 | F57: =C57+D57-E57 -> 200.000 | G57: ='Prarmbhik Shesh'!F8 -> 150.00 | H57: ='UPS balance Sheet'!F37+'UPS balance Sheet'!H37+'UPS balance Sheet'!J37 -> 0 | I57: ='UPS balance Sheet'!T37 -> 0.000 | J57: =G57+H57-I57 -> 150.000
B59: 7. Children Health Status
B60: 1) No. of children from class 1 to 8 who had received 4 IFA tablets (Boys)
B61: 2) No. of children from class 1 to 8 who had received 4 IFA tablets (Girls)
B62: 3) No. of children screened by mobile health (RBSK) team
B63: 3) No. of children referred by mobile health (RBSK) team
B65: 8. school Inspection
B66: school inspection done during the month | G66: Yes | I66: No
B67: Inspected By | G67: (In Numbers)
B68: Member of Task Force
B69: District Officials
B70: Block/taluka level officials
B71: SMC Members
B73: 9. Untowards incidents during the month ( If any)
B74: Number of Incident occurred during the month
I78: …………………………………………………
B79: ………………………………………………………………. | I79: Signature of Head Teacher
B80: Signature of the SMC Chairperson / Gram Pradhan
B83: monthly data capture formet | G83: Mid Day Meals scheme, MHRD, Govt. Of India

Sheet UC Food
I1: feM&Ms&ehy dk;ZØe
I2: [kk|kUu dk mi;ksfxrk izek.k&i= ¼lesfdr½ ¼fdyksxzke esa½
B3: fo|ky; dk uke %& | D3: =IF(AND('MASTER DATA'!C4=""),"",'MASTER DATA'!C4) -> MGGS Bar | O3: uksMy dsUnz dk uke %& | T3: =IF(AND('MASTER DATA'!C5=""),"",'MASTER DATA'!C5) -> jkmekfo cj
K4: izi=&1 | AA4: ekg %& | AC4: =IF(AND('MASTER DATA'!J4=""),"",'MASTER DATA'!J4) -> tqykbZ&2022
A5: Øl | B5: fo|ky; dk uke | C5: dqy ukekadu | E5: dqy ykHkkfoUr Nk=@Nk=k | G5: iwoZ dk 'ks"k [kk|kUu | K5: lIyk;j ls izkIr | O5: tu lg;ksx ;k vU; ls izkIr | S5: dqy miyC/k [kk|kUu | W5: ekg esa mi;ksx | AA5: vU;= O;ofLFkr fd;k x;k [kk|kUu | AE5: 'ks"k [kk|kUu | AI5: dk;Z fnol | AJ5: dqd de gsYij dh la[;k
C6: d{kk 1 ls 5 | D6: d{kk 6 ls 8 | E6: d{kk 1 ls 5 | F6: d{kk 6 ls 8 | G6: d{kk 1 ls 5 | I6: d{kk 6 ls 8 | K6: d{kk 1 ls 5 | M6: d{kk 6 ls 8 | O6: d{kk 1 ls 5 | Q6: d{kk 6 ls 8 | S6: d{kk 1 ls 5 | U6: d{kk 6 ls 8 | W6: d{kk 1 ls 5 | Y6: d{kk 6 ls 8 | AA6: d{kk 1 ls 5 | AC6: d{kk 6 ls 8 | AE6: d{kk 1 ls 5 | AG6: d{kk 6 ls 8
G7: xsagqW | H7: pkoy | I7: xsagqW | J7: pkoy | K7: xsagqW | L7: pkoy | M7: xsagqW | N7: pkoy | O7: xsagqW | P7: pkoy | Q7: xsagqW | R7: pkoy | S7: xsagqW | T7: pkoy | U7: xsagqW | V7: pkoy | W7: xsagqW | X7: pkoy | Y7: xsagqW | Z7: pkoy | AA7: xsagqW | AB7: pkoy | AC7: xsagqW | AD7: pkoy | AE7: xsagqW | AF7: pkoy | AG7: xsagqW | AH7: pkoy
A8: 1 | B8: 2 | C8: 3 | D8: 4 | E8: 5 | F8: 6 | G8: 7 | H8: 8 | I8: 9 | J8: 10 | K8: 11 | L8: 12 | M8: 13 | N8: 14 | O8: 15 | P8: 16 | Q8: 17 | R8: 18 | S8: 19 | T8: 20 | U8: 21 | V8: 22 | W8: 23 | X8: 24 | Y8: 25 | Z8: 26 | AA8: 27 | AB8: 28 | AC8: 29 | AD8: 30 | AE8: 31 | AF8: 32 | AG8: 33 | AH8: 34 | AI8: 35 | AJ8: 36
A9: 1 | B9: ='MASTER DATA'!C4 -> MGGS Bar | C9: ='PS Balance Sheet'!O37 -> 493 | D9: ='UPS balance Sheet'!O37 -> 390 | E9: ='PS Balance Sheet'!R37 -> 492 | F9: ='UPS balance Sheet'!R37 -> 389 | G9: ='Prarmbhik Shesh'!D7 -> 300.00 | H9: ='Prarmbhik Shesh'!D8 -> 200.00 | I9: ='Prarmbhik Shesh'!F7 -> 250.00 | J9: ='Prarmbhik Shesh'!F8 -> 150.00 | K9: ='PS Balance Sheet'!E37 -> 0.000 | L9: ='PS Balance Sheet'!F37 -> 0.000 | M9: ='UPS balance Sheet'!E37 -> 0.000 | N9: ='UPS balance Sheet'!F37 -> 0.000 | O9: ='PS Balance Sheet'!G37 -> 0.000 | P9: ='PS Balance Sheet'!H37 -> 0.000 | Q9: ='UPS balance Sheet'!G37 -> 0.000 | R9: ='UPS balance Sheet'!H37 -> 0.000 | S9: =G9+K9+O9 -> 300.000 | T9: =H9+L9+P9 -> 200.000 | U9: =I9+M9+Q9 -> 250.000 | V9: =J9+N9+R9 -> 150.000 | W9: ='PS Balance Sheet'!S37 -> 49.200 | X9: ='PS Balance Sheet'!T37 -> 0.000 | Y9: ='UPS balance Sheet'!S37 -> 58.350 | Z9: ='UPS balance Sheet'!T37 -> 0.000 | AA9: ='PS Balance Sheet'!I37 -> 0 | AB9: ='PS Balance Sheet'!J37 -> 0 | AC9: ='UPS balance Sheet'!I37 -> 0 | AD9: ='UPS balance Sheet'!J37 -> 0 | AE9: =S9-W9-AA9 -> 250.800 | AF9: =T9-X9-AB9 -> 200.000 | AG9: =U9-Y9-AC9 -> 191.650 | AH9: 150.000 | AI9: ='Att. Dairy'!Q40 -> 2 | AJ9: =COUNTA('MASTER DATA'!C35:D38)-COUNTIF('MASTER DATA'!C35:D38,"0")-COUNTIF('MASTER DATA'!C35:D38,"blank") -> 2
I11: jkf'k dk mi;ksfxrk izek.k&i= ¼lesfdr½ ¼:i;ksa esa½
K12: izi=&2
A13: Øl | B13: fo|ky; dk uke | D13: izkjfEHkd 'ks"k | M13: izkIr jkf'k | S13: dqy izkIr jkf'k | Y13: ekg esa mi;ksx jkf'k | AE13: Hkqxrku i'pkr 'ks"k jkf'k
D14: d{kk 1 ls 5 ¼ $ ;k & ½ | G14: d{kk 6 ls 8 ¼ $ ;k & ½ | J14: d{kk 1 ls 8 ¼ $ ;k & ½ | M14: d{kk 1 ls 5 | O14: d{kk 6 ls 8 | Q14: d{kk 1 ls 8 | S14: d{kk 1 ls 5 | U14: d{kk 6 ls 8 | W14: d{kk 1 ls 8 | Y14: d{kk 1 ls 5 | AA14: d{kk 6 ls 8 | AC14: d{kk 1 ls 8 | AE14: d{kk 1 ls 5 | AG14: d{kk 6 ls 8 | AI14: d{kk 1 ls 8
A16: 1 | B16: 2 | D16: 3 | G16: 4 | J16: 5 | M16: 6 | O16: 7 | Q16: 8 | S16: 9 | U16: 10 | W16: 11 | Y16: 12 | AA16: 13 | AC16: 14 | AE16: 15 | AG16: 16 | AI16: 17
A17: 1 | B17: ='MASTER DATA'!C4 -> MGGS Bar | D17: ='Prarmbhik Shesh'!D9 -> 10000.00 | G17: ='Prarmbhik Shesh'!F9 -> 15000.00 | J17: =D17+G17 -> 25000.00 | M17: ='Prarmbhik Shesh'!D10 -> 0.00 | O17: ='Prarmbhik Shesh'!F10 -> 0.00 | Q17: =M17+O17 -> 0.00 | S17: =D17+M17 -> 10000.00 | U17: =G17+O17 -> 15000.00 | W17: =J17+Q17 -> 25000.00 | Y17: ='Prarmbhik Shesh'!D12 -> 2445.24 | AA17: ='Prarmbhik Shesh'!F12 -> 2898.05 | AC17: =Y17+AA17 -> 5343.29 | AE17: =S17-Y17 -> 7554.76 | AG17: =U17-AA17 -> 12101.95 | AI17: =W17-AC17 -> 19656.71
I19: HkkSfrd izxfr fjiksVZ ¼lesfdr½
K20: izi=&3
A21: Øl | B21: fo|ky; dk uke | D21: fujh{k.k dk fooj.k la[;k | H21: fdpu 'ksM dh fLFkfr | P21: is;ty lqfo/kk ¼gs.MiEi½ | T21: 'kkSpky; gS ;k ugh | X21: vk;ksftr cSBd ,l-,elh- ¼fnuakd ½ | Z21: rjktq gS ;k ugh | AB21: [kk|kUu lqjf{kr j[kus ds crZu la[;k | AD21: jsEi gS ;k ugh | AF21: ekg ds vUr rd dqy [kkyh cksfj;kW dh la[;k | AI21: pkj fnokjh gS ;k ugh
D22: tuizfrfuf/k }kjk | F22: vf/kdkfj;ksa }kjk | H22: Mh-ih-bZ-ih- }kjk | J22: ,l-th-vkj-okbZ }kjk | L22: vkn'kZ jlksbZ?kj | N22: ,e-Mh-,e- ;kstuk }kjk | P22: pkyw | Q22: [kjkc | R22: udkjk | T22: Nk= | V22: Nk=k
H23: iw.kZ | I23: viw.kZ | J23: iw.kZ | K23: viw.kZ | L23: iw.kZ | M23: viw.kZ | N23: iw.kZ | O23: viw.kZ
A24: 1 | B24: 2 | D24: 3 | F24: 4 | H24: 5 | I24: 6 | J24: 7 | K24: 8 | L24: 9 | M24: 10 | N24: 11 | O24: 12 | P24: 13 | Q24: 14 | R24: 15 | T24: 16 | V24: 17 | X24: 18 | Z24: 19 | AB24: 20 | AD24: 21 | AF24: 22 | AI24: 23
A25: 1 | B25: ='MASTER DATA'!C4 -> MGGS Bar | D25: ='MASTER DATA'!C24 -> 0 | F25: ='MASTER DATA'!E24 -> 0 | H25: =IF(AND('MASTER DATA'!AF36='MASTER DATA'!AF28),"ü","") ->  | I25: =IF(AND('MASTER DATA'!AG36='MASTER DATA'!AG28),"ü","") ->  | J25: =IF(AND('MASTER DATA'!AH36='MASTER DATA'!AH28),"ü","") ->  | K25: =IF(AND('MASTER DATA'!AI36='MASTER DATA'!AI28),"ü","") ->  | L25: =IF(AND('MASTER DATA'!AJ36='MASTER DATA'!AJ28),"ü","") -> ü | M25: =IF(AND('MASTER DATA'!AK36='MASTER DATA'!AK28),"ü","") ->  | N25: =IF(AND('MASTER DATA'!AL36='MASTER DATA'!AL28),"ü","") -> ü | O25: =IF(AND('MASTER DATA'!AM36='MASTER DATA'!AM28),"ü","") ->  | P25: =IF(AND('MASTER DATA'!AN36='MASTER DATA'!AN28),"ü","") -> ü | Q25: =IF(AND('MASTER DATA'!AO36='MASTER DATA'!AO28),"ü","") ->  | R25: =IF(AND('MASTER DATA'!AP36='MASTER DATA'!AP28),"ü","") ->  | T25: =IF(AND('MASTER DATA'!AH38='MASTER DATA'!AP28),"ü","") -> ü | V25: =IF(AND('MASTER DATA'!AJ38='MASTER DATA'!AR28),"ü","") -> ü | X25: =IF(AND('MASTER DATA'!D27=""),"",'MASTER DATA'!D27) -> 2022-03-08 | Z25: =IF(AND('MASTER DATA'!AF37='MASTER DATA'!AP28),"YES","NO") -> YES | AB25: =IF(AND('MASTER DATA'!I27=""),"",'MASTER DATA'!I27) -> 5 | AD25: =IF(AND('MASTER DATA'!AH37='MASTER DATA'!AP28),"YES","NO") -> YES | AF25: =IF(AND('MASTER DATA'!P27=""),"",'MASTER DATA'!P27) -> 2 | AI25: =IF(AND('MASTER DATA'!AJ37='MASTER DATA'!AP28),"YES","NO") -> YES
B26: uksV %& lHkh dkWye dks lgh ,oa iw.kZ :i ls HkjsaA bldh leLr ftEesnkjh gLrk{kjdrkZ dh gksxhA
Y27: gLrk{kj iz/kkuk/;kid @ iz/kkukpk;Z @ uksMy izHkkjh

Sheet New UC Dak
A1: jk"Vªh; iks"kkgkj lgk;rk dk;ZØe (Mid Day Meal)
I2: fo|ky; ekfld lwpuk l=%& | O2: =CONCATENATE('MASTER DATA'!F4,"-",'MASTER DATA'!H4) -> 2022-2023
H3: izi= & 1
A4: fo|ky; dk uke %& | F4: =IF(AND('MASTER DATA'!C3=""),"",'MASTER DATA'!C3) -> egkRek xka/kh jktdh; fo|ky; ¼vaxzsth ek/;e½ cj ] ikyh | P4: MkbZl dksM ua- %& | S4: =IF(AND('MASTER DATA'!C10=""),"",'MASTER DATA'!C10) -> 8200303101
A5: ihbZbZvks@uksMy dk uke %& | F5: =IF(AND('MASTER DATA'!C5=""),"",'MASTER DATA'!C5) -> jkmekfo cj | P5: CykWd dk uke %& | S5: =IF(AND('MASTER DATA'!C14=""),"",'MASTER DATA'!C14) -> jk;iqj
A6: xzke iapk;r dk uke %& | F6: =IF(AND('MASTER DATA'!C13=""),"",'MASTER DATA'!C13) -> cj | P6: ekg@o"kZ %& | S6: =IF(AND('MASTER DATA'!J4=""),"",'MASTER DATA'!J4) -> tqykbZ&2022
A7: tkod Øekad la[;k %& | P7: fnukad %& | S7: =TODAY() -> 2022-07-03
H8: 1- fo|ky; fooj.k
A9: fo|ky; dk izdkj %& | F9: =IF(AND('MASTER DATA'!C15=""),"",'MASTER DATA'!C15) -> Government | P9: {ks= %& | S9: =IF(AND('MASTER DATA'!C16=""),"",'MASTER DATA'!C16) -> Rural
A10: ukekadu | B10: izkFkfed | L10: Grant Total | M10: mPp izkFkfed | W10: Grant Total | AI10: TRUE
B11: SC | D11: ST | F11: OBC | H11: GEN | J11: TOTAL | M11: SC | O11: ST | Q11: OBC | S11: GEN | U11: TOTAL
B12: B | C12: G | D12: B | E12: G | F12: B | G12: G | H12: B | I12: G | J12: B | K12: G | M12: B | N12: G | O12: B | P12: G | Q12: B | R12: G | S12: B | T12: G | U12: B | V12: G
B13: ='MASTER DATA'!F15 -> 33 | C13: ='MASTER DATA'!G15 -> 40 | D13: ='MASTER DATA'!H15 -> 33 | E13: ='MASTER DATA'!I15 -> 31 | F13: ='MASTER DATA'!J15 -> 44 | G13: ='MASTER DATA'!K15 -> 46 | H13: ='MASTER DATA'!L15 -> 34 | I13: ='MASTER DATA'!M15 -> 28 | J13: ='MASTER DATA'!N15 -> 144 | K13: ='MASTER DATA'!O15 -> 145 | L13: ='MASTER DATA'!P15 -> 289 | M13: ='MASTER DATA'!F19 -> 28 | N13: ='MASTER DATA'!G19 -> 27 | O13: ='MASTER DATA'!H19 -> 24 | P13: ='MASTER DATA'!I19 -> 33 | Q13: ='MASTER DATA'!J19 -> 22 | R13: ='MASTER DATA'!K19 -> 22 | S13: ='MASTER DATA'!L19 -> 22 | T13: ='MASTER DATA'!M19 -> 29 | U13: ='MASTER DATA'!N19 -> 96 | V13: ='MASTER DATA'!O19 -> 111 | W13: ='MASTER DATA'!P19 -> 207
H14: 2- cSad [kkrk fooj.k
A15: cSad dk uke e; 'kk[kk | K15: vkbZ,Q,llh dksM ua- | R15: [kkrk la[;k
A16: ='MASTER DATA'!G29 -> SBI BAR | K16: ='MASTER DATA'!G30 -> SBIN0033382 | R16: ='MASTER DATA'!G31 -> 51022334455
H17: 3- dqd de gsYij fooj.k
A18: Ø-l- | C18: dqd de gsYij dk uke | M18: fyax | P18: oxZ | S18: ns; jkf'k dk izdkj | V18: jkf'k
A19: 1 | C19: =IF(AND('MASTER DATA'!C35=""),"",'MASTER DATA'!C35) -> Dhagalai Devi | M19: =IF(AND(C19=""),"",IF(AND('MASTER DATA'!AF30="TRUE"),"MALE","FEMALE")) -> FEMALE | P19: =IF(AND(C19=""),"",IF(AND('MASTER DATA'!AH30=AI$10),"GEN",IF(AND('MASTER DATA'!AI30=AI$10),"OBC",IF(AND('MASTER DATA'!AJ30=AI$10),"SC",IF(AND('MASTER DATA'!AK30=AI$10),"ST"))))) -> OBC | S19: =IF(AND(C19=""),"",IF(AND('MASTER DATA'!AL30=AI$10),"By Cheque","By Cash")) -> By Cheque | V19: =IF(AND(C19=""),"",IF(AND('MASTER DATA'!P35=""),"",'MASTER DATA'!P35)) -> 1320
A20: 2 | C20: =IF(AND('MASTER DATA'!C36=""),"",'MASTER DATA'!C36) -> Geeta Devi | M20: =IF(AND(C20=""),"",IF(AND('MASTER DATA'!AF31="TRUE"),"MALE","FEMALE")) -> FEMALE | P20: =IF(AND(C20=""),"",IF(AND('MASTER DATA'!AH31=AI$10),"GEN",IF(AND('MASTER DATA'!AI31=AI$10),"OBC",IF(AND('MASTER DATA'!AJ31=AI$10),"SC",IF(AND('MASTER DATA'!AK31=AI$10),"ST"))))) -> GEN | S20: =IF(AND(C20=""),"",IF(AND('MASTER DATA'!AL31=AI$10),"By Cheque","By Cash")) -> By Cheque | V20: =IF(AND(C20=""),"",IF(AND('MASTER DATA'!P36=""),"",'MASTER DATA'!P36)) -> 1320
A21: 3 | C21: =IF(AND('MASTER DATA'!C37=""),"",'MASTER DATA'!C37) ->  | M21: =IF(AND(C21=""),"",IF(AND('MASTER DATA'!AF32="TRUE"),"MALE","FEMALE")) ->  | P21: =IF(AND(C21=""),"",IF(AND('MASTER DATA'!AH32=AI$10),"GEN",IF(AND('MASTER DATA'!AI32=AI$10),"OBC",IF(AND('MASTER DATA'!AJ32=AI$10),"SC",IF(AND('MASTER DATA'!AK32=AI$10),"ST"))))) ->  | S21: =IF(AND(C21=""),"",IF(AND('MASTER DATA'!AL32=AI$10),"By Cheque","By Cash")) ->  | V21: =IF(AND(C21=""),"",IF(AND('MASTER DATA'!P37=""),"",'MASTER DATA'!P37)) -> 
A22: 4 | C22: =IF(AND('MASTER DATA'!C38=""),"",'MASTER DATA'!C38) ->  | M22: =IF(AND(C22=""),"",IF(AND('MASTER DATA'!AF33="TRUE"),"MALE","FEMALE")) ->  | P22: =IF(AND(C22=""),"",IF(AND('MASTER DATA'!AH33=AI$10),"GEN",IF(AND('MASTER DATA'!AI33=AI$10),"OBC",IF(AND('MASTER DATA'!AJ33=AI$10),"SC",IF(AND('MASTER DATA'!AK33=AI$10),"ST"))))) ->  | S22: =IF(AND(C22=""),"",IF(AND('MASTER DATA'!AL33=AI$10),"By Cheque","By Cash")) ->  | V22: =IF(AND(C22=""),"",IF(AND('MASTER DATA'!P38=""),"",'MASTER DATA'!P38)) -> 
H23: 4- bl ekg esa fo|ky; dk fujh{k.k
A24: Ø-l- | C24: vf/kdkjh dk fooj.k | M24: gkW ;k ugh | P24: fnukad | S24: vf/kdkjh dk uke
A25: 1 | C25: l?ku fujh{k.k Vhe }kjk
A26: 2 | C26: ftyk Lrjh; Lrjh; vf/kdkjh }kjk
A27: 3 | C27: CykWd@rgfly Lrjh; Lrjh; vf/kdkjh }kjk
A28: 4 | C28: ihbZbZvks@iapk;r Lrjh; Lrjh; vf/kdkjh }kjk
A29: 5 | C29: ,l-Mh-,e-lh-@,l-,e-lh- ds lnL; }kjk
D30: 5- bl ekg esa ?kfVr dksbZ feM Ms fey lEcfU/kr ?kVuk ;k f'kdk;r dk fooj.k ¼;fn dksbZ gks½
A31: Ø-l- | C31: f'kdk;r la[;k | H31: ?kVuk dk fooj.k
A32: 1
H33: 6- [kk|kUu dh tkudkjh ¼fdyksxzke esa½
A34: [kk|kUu dk izdkj | C34: izkFkfed Lrj ij 100 xzke izfr fo|kFkhZ | M34: mPp izkFkfed Lrj ij 150 xzke izfr fo|kFkhZ
C35: izkjfEHkd 'ks"k | E35: bl ekg esa izkIr | G35: dqy | I35: bl ekg esa [kpZ | K35: vfUre 'ks"k [kk|kUu | M35: izkjfEHkd 'ks"k | O35: bl ekg esa izkIr | Q35: dqy | S35: bl ekg esa [kpZ | U35: vfUre 'ks"k [kk|kUu
A36: xsgwW | C36: ='Prarmbhik Shesh'!D7 -> 300.00 | E36: ='PS Balance Sheet'!E37+'PS Balance Sheet'!G37+'PS Balance Sheet'!I37 -> 0.00 | G36: =C36+E36 -> 300.00 | I36: ='PS Balance Sheet'!S37 -> 49.20 | K36: =G36-I36 -> 250.80 | M36: ='Prarmbhik Shesh'!F7 -> 250.00 | O36: ='UPS balance Sheet'!E37+'UPS balance Sheet'!G37+'UPS balance Sheet'!I37 -> 0.00 | Q36: =M36+O36 -> 250.00 | S36: ='UPS balance Sheet'!S37 -> 58.35 | U36: =Q36-S36 -> 191.65
A37: pkoy | C37: ='Prarmbhik Shesh'!D8 -> 200.00 | E37: ='PS Balance Sheet'!F37+'PS Balance Sheet'!H37+'PS Balance Sheet'!J37 -> 0.00 | G37: =C37+E37 -> 200.00 | I37: ='PS Balance Sheet'!T37 -> 0.00 | K37: =G37-I37 -> 200.00 | M37: ='Prarmbhik Shesh'!F8 -> 150.00 | O37: ='UPS balance Sheet'!F37+'UPS balance Sheet'!H37+'UPS balance Sheet'!J37 -> 0.00 | Q37: =M37+O37 -> 150.00 | S37: ='UPS balance Sheet'!T37 -> 0.00 | U37: =Q37-S37 -> 150.00
A38: ;ksx | C38: =C36+C37 -> 500.00 | E38: =E36+E37 -> 0.00 | G38: =G36+G37 -> 500.00 | I38: =I36+I37 -> 49.20 | K38: =K36+K37 -> 450.80 | M38: =M36+M37 -> 400.00 | O38: =O36+O37 -> 0.00 | Q38: =Q36+Q37 -> 400.00 | S38: =S36+S37 -> 58.35 | U38: =U36+U37 -> 341.65
G39: 7- Hkkstu idkusa esa O;; dh jkf'k dh tkudkjh ¼:Ik;ksa esa½
A40: dqfdax dUotZu jkf'k | C40: Hkkstu cukusa esa O;; jkf'k
C41: izkFkfed | J41: mPp izkFkfrd | Q41: dqy ;ksx
C42: =CONCATENATE("RS","-"," ",'MASTER DATA'!$C$30," ","@ Unit") -> RS- 4.97 @ Unit | J42: =CONCATENATE("RS","-"," ",'MASTER DATA'!$C$31," ","@ Unit") -> RS- 7.45 @ Unit
C43: ='PS Balance Sheet'!W37 -> 2445.24 | J43: ='UPS balance Sheet'!W37 -> 2898.05 | Q43: =C43+J43 -> 5343.29
C44: izkFkfed | M44: mPp izkFkfed
C45: izkjfEHkd 'ks"k | E45: bl ekg esa izkIr jkf'k | G45: dqy jkf'k | I45: bl ekg esa [kpZ jkf'k | K45: vfUre 'ks"k | M45: izkjfEHkd 'ks"k | O45: bl ekg esa izkIr jkf'k | Q45: dqy jkf'k | S45: bl ekg esa [kpZ jkf'k | U45: vfUre 'ks"k
C46: ='Prarmbhik Shesh'!D9 -> 10000.00 | E46: ='Prarmbhik Shesh'!D10 -> 0.00 | G46: =C46+E46 -> 10000.00 | I46: ='PS Balance Sheet'!W37 -> 2445.24 | K46: =G46-I46 -> 7554.76 | M46: ='Prarmbhik Shesh'!F9 -> 15000.00 | O46: ='Prarmbhik Shesh'!F10 -> 0.00 | Q46: =M46+O46 -> 15000.00 | S46: ='UPS balance Sheet'!W37 -> 2898.05 | U46: =Q46-S46 -> 12101.95
H48: 8- dqd de gsYij dh jkf'k dk fooj.k
A49: izkjfEHkd 'ks"k | F49: bl ekg esa izkIr jkf'k | K49: bl ekg esa [kpZ jkf'k | R49: vfUre 'ks"k
A50: ='Prarmbhik Shesh'!D14+'Prarmbhik Shesh'!F14 -> 4000 | F50: ='Prarmbhik Shesh'!D15+'Prarmbhik Shesh'!F15 -> 12000 | K50: ='Prarmbhik Shesh'!D17+'Prarmbhik Shesh'!F17 -> 0 | R50: =A50+F50-K50 -> 16000
H51: 9- ,e-,e-bZ jkf'k dk fooj.k
A52: izkjfEHkd 'ks"k | F52: bl ekg esa izkIr jkf'k | K52: bl ekg esa [kpZ jkf'k | R52: vfUre 'ks"k
R53: =A53+F53-K53 -> 0
B56: =IF(AND('MASTER DATA'!C7=""),"",'MASTER DATA'!C7) -> vfHkeU;q flag | O56: =IF(AND('MASTER DATA'!C6=""),"",'MASTER DATA'!C6) -> m"kk ify;k
A57: iks"kkgkj izHkkjh gLrk{kj e; lhy | O57: laLFkk iz/kku gLrk{kj e; lhy
A58: iks"kkgkj izHkkjh eks-u- %& | F58: =IF(AND('MASTER DATA'!C9=""),"",'MASTER DATA'!C9) -> 9929247228 | N58: laLFkk iz/kku eksckbZy uEcj %& | T58: =IF(AND('MASTER DATA'!C8=""),"",'MASTER DATA'!C8) -> 9929247227

Sheet Stock
C2: QqzV~l ds fy, fuf'pr okj dks forfjr djds otu fdyksxzke esa fu;r~ rkjh[k ds lkeusa fy[ksa ;g dkWye vuykWd ¼lQsn dyj esa½ gSa H ↓
C5: izfrfnu jk'ku lQykbZ dh ek=k | M5: izkFkfed d{kk gsrq
A7: fnukad | B7: okj | C7: dqy ykHkkfUor | D7: xsagq | E7: pkoy | F7: lCth | G7: nky | H7: rsy | I7: fephZ | J7: /kfu;k | K7: gYnh | L7: thjk | M7: ued | N7: ÝqV | O7: Gas
A8: izkjfEHkd 'ks"k | D8: ='Prarmbhik Shesh'!D7 -> 300.000 | E8: ='Prarmbhik Shesh'!D8 -> 200.000 | F8: 45.000 | G8: 25.000 | H8: 15.000 | I8: 3.000 | J8: 2.000 | K8: 2.000 | L8: 1.000 | M8: 3.000 | O8: 30 | P8: KG | V8: भोजन Menu
A9: =IFERROR('Att. Dairy'!B6,"") -> 2022-07-01 | B9: =IFERROR('Att. Dairy'!D6,"") -> Friday | C9: =IFERROR('PS Balance Sheet'!R6,"") -> 246 | D9: =D8-'PS Balance Sheet'!S6 -> 275.400 | E9: =E8-'PS Balance Sheet'!T6 -> 200.000 | F9: =F8-IF(AND($B9="monday"),C9*0.05,IF(AND($B9="thursday"),C9*0.025,IF(AND($B9="saturday"),C9*0.05,"0"))) -> 45.000 | G9: =G8-IF(AND($B9="Tuesday"),C9*0.02,IF(AND($B9="Wednesday"),C9*0.02,IF(AND($B9="thursday"),C9*0.005,IF(AND($B9="Friday"),C9*0.02,"0")))) -> 20.080 | H9: =H8-IF(AND(C9=""),"",C9*0.005) -> 13.770 | I9: =I8-IF(AND(C9=""),"",C9*0.0015) -> 2.631 | J9: =J8-IF(AND(C9=""),"",C9*0.0015) -> 1.631 | K9: =K8-IF(AND(C9=""),"",C9*0.0005) -> 1.877 | L9: =L8-IF(AND(C9=""),"",C9*0.0005) -> 0.877 | M9: =M8-IF(AND(C9=""),"",C9*0.0015) -> 2.631 | O9: =O8-IF(AND($O$7="Fire Woods"),C9*0.2,IF(AND($O$7="Gas"),C9*0.02,"")) -> 25.080
A10: =IFERROR('Att. Dairy'!B7,"") -> 2022-07-02 | B10: =IFERROR('Att. Dairy'!D7,"") -> Saturday | C10: =IFERROR('PS Balance Sheet'!R7,"") -> 246 | D10: =D9-'PS Balance Sheet'!S7 -> 250.800 | E10: =E9-'PS Balance Sheet'!T7 -> 200.000 | F10: 32.700 | G10: =G9-IF(AND($B10="Tuesday"),C10*0.02,IF(AND($B10="Wednesday"),C10*0.02,IF(AND($B10="thursday"),C10*0.005,IF(AND($B10="Friday"),C10*0.02,"0")))) -> 20.080 | H10: 12.540 | I10: 2.262 | J10: 1.262 | K10: 1.754 | L10: 0.754 | M10: 2.262 | O10: 20.160 | V10: वार | X10: भोजन का प्रकार
A11: =IFERROR('Att. Dairy'!B8,"") -> 2022-07-03 | B11: =IFERROR('Att. Dairy'!D8,"") -> Sunday | C11: =IFERROR('PS Balance Sheet'!R8,"") -> 0 | D11: =D10-'PS Balance Sheet'!S8 -> 250.800 | E11: =E10-'PS Balance Sheet'!T8 -> 200.000 | F11: 32.700 | G11: 20.080 | H11: 12.540 | I11: 2.262 | J11: 1.262 | K11: 1.754 | L11: 0.754 | M11: 2.262 | O11: 20.160 | BX11: Fire Woods
A12: =IFERROR('Att. Dairy'!B9,"") -> 2022-07-04 | B12: =IFERROR('Att. Dairy'!D9,"") -> Monday | C12: =IFERROR('PS Balance Sheet'!R9,"") -> 0 | D12: =D11-'PS Balance Sheet'!S9 -> 250.800 | E12: =E11-'PS Balance Sheet'!T9 -> 200.000 | F12: 32.700 | G12: 20.080 | H12: 12.540 | I12: 2.262 | J12: 1.262 | K12: 1.754 | L12: 0.754 | M12: 2.262 | O12: 20.160 | BX12: Gas
A13: =IFERROR('Att. Dairy'!B10,"") -> 2022-07-05 | B13: =IFERROR('Att. Dairy'!D10,"") -> Tuesday | C13: =IFERROR('PS Balance Sheet'!R10,"") -> 0 | D13: =D12-'PS Balance Sheet'!S10 -> 250.800 | E13: =E12-'PS Balance Sheet'!T10 -> 200.000 | F13: 32.700 | G13: 20.080 | H13: 12.540 | I13: 2.262 | J13: 1.262 | K13: 1.754 | L13: 0.754 | M13: 2.262 | O13: 20.160 | V13: सोमवार | X13: सब्जी रोटी
A14: =IFERROR('Att. Dairy'!B11,"") -> 2022-07-06 | B14: =IFERROR('Att. Dairy'!D11,"") -> Wednesday | C14: =IFERROR('PS Balance Sheet'!R11,"") -> 0 | D14: =D13-'PS Balance Sheet'!S11 -> 250.800 | E14: =E13-'PS Balance Sheet'!T11 -> 200.000 | F14: 32.700 | G14: 20.080 | H14: 12.540 | I14: 2.262 | J14: 1.262 | K14: 1.754 | L14: 0.754 | M14: 2.262 | O14: 20.160 | V14: मंगलवार | X14: दाल चावल
A15: =IFERROR('Att. Dairy'!B12,"") -> 2022-07-07 | B15: =IFERROR('Att. Dairy'!D12,"") -> Thursday | C15: =IFERROR('PS Balance Sheet'!R12,"") -> 0 | D15: =D14-'PS Balance Sheet'!S12 -> 250.800 | E15: =E14-'PS Balance Sheet'!T12 -> 200.000 | F15: 32.700 | G15: 20.080 | H15: 12.540 | I15: 2.262 | J15: 1.262 | K15: 1.754 | L15: 0.754 | M15: 2.262 | O15: 20.160 | V15: बुधवार | X15: दाल रोटी
A16: =IFERROR('Att. Dairy'!B13,"") -> 2022-07-08 | B16: =IFERROR('Att. Dairy'!D13,"") -> Friday | C16: =IFERROR('PS Balance Sheet'!R13,"") -> 0 | D16: =D15-'PS Balance Sheet'!S13 -> 250.800 | E16: =E15-'PS Balance Sheet'!T13 -> 200.000 | F16: 32.700 | G16: 20.080 | H16: 12.540 | I16: 2.262 | J16: 1.262 | K16: 1.754 | L16: 0.754 | M16: 2.262 | O16: 20.160 | V16: गुरुवार | X16: खिचड़ी
A17: =IFERROR('Att. Dairy'!B14,"") -> 2022-07-09 | B17: =IFERROR('Att. Dairy'!D14,"") -> Saturday | C17: =IFERROR('PS Balance Sheet'!R14,"") -> 0 | D17: =D16-'PS Balance Sheet'!S14 -> 250.800 | E17: =E16-'PS Balance Sheet'!T14 -> 200.000 | F17: 32.700 | G17: 20.080 | H17: 12.540 | I17: 2.262 | J17: 1.262 | K17: 1.754 | L17: 0.754 | M17: 2.262 | O17: 20.160 | V17: शुक्रवार | X17: दाल रोटी
A18: =IFERROR('Att. Dairy'!B15,"") -> 2022-07-10 | B18: =IFERROR('Att. Dairy'!D15,"") -> Sunday | C18: =IFERROR('PS Balance Sheet'!R15,"") -> 0 | D18: =D17-'PS Balance Sheet'!S15 -> 250.800 | E18: =E17-'PS Balance Sheet'!T15 -> 200.000 | F18: 32.700 | G18: 20.080 | H18: 12.540 | I18: 2.262 | J18: 1.262 | K18: 1.754 | L18: 0.754 | M18: 2.262 | O18: 20.160 | V18: शनिवार | X18: सब्जी रोटी
A19: =IFERROR('Att. Dairy'!B16,"") -> 2022-07-11 | B19: =IFERROR('Att. Dairy'!D16,"") -> Monday | C19: =IFERROR('PS Balance Sheet'!R16,"") -> 0 | D19: =D18-'PS Balance Sheet'!S16 -> 250.800 | E19: =E18-'PS Balance Sheet'!T16 -> 200.000 | F19: 32.700 | G19: 20.080 | H19: 12.540 | I19: 2.262 | J19: 1.262 | K19: 1.754 | L19: 0.754 | M19: 2.262 | O19: 20.160
A20: =IFERROR('Att. Dairy'!B17,"") -> 2022-07-12 | B20: =IFERROR('Att. Dairy'!D17,"") -> Tuesday | C20: =IFERROR('PS Balance Sheet'!R17,"") -> 0 | D20: =D19-'PS Balance Sheet'!S17 -> 250.800 | E20: =E19-'PS Balance Sheet'!T17 -> 200.000 | F20: 32.700 | G20: 20.080 | H20: 12.540 | I20: 2.262 | J20: 1.262 | K20: 1.754 | L20: 0.754 | M20: 2.262 | O20: 20.160
A21: =IFERROR('Att. Dairy'!B18,"") -> 2022-07-13 | B21: =IFERROR('Att. Dairy'!D18,"") -> Wednesday | C21: =IFERROR('PS Balance Sheet'!R18,"") -> 0 | D21: =D20-'PS Balance Sheet'!S18 -> 250.800 | E21: =E20-'PS Balance Sheet'!T18 -> 200.000 | F21: 32.700 | G21: 20.080 | H21: 12.540 | I21: 2.262 | J21: 1.262 | K21: 1.754 | L21: 0.754 | M21: 2.262 | O21: 20.160
A22: =IFERROR('Att. Dairy'!B19,"") -> 2022-07-14 | B22: =IFERROR('Att. Dairy'!D19,"") -> Thursday | C22: =IFERROR('PS Balance Sheet'!R19,"") -> 0 | D22: =D21-'PS Balance Sheet'!S19 -> 250.800 | E22: =E21-'PS Balance Sheet'!T19 -> 200.000 | F22: 32.700 | G22: 20.080 | H22: 12.540 | I22: 2.262 | J22: 1.262 | K22: 1.754 | L22: 0.754 | M22: 2.262 | O22: 20.160 | X22: सामग्री विवरण
A23: =IFERROR('Att. Dairy'!B20,"") -> 2022-07-15 | B23: =IFERROR('Att. Dairy'!D20,"") -> Friday | C23: =IFERROR('PS Balance Sheet'!R20,"") -> 0 | D23: =D22-'PS Balance Sheet'!S20 -> 250.800 | E23: =E22-'PS Balance Sheet'!T20 -> 200.000 | F23: 32.700 | G23: 20.080 | H23: 12.540 | I23: 2.262 | J23: 1.262 | K23: 1.754 | L23: 0.754 | M23: 2.262 | O23: 20.160
A24: =IFERROR('Att. Dairy'!B21,"") -> 2022-07-16 | B24: =IFERROR('Att. Dairy'!D21,"") -> Saturday | C24: =IFERROR('PS Balance Sheet'!R21,"") -> 0 | D24: =D23-'PS Balance Sheet'!S21 -> 250.800 | E24: =E23-'PS Balance Sheet'!T21 -> 200.000 | F24: 32.700 | G24: 20.080 | H24: 12.540 | I24: 2.262 | J24: 1.262 | K24: 1.754 | L24: 0.754 | M24: 2.262 | O24: 20.160 | T24: सामग्री | W24: प्राथमिक कक्षाओ हेतु | AA24: उच्च प्राथमिक कक्षाओ हेतु
A25: =IFERROR('Att. Dairy'!B22,"") -> 2022-07-17 | B25: =IFERROR('Att. Dairy'!D22,"") -> Sunday | C25: =IFERROR('PS Balance Sheet'!R22,"") -> 0 | D25: =D24-'PS Balance Sheet'!S22 -> 250.800 | E25: =E24-'PS Balance Sheet'!T22 -> 200.000 | F25: 32.700 | G25: 20.080 | H25: 12.540 | I25: 2.262 | J25: 1.262 | K25: 1.754 | L25: 0.754 | M25: 2.262 | O25: 20.160
A26: =IFERROR('Att. Dairy'!B23,"") -> 2022-07-18 | B26: =IFERROR('Att. Dairy'!D23,"") -> Monday | C26: =IFERROR('PS Balance Sheet'!R23,"") -> 0 | D26: =D25-'PS Balance Sheet'!S23 -> 250.800 | E26: =E25-'PS Balance Sheet'!T23 -> 200.000 | F26: 32.700 | G26: 20.080 | H26: 12.540 | I26: 2.262 | J26: 1.262 | K26: 1.754 | L26: 0.754 | M26: 2.262 | O26: 20.160
A27: =IFERROR('Att. Dairy'!B24,"") -> 2022-07-19 | B27: =IFERROR('Att. Dairy'!D24,"") -> Tuesday | C27: =IFERROR('PS Balance Sheet'!R24,"") -> 0 | D27: =D26-'PS Balance Sheet'!S24 -> 250.800 | E27: =E26-'PS Balance Sheet'!T24 -> 200.000 | F27: 32.700 | G27: 20.080 | H27: 12.540 | I27: 2.262 | J27: 1.262 | K27: 1.754 | L27: 0.754 | M27: 2.262 | O27: 20.160 | T27: खाद्यान्न | W27: 100 | X27: ग्राम | AB27: 150 | AC27: ग्राम
A28: =IFERROR('Att. Dairy'!B25,"") -> 2022-07-20 | B28: =IFERROR('Att. Dairy'!D25,"") -> Wednesday | C28: =IFERROR('PS Balance Sheet'!R25,"") -> 0 | D28: =D27-'PS Balance Sheet'!S25 -> 250.800 | E28: =E27-'PS Balance Sheet'!T25 -> 200.000 | F28: 32.700 | G28: 20.080 | H28: 12.540 | I28: 2.262 | J28: 1.262 | K28: 1.754 | L28: 0.754 | M28: 2.262 | O28: 20.160 | T28: दालें | W28: 20 | X28: ग्राम | AB28: 30 | AC28: ग्राम
A29: =IFERROR('Att. Dairy'!B26,"") -> 2022-07-21 | B29: =IFERROR('Att. Dairy'!D26,"") -> Thursday | C29: =IFERROR('PS Balance Sheet'!R26,"") -> 0 | D29: =D28-'PS Balance Sheet'!S26 -> 250.800 | E29: =E28-'PS Balance Sheet'!T26 -> 200.000 | F29: 32.700 | G29: 20.080 | H29: 12.540 | I29: 2.262 | J29: 1.262 | K29: 1.754 | L29: 0.754 | M29: 2.262 | O29: 20.160 | T29: सब्जी | W29: 50 | X29: ग्राम | AB29: 75 | AC29: ग्राम
A30: =IFERROR('Att. Dairy'!B27,"") -> 2022-07-22 | B30: =IFERROR('Att. Dairy'!D27,"") -> Friday | C30: =IFERROR('PS Balance Sheet'!R27,"") -> 0 | D30: =D29-'PS Balance Sheet'!S27 -> 250.800 | E30: =E29-'PS Balance Sheet'!T27 -> 200.000 | F30: 32.700 | G30: 20.080 | H30: 12.540 | I30: 2.262 | J30: 1.262 | K30: 1.754 | L30: 0.754 | M30: 2.262 | O30: 20.160 | T30: तेल | W30: 5 | X30: ग्राम | AB30: 7.5 | AC30: ग्राम
A31: =IFERROR('Att. Dairy'!B28,"") -> 2022-07-23 | B31: =IFERROR('Att. Dairy'!D28,"") -> Saturday | C31: =IFERROR('PS Balance Sheet'!R28,"") -> 0 | D31: =D30-'PS Balance Sheet'!S28 -> 250.800 | E31: =E30-'PS Balance Sheet'!T28 -> 200.000 | F31: 32.700 | G31: 20.080 | H31: 12.540 | I31: 2.262 | J31: 1.262 | K31: 1.754 | L31: 0.754 | M31: 2.262 | O31: 20.160 | T31: नमक व मसाले | W31: आवश्यकतानुसार | AA31: आवश्यकतानुसार
A32: =IFERROR('Att. Dairy'!B29,"") -> 2022-07-24 | B32: =IFERROR('Att. Dairy'!D29,"") -> Sunday | C32: =IFERROR('PS Balance Sheet'!R29,"") -> 0 | D32: =D31-'PS Balance Sheet'!S29 -> 250.800 | E32: =E31-'PS Balance Sheet'!T29 -> 200.000 | F32: 32.700 | G32: 20.080 | H32: 12.540 | I32: 2.262 | J32: 1.262 | K32: 1.754 | L32: 0.754 | M32: 2.262 | O32: 20.160 | T32: सप्ताह में मौसम के अनुसार एक बार फल का वितरण
A33: =IFERROR('Att. Dairy'!B30,"") -> 2022-07-25 | B33: =IFERROR('Att. Dairy'!D30,"") -> Monday | C33: =IFERROR('PS Balance Sheet'!R30,"") -> 0 | D33: =D32-'PS Balance Sheet'!S30 -> 250.800 | E33: =E32-'PS Balance Sheet'!T30 -> 200.000 | F33: 32.700 | G33: 20.080 | H33: 12.540 | I33: 2.262 | J33: 1.262 | K33: 1.754 | L33: 0.754 | M33: 2.262 | O33: 20.160
A34: =IFERROR('Att. Dairy'!B31,"") -> 2022-07-26 | B34: =IFERROR('Att. Dairy'!D31,"") -> Tuesday | C34: =IFERROR('PS Balance Sheet'!R31,"") -> 0 | D34: =D33-'PS Balance Sheet'!S31 -> 250.800 | E34: =E33-'PS Balance Sheet'!T31 -> 200.000 | F34: 32.700 | G34: 20.080 | H34: 12.540 | I34: 2.262 | J34: 1.262 | K34: 1.754 | L34: 0.754 | M34: 2.262 | O34: 20.160
A35: =IFERROR('Att. Dairy'!B32,"") -> 2022-07-27 | B35: =IFERROR('Att. Dairy'!D32,"") -> Wednesday | C35: =IFERROR('PS Balance Sheet'!R32,"") -> 0 | D35: =D34-'PS Balance Sheet'!S32 -> 250.800 | E35: =E34-'PS Balance Sheet'!T32 -> 200.000 | F35: 32.700 | G35: 20.080 | H35: 12.540 | I35: 2.262 | J35: 1.262 | K35: 1.754 | L35: 0.754 | M35: 2.262 | O35: 20.160
A36: =IFERROR('Att. Dairy'!B33,"") -> 2022-07-28 | B36: =IFERROR('Att. Dairy'!D33,"") -> Thursday | C36: =IFERROR('PS Balance Sheet'!R33,"") -> 0 | D36: =D35-'PS Balance Sheet'!S33 -> 250.800 | E36: =E35-'PS Balance Sheet'!T33 -> 200.000 | F36: 32.700 | G36: 20.080 | H36: 12.540 | I36: 2.262 | J36: 1.262 | K36: 1.754 | L36: 0.754 | M36: 2.262 | O36: 20.160
A37: =IFERROR('Att. Dairy'!B34,"") -> 2022-07-29 | B37: =IFERROR('Att. Dairy'!D34,"") -> Friday | C37: =IFERROR('PS Balance Sheet'!R34,"") -> 0 | D37: =D36-'PS Balance Sheet'!S34 -> 250.800 | E37: =E36-'PS Balance Sheet'!T34 -> 200.000 | F37: 32.700 | G37: 20.080 | H37: 12.540 | I37: 2.262 | J37: 1.262 | K37: 1.754 | L37: 0.754 | M37: 2.262 | O37: 20.160
A38: =IFERROR('Att. Dairy'!B35,"") -> 2022-07-30 | B38: =IFERROR('Att. Dairy'!D35,"") -> Saturday | C38: =IFERROR('PS Balance Sheet'!R35,"") -> 0 | D38: =D37-'PS Balance Sheet'!S35 -> 250.800 | E38: =E37-'PS Balance Sheet'!T35 -> 200.000 | F38: 32.700 | G38: 20.080 | H38: 12.540 | I38: 2.262 | J38: 1.262 | K38: 1.754 | L38: 0.754 | M38: 2.262 | O38: 20.160
A39: =IFERROR('Att. Dairy'!B36,"") -> 2022-07-31 | B39: =IFERROR('Att. Dairy'!D36,"") -> Sunday | C39: =IFERROR('PS Balance Sheet'!R36,"") -> 0 | D39: =D38-'PS Balance Sheet'!S36 -> 250.800 | E39: =E38-'PS Balance Sheet'!T36 -> 200.000 | F39: =F38-IF(AND($B39="monday"),C39*BP$13/1000,IF(AND($B39="thursday"),C39*BP$13/2000,IF(AND($B39="saturday"),C39*BP$13/1000,"0"))) -> 32.700 | G39: =G38-IF(AND($B39="Tuesday"),C39*0.02,IF(AND($B39="Wednesday"),C39*0.02,IF(AND($B39="thursday"),C39*0.005,IF(AND($B39="Friday"),C39*0.02,"0")))) -> 20.080 | H39: =H38-IF(AND(C39=""),"",C39*BP$14/1000) -> 12.540 | I39: 2.262 | J39: 1.262 | K39: 1.754 | L39: 0.754 | M39: 2.262 | N39: =SUM(N9:N38) -> 0 | O39: 20.160
C43: izfrfnu jk'ku lQykbZ dh ek=k | L43: mPp izkFkfed d{kk gsrq
A45: fnukad | B45: okj | C45: dqy ykHkkfUor | D45: xsagq | E45: pkoy | F45: lCth | G45: nky | H45: rsy | I45: fephZ | J45: /kfu;k | K45: gYnh | L45: thjk | M45: ued | N45: ÝqV | O45: Gas
A46: izkjfEHkd 'ks"k | D46: ='Prarmbhik Shesh'!F7 -> 250.000 | E46: ='Prarmbhik Shesh'!F8 -> 150.000 | F46: 45.000 | G46: 35.000 | H46: 15.000 | I46: 3.000 | J46: 2.000 | K46: 2.000 | L46: 1.000 | M46: 3.000 | O46: 30 | P46: KG
A47: ='Att. Dairy'!B6 -> 2022-07-01 | B47: ='Att. Dairy'!D6 -> Friday | C47: ='UPS balance Sheet'!R6 -> 199 | D47: =D46-'UPS balance Sheet'!S6 -> 220.150 | E47: =E46-'UPS balance Sheet'!T6 -> 150.000 | F47: =F46-IF(AND($B47="monday"),C47*0.075,IF(AND($B47="thursday"),C47*0.038,IF(AND($B47="saturday"),C47*0.075,"0"))) -> 45.000 | G47: =G46-IF(AND($B47="Tuesday"),C47*0.03,IF(AND($B47="Wednesday"),C47*0.03,IF(AND($B47="thursday"),C47*0.005,IF(AND($B47="Friday"),C47*0.03,"0")))) -> 29.030 | H47: =H46-IF(AND(C47=""),"",C47*0.0075) -> 13.508 | I47: =I46-IF(AND(C47=""),"",C47*0.0015) -> 2.702 | J47: =J46-IF(AND(C47=""),"",C47*0.0015) -> 1.702 | K47: =K46-IF(AND(C47=""),"",C47*0.0005) -> 1.901 | L47: =L46-IF(AND(C47=""),"",C47*0.0005) -> 0.901 | M47: =M46-IF(AND(C47=""),"",C47*0.0015) -> 2.702 | O47: =O46-IF(AND($O$45="Fire Woods"),C47*0.2,IF(AND($O$45="Gas"),C47*0.02,"")) -> 26.020
A48: ='Att. Dairy'!B7 -> 2022-07-02 | B48: ='Att. Dairy'!D7 -> Saturday | C48: ='UPS balance Sheet'!R7 -> 190 | D48: =D47-'UPS balance Sheet'!S7 -> 191.650 | E48: =E47-'UPS balance Sheet'!T7 -> 150.000 | F48: 30.750 | G48: =G47-IF(AND($B48="Tuesday"),C48*0.03,IF(AND($B48="Wednesday"),C48*0.03,IF(AND($B48="thursday"),C48*0.005,IF(AND($B48="Friday"),C48*0.03,"0")))) -> 29.030 | H48: 12.083 | I48: 2.417 | J48: 1.417 | K48: 1.806 | L48: 0.806 | M48: 2.417 | O48: 22.220
A49: ='Att. Dairy'!B8 -> 2022-07-03 | B49: ='Att. Dairy'!D8 -> Sunday | C49: ='UPS balance Sheet'!R8 -> 0 | D49: =D48-'UPS balance Sheet'!S8 -> 191.650 | E49: =E48-'UPS balance Sheet'!T8 -> 150.000 | F49: 30.750 | G49: 29.030 | H49: 12.083 | I49: 2.417 | J49: 1.417 | K49: 1.806 | L49: 0.806 | M49: 2.417 | O49: 22.220
A50: ='Att. Dairy'!B9 -> 2022-07-04 | B50: ='Att. Dairy'!D9 -> Monday | C50: ='UPS balance Sheet'!R9 -> 0 | D50: =D49-'UPS balance Sheet'!S9 -> 191.650 | E50: =E49-'UPS balance Sheet'!T9 -> 150.000 | F50: 30.750 | G50: 29.030 | H50: 12.083 | I50: 2.417 | J50: 1.417 | K50: 1.806 | L50: 0.806 | M50: 2.417 | O50: 22.220
A51: ='Att. Dairy'!B10 -> 2022-07-05 | B51: ='Att. Dairy'!D10 -> Tuesday | C51: ='UPS balance Sheet'!R10 -> 0 | D51: =D50-'UPS balance Sheet'!S10 -> 191.650 | E51: =E50-'UPS balance Sheet'!T10 -> 150.000 | F51: 30.750 | G51: 29.030 | H51: 12.083 | I51: 2.417 | J51: 1.417 | K51: 1.806 | L51: 0.806 | M51: 2.417 | O51: 22.220
A52: ='Att. Dairy'!B11 -> 2022-07-06 | B52: ='Att. Dairy'!D11 -> Wednesday | C52: ='UPS balance Sheet'!R11 -> 0 | D52: =D51-'UPS balance Sheet'!S11 -> 191.650 | E52: =E51-'UPS balance Sheet'!T11 -> 150.000 | F52: 30.750 | G52: 29.030 | H52: 12.083 | I52: 2.417 | J52: 1.417 | K52: 1.806 | L52: 0.806 | M52: 2.417 | O52: 22.220
A53: ='Att. Dairy'!B12 -> 2022-07-07 | B53: ='Att. Dairy'!D12 -> Thursday | C53: ='UPS balance Sheet'!R12 -> 0 | D53: =D52-'UPS balance Sheet'!S12 -> 191.650 | E53: =E52-'UPS balance Sheet'!T12 -> 150.000 | F53: 30.750 | G53: 29.030 | H53: 12.083 | I53: 2.417 | J53: 1.417 | K53: 1.806 | L53: 0.806 | M53: 2.417 | O53: 22.220
A54: ='Att. Dairy'!B13 -> 2022-07-08 | B54: ='Att. Dairy'!D13 -> Friday | C54: ='UPS balance Sheet'!R13 -> 0 | D54: =D53-'UPS balance Sheet'!S13 -> 191.650 | E54: =E53-'UPS balance Sheet'!T13 -> 150.000 | F54: 30.750 | G54: 29.030 | H54: 12.083 | I54: 2.417 | J54: 1.417 | K54: 1.806 | L54: 0.806 | M54: 2.417 | O54: 22.220
A55: ='Att. Dairy'!B14 -> 2022-07-09 | B55: ='Att. Dairy'!D14 -> Saturday | C55: ='UPS balance Sheet'!R14 -> 0 | D55: =D54-'UPS balance Sheet'!S14 -> 191.650 | E55: =E54-'UPS balance Sheet'!T14 -> 150.000 | F55: 30.750 | G55: 29.030 | H55: 12.083 | I55: 2.417 | J55: 1.417 | K55: 1.806 | L55: 0.806 | M55: 2.417 | O55: 22.220
A56: ='Att. Dairy'!B15 -> 2022-07-10 | B56: ='Att. Dairy'!D15 -> Sunday | C56: ='UPS balance Sheet'!R15 -> 0 | D56: =D55-'UPS balance Sheet'!S15 -> 191.650 | E56: =E55-'UPS balance Sheet'!T15 -> 150.000 | F56: 30.750 | G56: 29.030 | H56: 12.083 | I56: 2.417 | J56: 1.417 | K56: 1.806 | L56: 0.806 | M56: 2.417 | O56: 22.220
A57: ='Att. Dairy'!B16 -> 2022-07-11 | B57: ='Att. Dairy'!D16 -> Monday | C57: ='UPS balance Sheet'!R16 -> 0 | D57: =D56-'UPS balance Sheet'!S16 -> 191.650 | E57: =E56-'UPS balance Sheet'!T16 -> 150.000 | F57: 30.750 | G57: 29.030 | H57: 12.083 | I57: 2.417 | J57: 1.417 | K57: 1.806 | L57: 0.806 | M57: 2.417 | O57: 22.220
A58: ='Att. Dairy'!B17 -> 2022-07-12 | B58: ='Att. Dairy'!D17 -> Tuesday | C58: ='UPS balance Sheet'!R17 -> 0 | D58: =D57-'UPS balance Sheet'!S17 -> 191.650 | E58: =E57-'UPS balance Sheet'!T17 -> 150.000 | F58: 30.750 | G58: 29.030 | H58: 12.083 | I58: 2.417 | J58: 1.417 | K58: 1.806 | L58: 0.806 | M58: 2.417 | O58: 22.220
A59: ='Att. Dairy'!B18 -> 2022-07-13 | B59: ='Att. Dairy'!D18 -> Wednesday | C59: ='UPS balance Sheet'!R18 -> 0 | D59: =D58-'UPS balance Sheet'!S18 -> 191.650 | E59: =E58-'UPS balance Sheet'!T18 -> 150.000 | F59: 30.750 | G59: 29.030 | H59: 12.083 | I59: 2.417 | J59: 1.417 | K59: 1.806 | L59: 0.806 | M59: 2.417 | O59: 22.220
A60: ='Att. Dairy'!B19 -> 2022-07-14 | B60: ='Att. Dairy'!D19 -> Thursday | C60: ='UPS balance Sheet'!R19 -> 0 | D60: =D59-'UPS balance Sheet'!S19 -> 191.650 | E60: =E59-'UPS balance Sheet'!T19 -> 150.000 | F60: 30.750 | G60: 29.030 | H60: 12.083 | I60: 2.417 | J60: 1.417 | K60: 1.806 | L60: 0.806 | M60: 2.417 | O60: 22.220
A61: ='Att. Dairy'!B20 -> 2022-07-15 | B61: ='Att. Dairy'!D20 -> Friday | C61: ='UPS balance Sheet'!R20 -> 0 | D61: =D60-'UPS balance Sheet'!S20 -> 191.650 | E61: =E60-'UPS balance Sheet'!T20 -> 150.000 | F61: 30.750 | G61: 29.030 | H61: 12.083 | I61: 2.417 | J61: 1.417 | K61: 1.806 | L61: 0.806 | M61: 2.417 | O61: 22.220
A62: ='Att. Dairy'!B21 -> 2022-07-16 | B62: ='Att. Dairy'!D21 -> Saturday | C62: ='UPS balance Sheet'!R21 -> 0 | D62: =D61-'UPS balance Sheet'!S21 -> 191.650 | E62: =E61-'UPS balance Sheet'!T21 -> 150.000 | F62: 30.750 | G62: 29.030 | H62: 12.083 | I62: 2.417 | J62: 1.417 | K62: 1.806 | L62: 0.806 | M62: 2.417 | O62: 22.220
A63: ='Att. Dairy'!B22 -> 2022-07-17 | B63: ='Att. Dairy'!D22 -> Sunday | C63: ='UPS balance Sheet'!R22 -> 0 | D63: =D62-'UPS balance Sheet'!S22 -> 191.650 | E63: =E62-'UPS balance Sheet'!T22 -> 150.000 | F63: 30.750 | G63: 29.030 | H63: 12.083 | I63: 2.417 | J63: 1.417 | K63: 1.806 | L63: 0.806 | M63: 2.417 | O63: 22.220
A64: ='Att. Dairy'!B23 -> 2022-07-18 | B64: ='Att. Dairy'!D23 -> Monday | C64: ='UPS balance Sheet'!R23 -> 0 | D64: =D63-'UPS balance Sheet'!S23 -> 191.650 | E64: =E63-'UPS balance Sheet'!T23 -> 150.000 | F64: 30.750 | G64: 29.030 | H64: 12.083 | I64: 2.417 | J64: 1.417 | K64: 1.806 | L64: 0.806 | M64: 2.417 | O64: 22.220
A65: ='Att. Dairy'!B24 -> 2022-07-19 | B65: ='Att. Dairy'!D24 -> Tuesday | C65: ='UPS balance Sheet'!R24 -> 0 | D65: =D64-'UPS balance Sheet'!S24 -> 191.650 | E65: =E64-'UPS balance Sheet'!T24 -> 150.000 | F65: 30.750 | G65: 29.030 | H65: 12.083 | I65: 2.417 | J65: 1.417 | K65: 1.806 | L65: 0.806 | M65: 2.417 | O65: 22.220
A66: ='Att. Dairy'!B25 -> 2022-07-20 | B66: ='Att. Dairy'!D25 -> Wednesday | C66: ='UPS balance Sheet'!R25 -> 0 | D66: =D65-'UPS balance Sheet'!S25 -> 191.650 | E66: =E65-'UPS balance Sheet'!T25 -> 150.000 | F66: 30.750 | G66: 29.030 | H66: 12.083 | I66: 2.417 | J66: 1.417 | K66: 1.806 | L66: 0.806 | M66: 2.417 | O66: 22.220
A67: ='Att. Dairy'!B26 -> 2022-07-21 | B67: ='Att. Dairy'!D26 -> Thursday | C67: ='UPS balance Sheet'!R26 -> 0 | D67: =D66-'UPS balance Sheet'!S26 -> 191.650 | E67: =E66-'UPS balance Sheet'!T26 -> 150.000 | F67: 30.750 | G67: 29.030 | H67: 12.083 | I67: 2.417 | J67: 1.417 | K67: 1.806 | L67: 0.806 | M67: 2.417 | O67: 22.220
A68: ='Att. Dairy'!B27 -> 2022-07-22 | B68: ='Att. Dairy'!D27 -> Friday | C68: ='UPS balance Sheet'!R27 -> 0 | D68: =D67-'UPS balance Sheet'!S27 -> 191.650 | E68: =E67-'UPS balance Sheet'!T27 -> 150.000 | F68: 30.750 | G68: 29.030 | H68: 12.083 | I68: 2.417 | J68: 1.417 | K68: 1.806 | L68: 0.806 | M68: 2.417 | O68: 22.220
A69: ='Att. Dairy'!B28 -> 2022-07-23 | B69: ='Att. Dairy'!D28 -> Saturday | C69: ='UPS balance Sheet'!R28 -> 0 | D69: =D68-'UPS balance Sheet'!S28 -> 191.650 | E69: =E68-'UPS balance Sheet'!T28 -> 150.000 | F69: 30.750 | G69: 29.030 | H69: 12.083 | I69: 2.417 | J69: 1.417 | K69: 1.806 | L69: 0.806 | M69: 2.417 | O69: 22.220
A70: ='Att. Dairy'!B29 -> 2022-07-24 | B70: ='Att. Dairy'!D29 -> Sunday | C70: ='UPS balance Sheet'!R29 -> 0 | D70: =D69-'UPS balance Sheet'!S29 -> 191.650 | E70: =E69-'UPS balance Sheet'!T29 -> 150.000 | F70: 30.750 | G70: 29.030 | H70: 12.083 | I70: 2.417 | J70: 1.417 | K70: 1.806 | L70: 0.806 | M70: 2.417 | O70: 22.220
A71: ='Att. Dairy'!B30 -> 2022-07-25 | B71: ='Att. Dairy'!D30 -> Monday | C71: ='UPS balance Sheet'!R30 -> 0 | D71: =D70-'UPS balance Sheet'!S30 -> 191.650 | E71: =E70-'UPS balance Sheet'!T30 -> 150.000 | F71: 30.750 | G71: 29.030 | H71: 12.083 | I71: 2.417 | J71: 1.417 | K71: 1.806 | L71: 0.806 | M71: 2.417 | O71: 22.220
A72: ='Att. Dairy'!B31 -> 2022-07-26 | B72: ='Att. Dairy'!D31 -> Tuesday | C72: ='UPS balance Sheet'!R31 -> 0 | D72: =D71-'UPS balance Sheet'!S31 -> 191.650 | E72: =E71-'UPS balance Sheet'!T31 -> 150.000 | F72: 30.750 | G72: 29.030 | H72: 12.083 | I72: 2.417 | J72: 1.417 | K72: 1.806 | L72: 0.806 | M72: 2.417 | O72: 22.220
A73: ='Att. Dairy'!B32 -> 2022-07-27 | B73: ='Att. Dairy'!D32 -> Wednesday | C73: ='UPS balance Sheet'!R32 -> 0 | D73: =D72-'UPS balance Sheet'!S32 -> 191.650 | E73: =E72-'UPS balance Sheet'!T32 -> 150.000 | F73: 30.750 | G73: 29.030 | H73: 12.083 | I73: 2.417 | J73: 1.417 | K73: 1.806 | L73: 0.806 | M73: 2.417 | O73: 22.220
A74: ='Att. Dairy'!B33 -> 2022-07-28 | B74: ='Att. Dairy'!D33 -> Thursday | C74: ='UPS balance Sheet'!R33 -> 0 | D74: =D73-'UPS balance Sheet'!S33 -> 191.650 | E74: =E73-'UPS balance Sheet'!T33 -> 150.000 | F74: 30.750 | G74: 29.030 | H74: 12.083 | I74: 2.417 | J74: 1.417 | K74: 1.806 | L74: 0.806 | M74: 2.417 | O74: 22.220
A75: ='Att. Dairy'!B34 -> 2022-07-29 | B75: ='Att. Dairy'!D34 -> Friday | C75: ='UPS balance Sheet'!R34 -> 0 | D75: =D74-'UPS balance Sheet'!S34 -> 191.650 | E75: =E74-'UPS balance Sheet'!T34 -> 150.000 | F75: 30.750 | G75: 29.030 | H75: 12.083 | I75: 2.417 | J75: 1.417 | K75: 1.806 | L75: 0.806 | M75: 2.417 | O75: 22.220
A76: ='Att. Dairy'!B35 -> 2022-07-30 | B76: ='Att. Dairy'!D35 -> Saturday | C76: ='UPS balance Sheet'!R35 -> 0 | D76: =D75-'UPS balance Sheet'!S35 -> 191.650 | E76: =E75-'UPS balance Sheet'!T35 -> 150.000 | F76: 30.750 | G76: 29.030 | H76: 12.083 | I76: 2.417 | J76: 1.417 | K76: 1.806 | L76: 0.806 | M76: 2.417 | O76: 22.220
A77: ='Att. Dairy'!B36 -> 2022-07-31 | B77: ='Att. Dairy'!D36 -> Sunday | C77: ='UPS balance Sheet'!R36 -> 0 | D77: =D76-'UPS balance Sheet'!S36 -> 191.650 | E77: =E76-'UPS balance Sheet'!T36 -> 150.000 | F77: 30.750 | G77: 29.030 | H77: 12.083 | I77: 2.417 | J77: 1.417 | K77: 1.806 | L77: 0.806 | M77: 2.417 | N77: =SUM(N47:N76) -> 0 | O77: 22.220

Sheet Bill generate
A1: dk;kZy; | C1: ='MASTER DATA'!C3 -> egkRek xka/kh jktdh; fo|ky; ¼vaxzsth ek/;e½ cj ] ikyh
D2: pkyw ekg esa LVkWd o fcy fooj.k
A4: feM Ms ehy dk¸kZØe
A5: vuqekfur fcy
A6: Month | E6: ='MASTER DATA'!J4 -> tqykbZ&2022
D7: pkyw ekg esa ykHkkfUor fo|kFkhZ
B8: çkFkfed | D8: ='PS Balance Sheet'!R37 -> 492
B9: mPp çkFkfed | D9: ='UPS balance Sheet'!R37 -> 389
B10: jk'ku lkexzh vuqekfur ek=k ¼fdyksxzke esa ½
D11: çkFkfed | F11: mPp çkFkfed | H11: dqy ek=k
B12: lCth | D12: =Stock!F8-Stock!F39 -> 12.300 | F12: =Stock!F46-Stock!F77 -> 14.250 | H12: =D12+F12 -> 26.550
B13: rsy | D13: =Stock!H8-Stock!H39 -> 2.460 | F13: =Stock!H46-Stock!H77 -> 2.918 | H13: =D13+F13 -> 5.378
A14: ekg dh izkjfEHkd 'ks"k jkf'k | F14: ekg ds nkSjku izkIr jkf'k
A15: 1 | B15: çkFkfed | D15: ='Prarmbhik Shesh'!D9 -> 10000.00 | E15: :Ik, | F15: çkFkfed | H15: ='Prarmbhik Shesh'!D10 -> 0.00 | J15: :Ik,
A16: 2 | B16: mPPk çkFkfed | D16: ='Prarmbhik Shesh'!F9 -> 15000.00 | E16: :Ik, | F16: mPPk çkFkfed | H16: ='Prarmbhik Shesh'!F10 -> 0.00 | J16: :Ik,
D17: ekg ds nkSjku [kpZ jkf'k :Ik, ¼estimate Bill½
B18: lkexzh | D18: çkFkfed | G18: mPp çkFkfed
A19: 1- | B19: ydMh @ xSal | D19: ='PS Balance Sheet'!W37*10/100 -> 244.52 | G19: ='UPS balance Sheet'!W37*10/100 -> 289.81 | J19: :Ik,
A20: 2- | B20: xsagw filkbZ | D20: ='PS Balance Sheet'!S37*2.5 -> 123.00 | G20: ='UPS balance Sheet'!S37*2.5 -> 145.88 | J20: :Ik,
A21: 3 | B21: Qy | D21: ='PS Balance Sheet'!W37*15/100 -> 366.79 | G21: ='UPS balance Sheet'!W37*15/100 -> 434.71 | J21: :Ik,
A22: 4 | B22: lCth | D22: ='PS Balance Sheet'!W37*30/100 -> 733.57 | G22: ='UPS balance Sheet'!W37*30/100 -> 869.42 | J22: :Ik,
A23: 5 | B23: fdjk.kk jk'ku | D23: ='PS Balance Sheet'!W37-D19-D20-D21-D22 -> 977.36 | G23: ='UPS balance Sheet'!W37-G19-G20-G21-G22 -> 1158.25 | J23: :Ik,
B24: dqy vuqekfur jkf'k | D24: =SUM(D19:F23) -> 2445.24 | G24: =SUM(G19:I23) -> 2898.05 | J24: :Ik,
A25: ekg ds vUr esa 'ks"k jkf'k
A26: 1 | B26: çkFkfed | D26: =D15+H15-D24 -> 7554.76 | J26: :Ik,
A27: 2 | B27: mPp çkFkfed | D27: =D16+H16-G24 -> 12101.95 | J27: :Ik,
